Workbook

Sheet 1. Information Sheet
AA1: =IF(OR(F16="", F16="(if applicable)"), F14, F14 & " - " & F16) -> Waterloo North Hydro Inc.
M9: Version | N9: 1.1
M12: Version | N12: 1.1
E14: Utility Name | F14: Waterloo North Hydro Inc.
E16: Service Territory
E18: Assigned EB Number | F18: EB-2014-0119
E20: Name of Contact and Title | F20: Albert P. Singh, CFO & Vice President Administration
E22: Phone Number | F22: 519-888-5542
E24: Email Address | F24: asingh@wnhydro.com
E26: We are applying for rates effective | F26: 2015-05-01
E28: Rate-Setting Method | F28: Price Cap IR
A30: Please indicate in which Rate Year the Group 1 accounts were last cleared1 | F30: 2014
A32: Please indicate the last Cost of Service Re-Basing Year | F32: 2011
B35: Notes
C37: Pale green cells represent input cells.
C39: Pale blue cells represent drop-down lists. The applicant should select the appropriate item from the drop-down list.
C41: White cells contain fixed values, automatically generated values or formulae.
A44: Note: 1. Rate year of application

Sheet 2. Related Links
A13: ● | B13: Ontario Energy Board's 2015 Electricity Distribution Rates Webpage
A15: ● | B15: An updated version of Chapter 3 of the Filing Requirements for Electricity Distribution Rate Applications for 2015 rates.

Sheet 3. Rate Class Selection
A12: Select the appropriate rate classes as they appear on your most recent Board-Approved Tariff of Rates and Charges, including the MicroFit Class.
A14: How many classes are on your most recent Board-Approved Tariff of Rates and Charges? | J14: 8
A16: Select Your Rate Classes from the Blue Cells below. Please ensure that a rate class is assigned to each shaded cell.
B18: Rate Class Classification | Q18: # of duplicates
A19: 1 | B19: RESIDENTIAL | P19: =COUNTIF($B$19:$J$40, B19) -> 1 | Q19: =COUNTIF(P19:P40, 2)/2 -> 0
A20: 2 | B20: GENERAL SERVICE LESS THAN 50 KW | P20: =COUNTIF($B$19:$J$40, B20) -> 1
A21: 3 | B21: GENERAL SERVICE 50 TO 4,999 KW | P21: 1
A22: 4 | B22: LARGE USE | P22: 1
A23: 5 | B23: UNMETERED SCATTERED LOAD | P23: 1
A24: 6 | B24: STREET LIGHTING | P24: 1
A25: 7 | B25: microFIT | P25: 1
A26: 8 | B26: EMBEDDED DISTRIBUTOR | P26: 1
P27: 0
P28: 0
P29: 0
P30: 0
P31: 0
P32: 0
P33: 0

Sheet 4. Current Tariff Sheet
Z1: 3 | AA1: January | AB1: ≥
AA2: February
AA3: March
AA4: April
AA5: May
AA6: June
AA7: July
AA8: August
AA9: September
AA10: October
AA11: November
B12: For each class, Applicants are required to copy and paste the class descriptions (located directly under the class name) and the description of the applicability of those rates (description is found under the class name and directly under the word "APPLICATION"). By using the drop-down lists located under the column labeled "Rate Description", please select the descriptions of the rates and charges that BEST MATCHES the descriptions on your most recent Board-Approved Tariff of Rates and Charges. If the description is not found in the drop-down list, please enter the description in the green cells under the correct class exactly as it appears on the tariff. Please do not enter more than one "Service Charge" for each class for which a base monthly fixed charge applies. | AA12: December
B21: =IF(ISBLANK('1. Information Sheet'!F14), "Please Choose Distributor Name on Sheet 1", '1. Information Sheet'!F14) -> Waterloo North Hydro Inc.
B22: TARIFF OF RATES AND CHARGES
A24: RESIDENTIAL | B24: RESIDENTIAL Service Classification
A25: RESIDENTIAL
A26: RESIDENTIAL | B26: This classification applies to an account taking electricity at 750 volts or less where the electricity is used exclusively in a separate metered living accommodation. Customers shall be residing in single-dwelling units that consist of a detached house or one unit of a semi-detached, duplex, triplex or quadruplex house, with a residential zoning. Separately metered dwellings within a town house complex or apartment building also qualify as residential customers. All customers are single-phase. Further servicing details are available in the distributor’s Conditions of Service.
A27: RESIDENTIAL
A28: RESIDENTIAL
A29: RESIDENTIAL
A30: RESIDENTIAL
A31: RESIDENTIAL
A32: RESIDENTIAL | B32: APPLICATION
A33: RESIDENTIAL
A34: RESIDENTIAL | B34: The application of these rates and charges shall be in accordance with the Licence of the Distributor and any Code or Order of the Board, and amendments thereto as approved by the Board, which may be applicable to the administration of this schedule.
A35: RESIDENTIAL
A36: RESIDENTIAL
A37: RESIDENTIAL | B37: No rates and charges for the distribution of electricity and charges to meet the costs of any work or service done or furnished for the purpose of the distribution of electricity shall be made except as permitted by this schedule, unless required by the Distributor’s Licence or a Code or Order of the Board, and amendments thereto as approved by the Board, or as specified herein.
A38: RESIDENTIAL
A39: RESIDENTIAL
A40: RESIDENTIAL
A41: RESIDENTIAL | B41: Unless specifically noted, this schedule does not contain any charges for the electricity commodity, be it under the Regulated Price Plan, a contract with a retailer or the wholesale market price, as applicable. In addition, the charges in the MONTHLY RATES AND CHARGES - Regulatory Component of this schedule do not apply to a customer that is an embedded wholesale market participant.
A42: RESIDENTIAL
A43: RESIDENTIAL
A44: RESIDENTIAL | B44: It should be noted that this schedule does not list any charges, assessments or credits that are required by law to be invoiced by a distributor and that are not subject to Board approval, such as the Debt Retirement Charge, the Global Adjustment, the Ontario Clean Energy Benefit and the HST.
A45: RESIDENTIAL
A46: RESIDENTIAL
A47: RESIDENTIAL
A48: RESIDENTIAL | B48: MONTHLY RATES AND CHARGES - Delivery Component (If applicable, Effective Date MUST be included in rate description)
A49: RESIDENTIAL | B49: Service Charge | H49: $ | I49: 15 | K49: 1_C_MSC
A50: RESIDENTIAL | B50: Rate Rider for Recovery of Smart Meter Incremental Revenue Requirement - in effect until the effective date of the next cost of service-based rate order | H50: $ | I50: 2.11 | K50: 1_C_MSC_Rate_Rider_1
A51: RESIDENTIAL | B51: Rate Rider for Smart Metering Entity Charge - effective until October 31, 2018 | H51: $ | I51: 0.79 | K51: 1_C_SMEC | L51: 2018-10-31
A52: RESIDENTIAL | B52: Distribution Volumetric Rate | H52: $/kWh | I52: 0.019 | K52: 1_C_VC_1
A53: RESIDENTIAL | B53: Low Voltage Service Rate | H53: $/kWh | I53: 0.0001 | K53: 1_C_LVrate
A54: RESIDENTIAL | B54: Rate Rider for Recovery of Lost Revenue Adjustment Mechanism (LRAM)/Shared Savings Mechanism (SSM) Recovery - effective until April 30, 2015 | H54: $/kWh | I54: 0.0002 | K54: 1_C_VC_Rate_Rider_kWh_1 | L54: 2015-04-30
A55: RESIDENTIAL | B55: Retail Transmission Rate - Network Service Rate | H55: $/kWh | I55: 0.0076 | K55: 1_C_RTSR_Network
A56: RESIDENTIAL | B56: Retail Transmission Rate - Line and Transformation Connection Service Rate | H56: $/kWh | I56: 0.0022 | K56: 1_C_RTSR_Connection
A57: RESIDENTIAL | B57: Rate Rider for Deferral/Variance Account Disposition (2014) - effective until April 30, 2015 | H57: $/kWh | I57: -0.0016 | K57: 1_C_VC_DEFVAR_kWh_1 | L57: 2015-04-30
A58: RESIDENTIAL | B58: Rate Rider for Global Adjustment Sub-Account Disposition (2014) - effective until April 30, 2015 Applicable only for Non-RPP Customers | H58: $/kWh | I58: -0.0007 | K58: 1_C_VC_GA_Rate_Rider_kWh_1 | L58: 2015-04-30
A59: RESIDENTIAL | B59: Rate Rider for Application of Tax Change (2014) - effective until April 30, 2015 | H59: $/kWh | I59: -0.0001 | K59: 1_C_VC_Rate_Rider_kWh_3 | L59: 2015-04-30
A60: RESIDENTIAL
A61: RESIDENTIAL
A62: RESIDENTIAL
A63: RESIDENTIAL
A64: RESIDENTIAL
A65: RESIDENTIAL
A66: RESIDENTIAL
A67: RESIDENTIAL
A68: RESIDENTIAL
A69: RESIDENTIAL
A70: RESIDENTIAL
A71: RESIDENTIAL
A72: RESIDENTIAL
A73: RESIDENTIAL
A74: RESIDENTIAL
A75: RESIDENTIAL
A76: RESIDENTIAL
A77: RESIDENTIAL
A78: RESIDENTIAL
A79: RESIDENTIAL | B79: MONTHLY RATES AND CHARGES - Regulatory Component
A80: RESIDENTIAL
A81: RESIDENTIAL | B81: Wholesale Market Service Rate | H81: $/kWh | I81: 0.0044 | K81: 1_C_WMSR
A82: RESIDENTIAL | B82: Rural or Remote Electricity Rate Protection Charge (RRRP) | H82: $/kWh | I82: 0.0013 | K82: 1_C_RRPC
A83: RESIDENTIAL | B83: Standard Supply Service - Administrative Charge (if applicable) | H83: $ | I83: 0.25 | K83: 1_C_SSS
A84: RESIDENTIAL
A86: GENERAL SERVICE LESS THAN 50 KW | B86: GENERAL SERVICE LESS THAN 50 KW Service Classification
A87: GENERAL SERVICE LESS THAN 50 KW
A88: GENERAL SERVICE LESS THAN 50 KW | B88: This classification applies to a non residential account taking electricity at 750 volts or less whose average monthly maximum demand is less than, or is forecast to be less than, 50 kW. Further servicing details are available in the distributor’s Conditions of Service.
A89: GENERAL SERVICE LESS THAN 50 KW
A90: GENERAL SERVICE LESS THAN 50 KW
A91: GENERAL SERVICE LESS THAN 50 KW
A92: GENERAL SERVICE LESS THAN 50 KW
A93: GENERAL SERVICE LESS THAN 50 KW
A94: GENERAL SERVICE LESS THAN 50 KW | B94: APPLICATION
A95: GENERAL SERVICE LESS THAN 50 KW
A96: GENERAL SERVICE LESS THAN 50 KW | B96: The application of these rates and charges shall be in accordance with the Licence of the Distributor and any Code or Order of the Board, and amendments thereto as approved by the Board, which may be applicable to the administration of this schedule.
A97: GENERAL SERVICE LESS THAN 50 KW
A98: GENERAL SERVICE LESS THAN 50 KW
A99: GENERAL SERVICE LESS THAN 50 KW | B99: No rates and charges for the distribution of electricity and charges to meet the costs of any work or service done or furnished for the purpose of the distribution of electricity shall be made except as permitted by this schedule, unless required by the Distributor’s Licence or a Code or Order of the Board, and amendments thereto as approved by the Board, or as specified herein.
A100: GENERAL SERVICE LESS THAN 50 KW
A101: GENERAL SERVICE LESS THAN 50 KW
A102: GENERAL SERVICE LESS THAN 50 KW
A103: GENERAL SERVICE LESS THAN 50 KW | B103: Unless specifically noted, this schedule does not contain any charges for the electricity commodity, be it under the Regulated Price Plan, a contract with a retailer or the wholesale market price, as applicable. In addition, the charges in the MONTHLY RATES AND CHARGES - Regulatory Component of this schedule do not apply to a customer that is an embedded wholesale market participant.
A104: GENERAL SERVICE LESS THAN 50 KW
A105: GENERAL SERVICE LESS THAN 50 KW
A106: GENERAL SERVICE LESS THAN 50 KW | B106: It should be noted that this schedule does not list any charges, assessments or credits that are required by law to be invoiced by a distributor and that are not subject to Board approval, such as the Debt Retirement Charge, the Global Adjustment, the Ontario Clean Energy Benefit and the HST.
A107: GENERAL SERVICE LESS THAN 50 KW
A108: GENERAL SERVICE LESS THAN 50 KW
A109: GENERAL SERVICE LESS THAN 50 KW
A110: GENERAL SERVICE LESS THAN 50 KW | B110: MONTHLY RATES AND CHARGES - Delivery Component (If applicable, Effective Date MUST be included in rate description)
A111: GENERAL SERVICE LESS THAN 50 KW | B111: Service Charge | H111: $ | I111: 31.55 | K111: 2_C_MSC
A112: GENERAL SERVICE LESS THAN 50 KW | B112: Rate Rider for Recovery of Smart Meter Incremental Revenue Requirement - in effect until the effective date of the next cost of service-based rate order | H112: $ | I112: 5.51 | K112: 2_C_MSC_Rate_Rider_1
A113: GENERAL SERVICE LESS THAN 50 KW | B113: Rate Rider for Smart Metering Entity Charge - effective until October 31, 2018 | H113: $ | I113: 0.79 | K113: 2_C_SMEC | L113: 2018-10-31
A114: GENERAL SERVICE LESS THAN 50 KW | B114: Distribution Volumetric Rate | H114: $/kWh | I114: 0.0141 | K114: 2_C_VC_1
A115: GENERAL SERVICE LESS THAN 50 KW | B115: Low Voltage Service Rate | H115: $/kWh | I115: 0.0001 | K115: 2_C_LVrate
A116: GENERAL SERVICE LESS THAN 50 KW | B116: Rate Rider for Recovery of Lost Revenue Adjustment Mechanism (LRAM)/Shared Savings Mechanism (SSM) Recovery - effective until April 30, 2015 | H116: $/kWh | I116: 0.0001 | K116: 2_C_VC_Rate_Rider_kWh_1 | L116: 2015-04-30
A117: GENERAL SERVICE LESS THAN 50 KW | B117: Rate Rider for Deferral/Variance Account Disposition (2014) - effective until April 30, 2015 | H117: $/kWh | I117: -0.0016 | K117: 2_C_VC_DEFVAR_kWh_1 | L117: 2015-04-30
A118: GENERAL SERVICE LESS THAN 50 KW | B118: Rate Rider for Global Adjustment Sub-Account Disposition (2014) - effective until April 30, 2015 Applicable only for Non-RPP Customers | H118: $/kWh | I118: -0.0007 | K118: 2_C_VC_GA_Rate_Rider_kWh_1 | L118: 2015-04-30
A119: GENERAL SERVICE LESS THAN 50 KW | B119: Retail Transmission Rate - Network Service Rate | H119: $/kWh | I119: 0.0069 | K119: 2_C_RTSR_Network
A120: GENERAL SERVICE LESS THAN 50 KW | B120: Retail Transmission Rate - Line and Transformation Connection Service Rate | H120: $/kWh | I120: 0.002 | K120: 2_C_RTSR_Connection
A121: GENERAL SERVICE LESS THAN 50 KW
A122: GENERAL SERVICE LESS THAN 50 KW
A123: GENERAL SERVICE LESS THAN 50 KW
A124: GENERAL SERVICE LESS THAN 50 KW
A125: GENERAL SERVICE LESS THAN 50 KW
A126: GENERAL SERVICE LESS THAN 50 KW
A127: GENERAL SERVICE LESS THAN 50 KW
A128: GENERAL SERVICE LESS THAN 50 KW
A129: GENERAL SERVICE LESS THAN 50 KW
A130: GENERAL SERVICE LESS THAN 50 KW
A131: GENERAL SERVICE LESS THAN 50 KW
A132: GENERAL SERVICE LESS THAN 50 KW
A133: GENERAL SERVICE LESS THAN 50 KW
A134: GENERAL SERVICE LESS THAN 50 KW
A135: GENERAL SERVICE LESS THAN 50 KW
A136: GENERAL SERVICE LESS THAN 50 KW
A137: GENERAL SERVICE LESS THAN 50 KW
A138: GENERAL SERVICE LESS THAN 50 KW
A139: GENERAL SERVICE LESS THAN 50 KW
A140: GENERAL SERVICE LESS THAN 50 KW
A141: GENERAL SERVICE LESS THAN 50 KW | B141: MONTHLY RATES AND CHARGES - Regulatory Component
A142: GENERAL SERVICE LESS THAN 50 KW
A143: GENERAL SERVICE LESS THAN 50 KW | B143: Wholesale Market Service Rate | H143: =H81 -> $/kWh | I143: 0.0044 | K143: 2_C_WMSR
A144: GENERAL SERVICE LESS THAN 50 KW | B144: Rural or Remote Electricity Rate Protection Charge (RRRP) | H144: $/kWh | I144: 0.0013 | K144: 2_C_RRPC
A145: GENERAL SERVICE LESS THAN 50 KW | B145: Standard Supply Service - Administrative Charge (if applicable) | H145: $ | I145: 0.25 | K145: 2_C_SSS
A146: GENERAL SERVICE LESS THAN 50 KW
A172: GENERAL SERVICE 50 TO 4,999 KW | B172: GENERAL SERVICE 50 TO 4,999 KW Service Classification
A173: GENERAL SERVICE 50 TO 4,999 KW
A174: GENERAL SERVICE 50 TO 4,999 KW | B174: This classification applies to a non residential account whose average monthly maximum demand used for billing purposes is equal to or greater than, or is forecast to be equal to or greater than, 50 kW but less than 5,000 kW. Further servicing details are available in the distributor’s Conditions of Service. Note that for the application of the Retail Transmission Rate – Network Service Rate and the Retail Transmission Rate – Line and Transformation Connection Service Rate the following sub-classifications apply: General Service 50 to 999 kW non-interval metered General Service 50 to 999 kW interval metered General Service 1,000 to 4,999 kW interval metered.
A175: GENERAL SERVICE 50 TO 4,999 KW
A176: GENERAL SERVICE 50 TO 4,999 KW
A177: GENERAL SERVICE 50 TO 4,999 KW
A178: GENERAL SERVICE 50 TO 4,999 KW
A179: GENERAL SERVICE 50 TO 4,999 KW
A180: GENERAL SERVICE 50 TO 4,999 KW | B180: APPLICATION
A181: GENERAL SERVICE 50 TO 4,999 KW
A182: GENERAL SERVICE 50 TO 4,999 KW | B182: The application of these rates and charges shall be in accordance with the Licence of the Distributor and any Code or Order of the Board, and amendments thereto as approved by the Board, which may be applicable to the administration of this schedule.
A183: GENERAL SERVICE 50 TO 4,999 KW
A184: GENERAL SERVICE 50 TO 4,999 KW
A185: GENERAL SERVICE 50 TO 4,999 KW | B185: No rates and charges for the distribution of electricity and charges to meet the costs of any work or service done or furnished for the purpose of the distribution of electricity shall be made except as permitted by this schedule, unless required by the Distributor’s Licence or a Code or Order of the Board, and amendments thereto as approved by the Board, or as specified herein.
A186: GENERAL SERVICE 50 TO 4,999 KW
A187: GENERAL SERVICE 50 TO 4,999 KW
A188: GENERAL SERVICE 50 TO 4,999 KW
A189: GENERAL SERVICE 50 TO 4,999 KW | B189: Unless specifically noted, this schedule does not contain any charges for the electricity commodity, be it under the Regulated Price Plan, a contract with a retailer or the wholesale market price, as applicable. In addition, the charges in the MONTHLY RATES AND CHARGES - Regulatory Component of this schedule do not apply to a customer that is an embedded wholesale market participant.
A190: GENERAL SERVICE 50 TO 4,999 KW
A191: GENERAL SERVICE 50 TO 4,999 KW
A192: GENERAL SERVICE 50 TO 4,999 KW | B192: It should be noted that this schedule does not list any charges, assessments or credits that are required by law to be invoiced by a distributor and that are not subject to Board approval, such as the Debt Retirement Charge, the Global Adjustment, the Ontario Clean Energy Benefit and the HST.
A193: GENERAL SERVICE 50 TO 4,999 KW
A194: GENERAL SERVICE 50 TO 4,999 KW
A195: GENERAL SERVICE 50 TO 4,999 KW
A196: GENERAL SERVICE 50 TO 4,999 KW | B196: MONTHLY RATES AND CHARGES - Delivery Component (If applicable, Effective Date MUST be included in rate description)
A197: GENERAL SERVICE 50 TO 4,999 KW | B197: Service Charge | H197: $ | I197: 117.85 | K197: 3_C_MSC
A198: GENERAL SERVICE 50 TO 4,999 KW | B198: Distribution Volumetric Rate | H198: $/kW | I198: 4.6787 | K198: 3_C_VC_1
A199: GENERAL SERVICE 50 TO 4,999 KW | B199: Low Voltage Service Rate | H199: $/kW | I199: 0.0551 | K199: 3_C_LVrate
A200: GENERAL SERVICE 50 TO 4,999 KW | B200: Rate Rider for Recovery of Lost Revenue Adjustment Mechanism (LRAM)/Shared Savings Mechanism (SSM) Recovery - effective until April 30, 2015 | H200: $/kW | I200: 0.1495 | K200: 3_C_VC_Rate_Rider_kW_1 | L200: 2015-04-30
A201: GENERAL SERVICE 50 TO 4,999 KW | B201: Rate Rider for Deferral/Variance Account Disposition (2014) - effective until April 30, 2015 | H201: $/kW | I201: -0.7266 | K201: 3_C_VC_DEFVAR_kW_1 | L201: 2015-04-30
A202: GENERAL SERVICE 50 TO 4,999 KW | B202: Rate Rider for Global Adjustment Sub-Account Disposition (2014) - effective until April 30, 2015 Applicable only for Non-RPP Customers | H202: $/kW | I202: -0.3027 | K202: 3_C_VC_GA_Rate_Rider_kW_1 | L202: 2015-04-30
A203: GENERAL SERVICE 50 TO 4,999 KW | B203: Retail Transmission Rate - Network Service Rate - (less than 1,000 kW) | H203: $/kW | I203: 2.8378 | K203: 3_C_RTSR_Network
A204: GENERAL SERVICE 50 TO 4,999 KW | B204: Retail Transmission Rate - Network Service Rate - Interval Metered (less than 1,000 kW) | H204: $/kW | I204: 3.0141 | K204: 3_C_RTSR_Network_Interval
A205: GENERAL SERVICE 50 TO 4,999 KW | B205: Retail Transmission Rate - Network Service Rate - Interval Metered (1,000 to 4,999 kW) | H205: $/kW | I205: 3.0102 | K205: 3_C_RTSR_Network_Interval_GR1000kW
A206: GENERAL SERVICE 50 TO 4,999 KW | B206: Retail Transmission Rate - Line and Transformation Connection Service Rate - (less than 1,000 kW) | H206: $/kW | I206: 0.7815 | K206: 3_C_RTSR_Connection
A207: GENERAL SERVICE 50 TO 4,999 KW | B207: Retail Transmission Rate - Line and Transformation Connection Service Rate - Interval Metered (less than 1,000 kW) | H207: $/kW | I207: 0.9761 | K207: 3_C_RTSR_Connection_Interval
A208: GENERAL SERVICE 50 TO 4,999 KW | B208: Retail Transmission Rate - Line and Transformation Connection Service Rate - Interval Metered (1,000 to 4,999 kW) | H208: $/kW | I208: 0.975 | K208: 3_C_RTSR_Connection_Interval_GR1000kW
A209: GENERAL SERVICE 50 TO 4,999 KW | B209: Rate Rider for Application of Tax Change (2014) - effective until April 30, 2015 | H209: $/kW | I209: -0.0099 | K209: 3_C_VC_Rate_Rider_kW_3 | L209: 2015-04-30
A210: GENERAL SERVICE 50 TO 4,999 KW
A211: GENERAL SERVICE 50 TO 4,999 KW
A212: GENERAL SERVICE 50 TO 4,999 KW
A213: GENERAL SERVICE 50 TO 4,999 KW
A214: GENERAL SERVICE 50 TO 4,999 KW
A215: GENERAL SERVICE 50 TO 4,999 KW
A216: GENERAL SERVICE 50 TO 4,999 KW
A217: GENERAL SERVICE 50 TO 4,999 KW
A218: GENERAL SERVICE 50 TO 4,999 KW
A219: GENERAL SERVICE 50 TO 4,999 KW
A220: GENERAL SERVICE 50 TO 4,999 KW
A221: GENERAL SERVICE 50 TO 4,999 KW
A222: GENERAL SERVICE 50 TO 4,999 KW
A223: GENERAL SERVICE 50 TO 4,999 KW
A224: GENERAL SERVICE 50 TO 4,999 KW
A225: GENERAL SERVICE 50 TO 4,999 KW
A226: GENERAL SERVICE 50 TO 4,999 KW
A227: GENERAL SERVICE 50 TO 4,999 KW | B227: MONTHLY RATES AND CHARGES - Regulatory Component
A228: GENERAL SERVICE 50 TO 4,999 KW
A229: GENERAL SERVICE 50 TO 4,999 KW | B229: Wholesale Market Service Rate | H229: =H81 -> $/kWh | I229: 0.0044 | K229: 3_C_WMSR
A230: GENERAL SERVICE 50 TO 4,999 KW | B230: Rural or Remote Electricity Rate Protection Charge (RRRP) | H230: $/kWh | I230: 0.0013 | K230: 3_C_RRPC
A231: GENERAL SERVICE 50 TO 4,999 KW | B231: Standard Supply Service - Administrative Charge (if applicable) | H231: $ | I231: 0.25 | K231: 3_C_SSS
A232: GENERAL SERVICE 50 TO 4,999 KW
A258: LARGE USE | B258: LARGE USE Service Classification
A259: LARGE USE
A260: LARGE USE | B260: This classification applies to an account whose average monthly maximum demand used for billing purposes is equal to or greater than, or is forecast to be equal to or greater than, 5,000 kW. Further servicing details are available in the distributor’s Conditions of Service.
... 296 more rows

Sheet 5. 2014 Continuity Schedule
C15: Please complete the following continuity schedule for the following Deferral / Variance Accounts. Enter information into green cells only. If you have received approval to dispose of balances from prior years, the starting point for entries in the 2015 DVA schedule below will be the balance sheet date as per your G/L for which you received approval. For example, if in the 2014 EDR process (CoS or IRM) you received approval for the December 31, 2012 balances, the starting point for your entries below should be the 2011 year. This will allow for the correct starting point for the 2012 opening balance columns for both principal and interest. Please refer to the footnotes for further instructions.
E19: 2010 | O19: 2011 | Y19: 2012 | AL19: 2013 | AY19: 2014 | BC19: Projected Interest on Dec-31-13 Balances | BF19: 2.1.7 RRR
C20: Account Descriptions | D20: Account Number | E20: Opening Principal Amounts as of Jan-1-10 | F20: Transactions Debit / (Credit) during 2010 excluding interest and adjustments 2 | G20: Board-Approved Disposition during 2010 | H20: Adjustments during 2010 - other 1 | I20: Closing Principal Balance as of Dec-31-10 | J20: Opening Interest Amounts as of Jan-1-10 | K20: Interest Jan-1 to Dec-31-10 | L20: Board-Approved Disposition during 2010 | M20: Adjustments during 2010 - other 2 | N20: Closing Interest Amounts as of Dec-31-10 | O20: Opening Principal Amounts as of Jan-1-11 | P20: Transactions Debit / (Credit) during 2011 excluding interest and adjustments 2 | Q20: Board-Approved Disposition during 2011 | R20: Adjustments during 2011 - other 1 | S20: Closing Principal Balance as of Dec-31-11 | T20: Opening Interest Amounts as of Jan-1-11 | U20: Interest Jan-1 to Dec-31-11 | V20: Board-Approved Disposition during 2011 | W20: Adjustments during 2011 - other 2 | X20: Closing Interest Amounts as of Dec-31-11 | Y20: Opening Principal Amounts as of Jan-1-12 | Z20: Transactions Debit / (Credit) during 2012 excluding interest and adjustments 2 | AA20: Board-Approved Disposition during 2012 | AB20: Other 1 Adjustments during Q1 2012 | AC20: Other 1 Adjustments during Q2 2012 | AD20: Other 1 Adjustments during Q3 2012 | AE20: Other 1 Adjustments during Q4 2012 | AF20: Closing Principal Balance as of Dec-31-12 | AG20: Opening Interest Amounts as of Jan-1-12 | AH20: Interest Jan-1 to Dec-31-12 | AI20: Board-Approved Disposition during 2012 | AJ20: Adjustments during 2012 - other 1 | AK20: Closing Interest Amounts as of Dec-31-12 | AL20: Opening Principal Amounts as of Jan-1-13 | AM20: Transactions Debit / (Credit) during 2013 excluding interest and adjustments 2 | AN20: Board-Approved Disposition during 2013 | AO20: Other 1 Adjustments during Q1 2013 | AP20: Other 1 Adjustments during Q2 2013 | AQ20: Other 1 Adjustments during Q3 2013 | AR20: Other 1 Adjustments during Q4 2013 | AS20: Closing Principal Balance as of Dec-31-13 | AT20: Opening Interest Amounts as of Jan-1-13 | AU20: Interest Jan-1 to Dec-31-13 | AV20: Board-Approved Disposition during 2013 | AW20: Adjustments during 2013 - other 1 | AX20: Closing Interest Amounts as of Dec-31-13 | AY20: Principal Disposition during 2014 - instructed by Board | AZ20: Interest Disposition during 2014 - instructed by Board | BA20: Closing Principal Balances as of Dec 31-13 Adjusted for Dispositions during 2014 | BB20: Closing Interest Balances as of Dec 31-13 Adjusted for Dispositions during 2014 | BC20: Projected Interest from Jan 1, 2014 to December 31, 2014 on Dec 31 -13 balance adjusted for disposition during 2014 3 | BD20: Projected Interest from January 1, 2015 to April 30, 2015 on Dec 31 -13 balance adjusted for disposition during 2014 3 | BE20: Total Claim | BF20: As of Dec 31-13 | BG20: Variance RRR vs. 2013 Balance (Principal + Interest)
BE22: Claim before Forecasted Transactions
C23: Group 1 Accounts
A24: 1 | C24: LV Variance Account | D24: 1550 | I24: =E24+F24-G24+H24 -> 0 | N24: =J24+K24-L24+M24 -> 0 | O24: =I24 -> 0 | R24: 63517.74336 | S24: =O24+P24-Q24+R24 -> 63517.74336 | T24: =N24 -> 0 | W24: 562.0511125 | X24: =T24+U24-V24+W24 -> 562.0511125 | Y24: =S24 -> 63517.74336 | Z24: 39571.26116 | AF24: =Y24+Z24-AA24+SUM(AB24:AE24) -> 103089.0045 | AG24: =X24 -> 562.0511125 | AH24: 301.0971142 | AJ24: 1244.94777 | AK24: =AG24+AH24-AI24+AJ24 -> 2108.095997 | AL24: =AF24 -> 103089.0045 | AM24: 101650.0913 | AN24: 63517.74336 | AS24: =AL24+AM24-AN24+SUM(AO24:AR24) -> 141221.3524 | AT24: =AK24 -> 2108.095997 | AU24: 561.9101326 | AV24: 1806.998882 | AW24: 775.5967187 | AX24: =AT24+AU24-AV24+AW24 -> 1638.603966 | AY24: 39571 | AZ24: 1077 | BA24: =AS24-AY24 -> 101650.3524 | BB24: =AX24-AZ24 -> 561.6039656 | BC24: 1494.260181 | BD24: 498.086727 | BE24: =SUM(BA24:BD24) -> 104204.3033 | BF24: 142666 | BG24: =BF24-SUM(AS24,AX24) -> -193.9564133
C25: Smart Metering Entity Charge Variance | D25: 1551 | AK25: 0 | AL25: =AK25 -> 0 | AM25: 32300.53 | AS25: =AL25+AM25-AN25+SUM(AO25:AR25) -> 32300.53 | AT25: =AK25 -> 0 | AU25: 314.0442673 | AX25: 314.0442673 | BA25: =AS25-AY25 -> 32300.53 | BB25: =AX25-AZ25 -> 314.0442673 | BC25: 474.817791 | BD25: 158.272597 | BE25: =SUM(BA25:BD25) -> 33247.66466 | BF25: 32614 | BG25: =BF25-SUM(AS25,AX25) -> -0.574267279
A26: 2 | C26: RSVA - Wholesale Market Service Charge | D26: 1580 | I26: =E26+F26-G26+SUM(H26:H26) -> 0 | N26: =J26+K26-L26+M26 -> 0 | O26: =I26 -> 0 | R26: -1503308.76 | S26: =O26+P26-Q26+SUM(R26:R26) -> -1503308.76 | T26: 0 | W26: -11555.11803 | X26: =T26+U26-V26+W26 -> -11555.11803 | Y26: =S26 -> -1503308.76 | Z26: -1891724.191 | AF26: -3395032.951 | AG26: =X26 -> -11555.11803 | AH26: -13501.7992 | AJ26: -29464.8517 | AK26: -54521.76893 | AL26: =AF26 -> -3395032.951 | AM26: -926112.5192 | AN26: -1503308.76 | AS26: -2817836.71 | AT26: =AK26 -> -54521.76893 | AU26: -9907.79902 | AV26: -41019.96973 | AW26: -37077.79414 | AX26: -60487.39237 | AY26: -1891724 | AZ26: -50580 | BA26: -926112.7101 | BB26: -9907.392365 | BC26: -13613.85684 | BD26: -4537.95228 | BE26: =SUM(BA26:BD26) -> -954171.9116 | BF26: -2869055 | BG26: 9269.102479
A27: 3 | C27: RSVA - Retail Transmission Network Charge | D27: 1584 | I27: 0 | N27: 0 | O27: 0 | R27: 132696.08 | S27: 132696.08 | T27: 0 | W27: 3258.142305 | X27: 3258.142305 | Y27: 132696.08 | Z27: -183814.3989 | AF27: -51118.31888 | AG27: 3258.142305 | AH27: 1566.990902 | AJ27: 2600.843168 | AK27: 7425.976374 | AL27: -51118.31888 | AM27: -422797.1791 | AN27: 132696.08 | AS27: -606611.578 | AT27: 7425.976374 | AU27: -2707.731503 | AV27: 5858.985473 | AW27: -3602.762218 | AX27: -4743.502819 | AY27: -183814 | AZ27: -2036 | BA27: -422797.578 | BB27: -2707.502819 | BC27: -6215.124397 | BD27: -2071.708132 | BE27: -433791.9134 | BF27: -610454 | BG27: 901.0808287
A28: 4 | C28: RSVA - Retail Transmission Connection Charge | D28: 1586 | I28: 0 | N28: 0 | O28: 0 | R28: -93195.72 | S28: -93195.72 | T28: 0 | W28: 145.5440052 | X28: 145.5440052 | Y28: -93195.72 | Z28: -211350.2226 | AF28: -304545.9426 | AG28: 145.5440052 | AH28: -761.2787642 | AJ28: -1826.636112 | AK28: -2442.370871 | AL28: -304545.9426 | AM28: -267572.2326 | AN28: -93195.72 | AS28: -478922.4552 | AT28: -2442.370871 | AU28: -2097.854373 | AV28: -1681.092107 | AW28: -4142.464363 | AX28: -7001.5975 | AY28: -211350 | AZ28: -4904 | BA28: -267572.4552 | BB28: -2097.5975 | BC28: -3933.315092 | BD28: -1311.105031 | BE28: -274914.4728 | BF28: -484888 | BG28: 1036.052726
A29: 5 | C29: RSVA - Power (excluding Global Adjustment) | D29: 1588 | I29: 0 | N29: 0 | O29: 0 | R29: -774436.3083 | S29: -774436.3083 | T29: 0 | W29: -6039.684697 | X29: -6039.684697 | Y29: -774436.3083 | Z29: 32846.25755 | AF29: -741590.0508 | AG29: -6039.684697 | AH29: -4089.02286 | AJ29: -15178.95164 | AK29: -25307.6592 | AL29: -741590.0508 | AM29: -462831.1469 | AN29: -774436.3083 | AS29: -429984.8893 | AT29: -25307.6592 | AU29: 594.8065222 | AV29: -21218.63634 | AW29: 643.7866479 | AX29: -2850.42969 | AY29: 32846 | AZ29: -3445 | BA29: -462830.8893 | BB29: 594.5703101 | BC29: -6803.614073 | BD29: -2267.871358 | BE29: -471307.8045 | BF29: -432996 | BG29: -160.6809802
A30: 6 | C30: RSVA - Global Adjustment | D30: 1589 | I30: 0 | N30: 0 | O30: 0 | R30: 349922.8369 | S30: 349922.8369 | T30: 0 | W30: 3584.239082 | X30: 3584.239082 | Y30: 349922.8369 | Z30: -517109.65 | AF30: -167186.8131 | AG30: 3584.239082 | AH30: -2289.34 | AJ30: 6858.487603 | AK30: 8153.386685 | AL30: -167186.8131 | AM30: 430529.1612 | AN30: 349922.8369 | AS30: -86580.48883 | AT30: 8153.386685 | AU30: 17177.81021 | AV30: 10442.72668 | AW30: -10135.34914 | AX30: 4753.12107 | AY30: -517110 | AZ30: -12425 | BA30: 430529.5112 | BB30: 17178.12107 | BC30: 6328.778669 | BD30: 2109.59289 | BE30: 456146.0038 | BF30: -107908 | BG30: -26080.63224
A31: 7 | C31: Recovery of Regulatory Asset Balances | D31: 1590 | I31: 0 | N31: 0 | O31: 0 | S31: 0 | T31: 0 | X31: 0 | Y31: 0 | AF31: 0 | AG31: 0 | AK31: 0 | AL31: 0 | AS31: 0 | AT31: 0 | AX31: 0 | BA31: 0 | BB31: 0 | BE31: 0 | BG31: 0
A32: 8 | C32: Disposition and Recovery/Refund of Regulatory Balances (2008)4 | D32: 1595 | I32: 0 | N32: 0 | O32: =I32 -> 0 | S32: 0 | T32: 0 | X32: 0 | Y32: 0 | AF32: 0 | AG32: 0 | AK32: 0 | AL32: 0 | AS32: 0 | AT32: 0 | AX32: 0 | BA32: 0 | BB32: 0 | BE32: 0 | BG32: 0
A33: 9 | C33: Disposition and Recovery/Refund of Regulatory Balances (2009)4 | D33: 1595 | I33: 0 | N33: 0 | O33: =I33 -> 0 | S33: 0 | T33: 0 | X33: 0 | Y33: 0 | AF33: 0 | AG33: 0 | AK33: 0 | AL33: 0 | AS33: 0 | AT33: 0 | AX33: 0 | BA33: 0 | BB33: 0 | BE33: 0 | BG33: 0
A34: 9 | C34: Disposition and Recovery/Refund of Regulatory Balances (2010)4 | D34: 1595 | I34: 0 | N34: 0 | O34: =I34 -> 0 | S34: 0 | T34: 0 | X34: 0 | Y34: 0 | AF34: 0 | AG34: 0 | AK34: 0 | AL34: 0 | AS34: 0 | AT34: 0 | AX34: 0 | BA34: 0 | BB34: 0 | BE34: 0 | BG34: 0
A35: 9 | C35: Disposition and Recovery/Refund of Regulatory Balances (2011)4 | D35: 1595 | I35: 0 | N35: 0 | O35: =I35 -> 0 | S35: 0 | T35: 0 | X35: 0 | Y35: 0 | AF35: 0 | AG35: 0 | AK35: 0 | AL35: 0 | AS35: 0 | AT35: 0 | AX35: 0 | BA35: 0 | BB35: 0 | BE35: =SUM(BA35:BD35) -> 0 | BG35: 0
A36: 9 | C36: Disposition and Recovery/Refund of Regulatory Balances (2012)4 | D36: 1595 | I36: 0 | N36: 0 | O36: =I36 -> 0 | S36: 0 | T36: 0 | X36: 0 | Y36: 0 | AF36: =Y36+Z36-AA36+SUM(AB36:AE36) -> 0 | AG36: 0 | AK36: 0 | AL36: 0 | AS36: =AL36+AM36-AN36+SUM(AO36:AR36) -> 0 | AT36: 0 | AX36: 0 | BA36: 0 | BB36: 0 | BE36: =SUM(BA36:BD36) -> 0 | BG36: 0
C38: RSVA - Global Adjustment | D38: 1589 | E38: =E30 -> 0 | F38: =F30 -> 0 | G38: 0 | H38: 0 | I38: 0 | J38: 0 | K38: 0 | L38: 0 | M38: 0 | N38: 0 | O38: =O30 -> 0 | P38: =P30 -> 0 | Q38: 0 | R38: 349922.8369 | S38: 349922.8369 | T38: 0 | U38: 0 | V38: 0 | W38: 3584.239082 | X38: 3584.239082 | Y38: =Y30 -> 349922.8369 | Z38: =Z30 -> -517109.65 | AA38: 0 | AB38: 0 | AC38: 0 | AD38: 0 | AE38: 0 | AF38: -167186.8131 | AG38: 3584.239082 | AH38: -2289.34 | AI38: 0 | AJ38: 6858.487603 | AK38: 8153.386685 | AL38: =AL30 -> -167186.8131 | AM38: =AM30 -> 430529.1612 | AN38: 349922.8369 | AO38: 0 | AP38: 0 | AQ38: 0 | AR38: 0 | AS38: -86580.48883 | AT38: 8153.386685 | AU38: 17177.81021 | AV38: 10442.72668 | AW38: -10135.34914 | AX38: 4753.12107 | AY38: -517110 | AZ38: -12425 | BA38: 430529.5112 | BB38: 17178.12107 | BC38: 6328.778669 | BD38: 2109.59289 | BE38: 456146.0038 | BF38: -107908 | BG38: -26080.63224
C39: Total Group 1 Balance excluding Account 1589 - Global Adjustment | E39: =SUM(E24:E29,E31:E36) -> 0 | F39: =SUM(F24:F29,F31:F36) -> 0 | G39: 0 | H39: 0 | I39: 0 | J39: 0 | K39: 0 | L39: 0 | M39: 0 | N39: 0 | O39: =SUM(O24:O29,O31:O36) -> 0 | P39: =SUM(P24:P29,P31:P36) -> 0 | Q39: 0 | R39: -2174726.965 | S39: -2174726.965 | T39: 0 | U39: 0 | V39: 0 | W39: -13629.0653 | X39: -13629.0653 | Y39: =SUM(Y24:Y29,Y31:Y36) -> -2174726.965 | Z39: =SUM(Z24:Z29,Z31:Z36) -> -2214471.294 | AA39: 0 | AB39: 0 | AC39: 0 | AD39: 0 | AE39: 0 | AF39: -4389198.259 | AG39: -13629.0653 | AH39: -16484.01281 | AI39: 0 | AJ39: -42624.64851 | AK39: -72737.72663 | AL39: =SUM(AL24:AL29,AL31:AL36) -> -4389198.259 | AM39: =SUM(AM24:AM29,AM31:AM36) -> -1945362.457 | AN39: -2174726.965 | AO39: 0 | AP39: 0 | AQ39: 0 | AR39: 0 | AS39: -4159833.75 | AT39: -72737.72663 | AU39: -13242.62397 | AV39: -56253.71382 | AW39: -43403.63736 | AX39: -73130.27414 | AY39: -2214471 | AZ39: -59888 | BA39: -1945362.75 | BB39: -13242.27414 | BC39: -28596.83243 | BD39: -9532.277476 | BE39: -1996734.134 | BF39: -4222113 | BG39: 10851.02437
C40: Total Group 1 Balance | E40: =SUM(E24:E36) -> 0 | F40: =SUM(F24:F36) -> 0 | G40: 0 | H40: 0 | I40: 0 | J40: 0 | K40: 0 | L40: 0 | M40: 0 | N40: 0 | O40: =SUM(O24:O36) -> 0 | P40: =SUM(P24:P36) -> 0 | Q40: 0 | R40: -1824804.128 | S40: -1824804.128 | T40: 0 | U40: 0 | V40: 0 | W40: -10044.82622 | X40: -10044.82622 | Y40: =SUM(Y24:Y36) -> -1824804.128 | Z40: =SUM(Z24:Z36) -> -2731580.944 | AA40: 0 | AB40: 0 | AC40: 0 | AD40: 0 | AE40: 0 | AF40: -4556385.072 | AG40: -10044.82622 | AH40: -18773.35281 | AI40: 0 | AJ40: -35766.16091 | AK40: -64584.33994 | AL40: =SUM(AL24:AL36) -> -4556385.072 | AM40: =SUM(AM24:AM36) -> -1514833.295 | AN40: -1824804.128 | AO40: 0 | AP40: 0 | AQ40: 0 | AR40: 0 | AS40: -4246414.239 | AT40: -64584.33994 | AU40: 3935.186236 | AV40: -45810.98713 | AW40: -53538.9865 | AX40: -68377.15307 | AY40: -2731581 | AZ40: -72313 | BA40: -1514833.239 | BB40: 3935.846928 | BC40: -22268.05376 | BD40: -7422.684586 | BE40: -1540588.13 | BF40: -4330021 | BG40: -15229.60786
C42: LRAM Variance Account | D42: 1568 | I42: =E42+F42-G42+SUM(H42:H42) -> 0 | N42: =J42+K42-L42+M42 -> 0 | S42: =O42+P42-Q42+SUM(R42:R42) -> 0 | X42: =T42+U42-V42+W42 -> 0 | Y42: =S42 -> 0 | AF42: =Y42+Z42-AA42+SUM(AB42:AE42) -> 0 | AG42: =X42 -> 0 | AK42: =AG42+AH42-AI42+AJ42 -> 0 | AL42: =AF42 -> 0 | AS42: =AL42+AM42-AN42+SUM(AO42:AR42) -> 0 | AT42: =AK42 -> 0 | AX42: =AT42+AU42-AV42+AW42 -> 0 | AY42: 0 | AZ42: 0 | BA42: =AS42-AY42 -> 0 | BB42: =AX42-AZ42 -> 0 | BE42: =SUM(BA42:BD42) -> 0 | BG42: =BF42-SUM(AS42,AX42) -> 0
C44: Total including Account 1568 | E44: =E42+E40 -> 0 | F44: =F42+F40 -> 0 | G44: 0 | H44: 0 | I44: 0 | J44: 0 | K44: 0 | L44: 0 | M44: 0 | N44: 0 | O44: 0 | P44: 0 | Q44: 0 | R44: -1824804.128 | S44: -1824804.128 | T44: 0 | U44: 0 | V44: 0 | W44: -10044.82622 | X44: -10044.82622 | Y44: -1824804.128 | Z44: -2731580.944 | AA44: 0 | AB44: 0 | AC44: 0 | AD44: 0 | AE44: 0 | AF44: -4556385.072 | AG44: -10044.82622 | AH44: -18773.35281 | AI44: 0 | AJ44: -35766.16091 | AK44: -64584.33994 | AL44: -4556385.072 | AM44: -1514833.295 | AN44: -1824804.128 | AO44: 0 | AP44: 0 | AQ44: 0 | AR44: 0 | AS44: -4246414.239 | AT44: -64584.33994 | AU44: 3935.186236 | AV44: -45810.98713 | AW44: -53538.9865 | AX44: -68377.15307 | AY44: -2731581 | AZ44: -72313 | BA44: -1514833.239 | BB44: 3935.846928 | BC44: -22268.05376 | BD44: -7422.684586 | BE44: -1540588.13 | BF44: -4330021 | BG44: -15229.60786
C47: For all Board-Approved dispositions, please ensure that the disposition amount has the same sign (e.g: debit balances are to have a positive figure and credit balance are to have a negative figure) as per the related Board decision.
B50: 1 | C50: Please provide explanations for the nature of the adjustments. If the adjustment relates to previously Board Approved disposed balances, please provide amounts for adjustments and include supporting documentations.
B51: 2 | C51: For RSVA accounts only, report the net variance to the account during the year. For all other accounts, record the transactions during the year.
B52: 3 | C52: If the LDC’s rate year begins on January 1, 2015, the projected interest is recorded from January 1, 2014 to December 31, 2014 on the December 31, 2013 balances adjusted for the disposed balances approved by the Board in the 2014 rate decision. If the LDC’s rate year begins on May 1, 2015, the projected interest is recorded from January 1, 2014 to April 30, 2015 on the December 31, 2013 balances adjusted for the disposed interest balances approved by the Board in the 2014 rate decision.
B53: 4 | C53: Include Account 1595 as part of Group 1 accounts (lines 31, 32, 33 and 34) for review and disposition if the recovery (or refund) period has been completed. If the recovery (or refund) period has not been completed, do not include the respective balance in Account 1595 for disposition at this time.

Sheet 6. Billing Det. for Def-Var
AS1: As per Section 3.2.3 of the 2015 Filing Requirements for Electricity Distribution Rate Applications, an applicant may elect to dispose of the Group 1 account balances below the threshold. If doing so, please select YES from the adjacent drop-down cell and also indicate so in the Manager's Summary. If not, please select NO.
A13: In the green shaded cells, enter the most recent Board Approved volumetric forecast. If there is a material difference between the latest Board-approved volumetric forecast and the most recent 12-month actual volumetric data, use the most recent 12-month actual data. Do not enter data for the MicroFit class.
E15: Billed kWh for Non-RPP Customers | F15: Estimated kW for Non-RPP Customers | H15: 1590 Recovery Share Proportion* | I15: 1595 Recovery Share Proportion (2008) 1 | J15: 1595 Recovery Share Proportion (2009) 1 | K15: 1595 Recovery Share Proportion (2010) 1 | L15: 1595 Recovery Share Proportion (2011) 1 | M15: 1595 Recovery Share Proportion (2012) 1 | N15: 1568 LRAM Variance Account Class Allocation ($ amounts) | O15: Number of Customers for Residential and GS<50 classes3
A16: Rate Class | B16: Unit | C16: Metered kWh | D16: Metered kW
A17: RESIDENTIAL | B17: $/kWh | C17: 393848053.7 | E17: 22283799.06 | F17: =IF(ISERROR(D17/C17*E17), 0, D17/C17*E17) -> 0 | O17: 47976
A18: GENERAL SERVICE LESS THAN 50 KW | B18: $/kWh | C18: 179687810.2 | E18: 30835429.63 | F18: 0 | O18: 5517
A19: GENERAL SERVICE 50 TO 4,999 KW | B19: $/kW | C19: 705732689 | D19: 1581206.519 | E19: 668279224.1 | F19: 1497291.371
A20: LARGE USE | B20: $/kW | C20: 79638262.48 | D20: 153851.8077 | F20: 0
A21: UNMETERED SCATTERED LOAD | B21: $/kWh | C21: 1648665.919 | E21: 2746.68 | F21: 0
A22: STREET LIGHTING | B22: $/kW | C22: 7792005.668 | D22: 21835.28338 | E22: 7740903.14 | F22: 21692.08044
A23: microFIT
A24: EMBEDDED DISTRIBUTOR | B24: $/kW | C24: 28618000 | D24: 71600 | E24: 31854520.85 | F24: =IF(ISERROR(D24/C24*E24), 0, D24/C24*E24) -> 79697.52229
B26: Total | C26: =SUM(C17:C24) -> 1396965487 | D26: =SUM(D17:D24) -> 1828493.61 | E26: 760996623.4 | F26: 1598680.974 | H26: 0 | I26: 0 | J26: 0 | K26: 0 | L26: 0 | M26: 0 | N26: 0 | O26: 53493
M27: Balance as per Sheet 5 | N27: =ROUND('5. 2014 Continuity Schedule'!BE42, 0) -> 0
M28: Variance | N28: =N26-N27 -> 0
A30: Threshold Test
A31: Total Claim (including Account 1568) | B31: =+'5. 2014 Continuity Schedule'!BE44 -> -1540588.13
A32: Total Claim for Threshold Test (All Group 1 Accounts) | B32: =+'5. 2014 Continuity Schedule'!BE40 -> -1540588.13
A33: Threshold Test (Total claim per kWh) 2 | B33: =IF(ISERROR(B32/C26), 0, B32/C26) -> -0.001102810445 | D33: =IF(AND(B33>-0.001,B33<0.001),"Claim does not meet the threshold test.","") -> 
A35: =IF(AND(B33>-0.001, B33<0.001), AS1, "") -> 
A39: 1 Residual Account balance to be allocated to rate classes in proportion to the recovery share as established when rate riders were implemented.
A40: 2 The Threshold Test does not include the amount in 1568.
A41: 3 The proportion of customers for the Residential and GS<50 Classes will be used to allocate Account 1551.

Sheet 7. Allocating Def-Var Balances
A13: No input required. This workshseet allocates the deferral/variance account balances (Group 1, 1589, and 1568) to the appropriate classes as per the EDDVAR Report dated July 31, 2009
A15: Allocation of Group 1 Accounts (including Account 1568)
C16: % of Total kWh | D16: % of Total non-RPP kWh | E16: % of Customer Numbers ** | N16: 1595 (2008) | O16: 1595 (2009) | P16: 1595 (2010) | Q16: 1595 (2011) | R16: 1595 (2012) | S16: 1568
A17: Rate Class | F17: 1550 | G17: 1551 | H17: 1580 | I17: 1584 | J17: 1586 | K17: 1588 | L17: 1589 | M17: 1590
A19: RESIDENTIAL | C19: =VLOOKUP(A19, '6. Billing Det. for Def-Var'!A17:D24, 3,0)/'6. Billing Det. for Def-Var'!C26 -> 0.2819311267 | D19: =VLOOKUP(A19, '6. Billing Det. for Def-Var'!A17:E24, 5,0)/'6. Billing Det. for Def-Var'!E26 -> 0.02928238887 | E19: =VLOOKUP(A19, '6. Billing Det. for Def-Var'!A17:O24, 15,0)/'6. Billing Det. for Def-Var'!O26 -> 0.8968650104 | F19: =C19* '5. 2014 Continuity Schedule'!BE24 -> 29378.43664 | G19: =E19* '5. 2014 Continuity Schedule'!BE25 -> 29818.66711 | H19: =C19* '5. 2014 Continuity Schedule'!BE26 -> -269010.7621 | I19: =C19* '5. 2014 Continuity Schedule'!BE27 -> -122299.4429 | J19: =C19* '5. 2014 Continuity Schedule'!BE28 -> -77506.94707 | K19: =C19* '5. 2014 Continuity Schedule'!BE29 -> -132876.3403 | L19: =D19* '5. 2014 Continuity Schedule'!BE30 -> 13357.04467 | M19: ='6. Billing Det. for Def-Var'!H17* '5. 2014 Continuity Schedule'!$BE$31 -> 0 | N19: ='6. Billing Det. for Def-Var'!I17* '5. 2014 Continuity Schedule'!$BE$32 -> 0 | O19: ='6. Billing Det. for Def-Var'!J17* '5. 2014 Continuity Schedule'!$BE$33 -> 0 | P19: ='6. Billing Det. for Def-Var'!K17* '5. 2014 Continuity Schedule'!$BE$34 -> 0 | Q19: ='6. Billing Det. for Def-Var'!L17* '5. 2014 Continuity Schedule'!$BE$35 -> 0 | R19: ='6. Billing Det. for Def-Var'!M17* '5. 2014 Continuity Schedule'!$BE$36 -> 0 | S19: ='6. Billing Det. for Def-Var'!N17 -> 0
A20: GENERAL SERVICE LESS THAN 50 KW | C20: =VLOOKUP(A20, '6. Billing Det. for Def-Var'!A17:D24, 3,0)/'6. Billing Det. for Def-Var'!C26 -> 0.1286272366 | D20: =VLOOKUP(A20, '6. Billing Det. for Def-Var'!A17:E24, 5,0)/'6. Billing Det. for Def-Var'!E26 -> 0.04051979823 | E20: =VLOOKUP(A20, '6. Billing Det. for Def-Var'!A17:O24, 15,0)/'6. Billing Det. for Def-Var'!O26 -> 0.1031349896 | F20: =C20* '5. 2014 Continuity Schedule'!BE24 -> 13403.51158 | G20: =E20* '5. 2014 Continuity Schedule'!BE25 -> 3428.997549 | H20: =C20* '5. 2014 Continuity Schedule'!BE26 -> -122732.4962 | I20: =C20* '5. 2014 Continuity Schedule'!BE27 -> -55797.45508 | J20: =C20* '5. 2014 Continuity Schedule'!BE28 -> -35361.48895 | K20: =C20* '5. 2014 Continuity Schedule'!BE29 -> -60623.02048 | L20: =D20* '5. 2014 Continuity Schedule'!BE30 -> 18482.94404 | M20: ='6. Billing Det. for Def-Var'!H18* '5. 2014 Continuity Schedule'!$BE$31 -> 0 | N20: ='6. Billing Det. for Def-Var'!I18* '5. 2014 Continuity Schedule'!$BE$32 -> 0 | O20: ='6. Billing Det. for Def-Var'!J18* '5. 2014 Continuity Schedule'!$BE$33 -> 0 | P20: ='6. Billing Det. for Def-Var'!K18* '5. 2014 Continuity Schedule'!$BE$34 -> 0 | Q20: ='6. Billing Det. for Def-Var'!L18* '5. 2014 Continuity Schedule'!$BE$35 -> 0 | R20: ='6. Billing Det. for Def-Var'!M18* '5. 2014 Continuity Schedule'!$BE$36 -> 0 | S20: ='6. Billing Det. for Def-Var'!N18 -> 0
A21: GENERAL SERVICE 50 TO 4,999 KW | C21: =VLOOKUP(A21, '6. Billing Det. for Def-Var'!A17:D24, 3,0)/'6. Billing Det. for Def-Var'!C26 -> 0.5051897814 | D21: =VLOOKUP(A21, '6. Billing Det. for Def-Var'!A17:E24, 5,0)/'6. Billing Det. for Def-Var'!E26 -> 0.8781631922 | F21: =C21* '5. 2014 Continuity Schedule'!BE24 -> 52642.94922 | G21: =E21* '5. 2014 Continuity Schedule'!BE25 -> 0 | H21: =C21* '5. 2014 Continuity Schedule'!BE26 -> -482037.8995 | I21: =C21* '5. 2014 Continuity Schedule'!BE27 -> -219147.2419 | J21: =C21* '5. 2014 Continuity Schedule'!BE28 -> -138883.9824 | K21: =C21* '5. 2014 Continuity Schedule'!BE29 -> -238099.8867 | L21: =D21* '5. 2014 Continuity Schedule'!BE30 -> 400570.6308 | M21: ='6. Billing Det. for Def-Var'!H19* '5. 2014 Continuity Schedule'!$BE$31 -> 0 | N21: ='6. Billing Det. for Def-Var'!I19* '5. 2014 Continuity Schedule'!$BE$32 -> 0 | O21: ='6. Billing Det. for Def-Var'!J19* '5. 2014 Continuity Schedule'!$BE$33 -> 0 | P21: ='6. Billing Det. for Def-Var'!K19* '5. 2014 Continuity Schedule'!$BE$34 -> 0 | Q21: ='6. Billing Det. for Def-Var'!L19* '5. 2014 Continuity Schedule'!$BE$35 -> 0 | R21: ='6. Billing Det. for Def-Var'!M19* '5. 2014 Continuity Schedule'!$BE$36 -> 0 | S21: ='6. Billing Det. for Def-Var'!N19 -> 0
A22: LARGE USE | C22: =VLOOKUP(A22, '6. Billing Det. for Def-Var'!A17:D24, 3,0)/'6. Billing Det. for Def-Var'!C26 -> 0.05700803866 | D22: =VLOOKUP(A22, '6. Billing Det. for Def-Var'!A17:E24, 5,0)/'6. Billing Det. for Def-Var'!E26 -> 0 | F22: =C22* '5. 2014 Continuity Schedule'!BE24 -> 5940.482952 | G22: =E22* '5. 2014 Continuity Schedule'!BE25 -> 0 | H22: =C22* '5. 2014 Continuity Schedule'!BE26 -> -54395.46922 | I22: =C22* '5. 2014 Continuity Schedule'!BE27 -> -24729.62617 | J22: =C22* '5. 2014 Continuity Schedule'!BE28 -> -15672.3349 | K22: =C22* '5. 2014 Continuity Schedule'!BE29 -> -26868.33353 | L22: =D22* '5. 2014 Continuity Schedule'!BE30 -> 0 | M22: ='6. Billing Det. for Def-Var'!H20* '5. 2014 Continuity Schedule'!$BE$31 -> 0 | N22: ='6. Billing Det. for Def-Var'!I20* '5. 2014 Continuity Schedule'!$BE$32 -> 0 | O22: ='6. Billing Det. for Def-Var'!J20* '5. 2014 Continuity Schedule'!$BE$33 -> 0 | P22: ='6. Billing Det. for Def-Var'!K20* '5. 2014 Continuity Schedule'!$BE$34 -> 0 | Q22: ='6. Billing Det. for Def-Var'!L20* '5. 2014 Continuity Schedule'!$BE$35 -> 0 | R22: ='6. Billing Det. for Def-Var'!M20* '5. 2014 Continuity Schedule'!$BE$36 -> 0 | S22: ='6. Billing Det. for Def-Var'!N20 -> 0
A23: UNMETERED SCATTERED LOAD | C23: =VLOOKUP(A23, '6. Billing Det. for Def-Var'!A17:D24, 3,0)/'6. Billing Det. for Def-Var'!C26 -> 0.001180176557 | D23: =VLOOKUP(A23, '6. Billing Det. for Def-Var'!A17:E24, 5,0)/'6. Billing Det. for Def-Var'!E26 -> 3.609319563e-06 | F23: =C23* '5. 2014 Continuity Schedule'!BE24 -> 122.9794759 | G23: =E23* '5. 2014 Continuity Schedule'!BE25 -> 0 | H23: =C23* '5. 2014 Continuity Schedule'!BE26 -> -1126.091322 | I23: =C23* '5. 2014 Continuity Schedule'!BE27 -> -511.9510468 | J23: =C23* '5. 2014 Continuity Schedule'!BE28 -> -324.4476161 | K23: =C23* '5. 2014 Continuity Schedule'!BE29 -> -556.226422 | L23: =D23* '5. 2014 Continuity Schedule'!BE30 -> 1.646376695 | M23: ='6. Billing Det. for Def-Var'!H21* '5. 2014 Continuity Schedule'!$BE$31 -> 0 | N23: ='6. Billing Det. for Def-Var'!I21* '5. 2014 Continuity Schedule'!$BE$32 -> 0 | O23: ='6. Billing Det. for Def-Var'!J21* '5. 2014 Continuity Schedule'!$BE$33 -> 0 | P23: ='6. Billing Det. for Def-Var'!K21* '5. 2014 Continuity Schedule'!$BE$34 -> 0 | Q23: ='6. Billing Det. for Def-Var'!L21* '5. 2014 Continuity Schedule'!$BE$35 -> 0 | R23: ='6. Billing Det. for Def-Var'!M21* '5. 2014 Continuity Schedule'!$BE$36 -> 0 | S23: ='6. Billing Det. for Def-Var'!N21 -> 0
A24: STREET LIGHTING | C24: =VLOOKUP(A24, '6. Billing Det. for Def-Var'!A17:D24, 3,0)/'6. Billing Det. for Def-Var'!C26 -> 0.005577808285 | D24: =VLOOKUP(A24, '6. Billing Det. for Def-Var'!A17:E24, 5,0)/'6. Billing Det. for Def-Var'!E26 -> 0.01017205977 | F24: =C24* '5. 2014 Continuity Schedule'!BE24 -> 581.2316264 | G24: =E24* '5. 2014 Continuity Schedule'!BE25 -> 0 | H24: =C24* '5. 2014 Continuity Schedule'!BE26 -> -5322.187994 | I24: =C24* '5. 2014 Continuity Schedule'!BE27 -> -2419.608128 | J24: =C24* '5. 2014 Continuity Schedule'!BE28 -> -1533.420224 | K24: =C24* '5. 2014 Continuity Schedule'!BE29 -> -2628.864577 | L24: =D24* '5. 2014 Continuity Schedule'!BE30 -> 4639.944416 | M24: ='6. Billing Det. for Def-Var'!H22* '5. 2014 Continuity Schedule'!$BE$31 -> 0 | N24: ='6. Billing Det. for Def-Var'!I22* '5. 2014 Continuity Schedule'!$BE$32 -> 0 | O24: ='6. Billing Det. for Def-Var'!J22* '5. 2014 Continuity Schedule'!$BE$33 -> 0 | P24: ='6. Billing Det. for Def-Var'!K22* '5. 2014 Continuity Schedule'!$BE$34 -> 0 | Q24: ='6. Billing Det. for Def-Var'!L22* '5. 2014 Continuity Schedule'!$BE$35 -> 0 | R24: ='6. Billing Det. for Def-Var'!M22* '5. 2014 Continuity Schedule'!$BE$36 -> 0 | S24: ='6. Billing Det. for Def-Var'!N22 -> 0
A25: microFIT | C25: 0 | D25: 0 | E25: 0 | F25: =C25* '5. 2014 Continuity Schedule'!BE24 -> 0 | G25: =E25* '5. 2014 Continuity Schedule'!BE25 -> 0 | H25: =C25* '5. 2014 Continuity Schedule'!BE26 -> 0 | I25: =C25* '5. 2014 Continuity Schedule'!BE27 -> 0 | J25: =C25* '5. 2014 Continuity Schedule'!BE28 -> 0 | K25: =C25* '5. 2014 Continuity Schedule'!BE29 -> 0 | L25: =D25* '5. 2014 Continuity Schedule'!BE30 -> 0 | M25: ='6. Billing Det. for Def-Var'!H23* '5. 2014 Continuity Schedule'!$BE$31 -> 0 | N25: ='6. Billing Det. for Def-Var'!I23* '5. 2014 Continuity Schedule'!$BE$32 -> 0 | O25: ='6. Billing Det. for Def-Var'!J23* '5. 2014 Continuity Schedule'!$BE$33 -> 0 | P25: ='6. Billing Det. for Def-Var'!K23* '5. 2014 Continuity Schedule'!$BE$34 -> 0 | Q25: ='6. Billing Det. for Def-Var'!L23* '5. 2014 Continuity Schedule'!$BE$35 -> 0 | R25: ='6. Billing Det. for Def-Var'!M23* '5. 2014 Continuity Schedule'!$BE$36 -> 0 | S25: ='6. Billing Det. for Def-Var'!N23 -> 0
A26: EMBEDDED DISTRIBUTOR | C26: =VLOOKUP(A26, '6. Billing Det. for Def-Var'!A17:D24, 3,0)/'6. Billing Det. for Def-Var'!C26 -> 0.0204858318 | D26: =VLOOKUP(A26, '6. Billing Det. for Def-Var'!A17:E24, 5,0)/'6. Billing Det. for Def-Var'!E26 -> 0.04185895163 | F26: =C26* '5. 2014 Continuity Schedule'!BE24 -> 2134.711831 | G26: =E26* '5. 2014 Continuity Schedule'!BE25 -> 0 | H26: =C26* '5. 2014 Continuity Schedule'!BE26 -> -19547.00529 | I26: =C26* '5. 2014 Continuity Schedule'!BE27 -> -8886.588174 | J26: =C26* '5. 2014 Continuity Schedule'!BE28 -> -5631.851651 | K26: =C26* '5. 2014 Continuity Schedule'!BE29 -> -9655.132409 | L26: =D26* '5. 2014 Continuity Schedule'!BE30 -> 19093.79351 | M26: ='6. Billing Det. for Def-Var'!H24* '5. 2014 Continuity Schedule'!$BE$31 -> 0 | N26: ='6. Billing Det. for Def-Var'!I24* '5. 2014 Continuity Schedule'!$BE$32 -> 0 | O26: ='6. Billing Det. for Def-Var'!J24* '5. 2014 Continuity Schedule'!$BE$33 -> 0 | P26: ='6. Billing Det. for Def-Var'!K24* '5. 2014 Continuity Schedule'!$BE$34 -> 0 | Q26: ='6. Billing Det. for Def-Var'!L24* '5. 2014 Continuity Schedule'!$BE$35 -> 0 | R26: ='6. Billing Det. for Def-Var'!M24* '5. 2014 Continuity Schedule'!$BE$36 -> 0 | S26: ='6. Billing Det. for Def-Var'!N24 -> 0
A28: Total | C28: =SUM(C19:C26) -> 1 | D28: 1 | E28: 1 | F28: 104204.3033 | G28: 33247.66466 | H28: -954171.9116 | I28: -433791.9134 | J28: -274914.4728 | K28: -471307.8045 | L28: 456146.0038 | M28: =SUM(M19:M27) -> 0 | N28: 0 | O28: 0 | P28: 0 | Q28: 0 | R28: 0 | S28: 0
A31: * RSVA - Power (Excluding Global Adjustment)
A32: ** Used to allocate Account 1551 as this account records the variances arising from the Smart Metering Entity Charges to Residential and GS<50 customers.

Sheet 8. Calculation of Def-Var RR
A12: Input required at cell C15 only. This workshseet calculates rate riders related to the Deferral/Variance Account Disposition (if applicable), associated rate riders for the global adjustment account (1589) and Account 1568. Rate Riders will not be generated for the microFIT class.
A15: Please indicate the Rate Rider Recovery Period (in years) | C15: 1
E17: Balance of Accounts Allocated by kWh/kW (RPP) or Distribution Revenue | F17: Deferral/Variance Account Rate Rider | G17: Allocation of Balance in Account 1589 | H17: Billed kWh or Estimated kW for Non-RPP Customers | I17: Global Adjustment Rate Rider | J17: Allocation of Account 1568 | K17: Account 1568 Rate Rider
A18: Rate Class | B18: Unit | C18: Billed kWh | D18: Billed kW or kVA
A20: RESIDENTIAL | B20: $/kWh | C20: 393848053.7 | E20: =SUM('7. Allocating Def-Var Balances'!F19:K19)+SUM('7. Allocating Def-Var Balances'!M19:R19) -> -542496.3886 | F20: =+E20/C20 -> -0.001377425592 | G20: 13357.04467 | H20: 22283799.06 | I20: =+G20/H20 -> 0.0005994060811
A21: GENERAL SERVICE LESS THAN 50 KW | B21: $/kWh | C21: 179687810.2 | E21: =SUM('7. Allocating Def-Var Balances'!F20:K20)+SUM('7. Allocating Def-Var Balances'!M20:R20) -> -257681.9516 | F21: =+E21/C21 -> -0.001434053603 | G21: 18482.94404 | H21: 30835429.63 | I21: =+G21/H21 -> 0.0005994060811
A22: GENERAL SERVICE 50 TO 4,999 KW | B22: $/kW | C22: 705732689 | D22: 1581206.519 | E22: =SUM('7. Allocating Def-Var Balances'!F21:K21)+SUM('7. Allocating Def-Var Balances'!M21:R21) -> -1025526.061 | F22: =+E22/D22 -> -0.6485718651 | G22: 400570.6308 | H22: 1497291.371 | I22: =+G22/H22 -> 0.2675301805
A23: LARGE USE | B23: $/kW | C23: 79638262.48 | D23: 153851.8077 | E23: =SUM('7. Allocating Def-Var Balances'!F22:K22)+SUM('7. Allocating Def-Var Balances'!M22:R22) -> -115725.2809 | F23: =+E23/D23 -> -0.7521866829 | G23: 0 | H23: 0 | I23: 0
A24: UNMETERED SCATTERED LOAD | B24: $/kWh | C24: 1648665.919 | E24: =SUM('7. Allocating Def-Var Balances'!F23:K23)+SUM('7. Allocating Def-Var Balances'!M23:R23) -> -2395.736931 | F24: =+E24/C24 -> -0.001453136687 | G24: 1.646376695 | H24: 2746.68 | I24: =+G24/H24 -> 0.0005994060811
A25: STREET LIGHTING | B25: $/kW | C25: 7792005.668 | D25: 21835.28338 | E25: =SUM('7. Allocating Def-Var Balances'!F24:K24)+SUM('7. Allocating Def-Var Balances'!M24:R24) -> -11322.8493 | F25: =+E25/D25 -> -0.5185574695 | G25: 4639.944416 | H25: 21692.08044 | I25: =+G25/H25 -> 0.2139003877
A26: microFIT
A27: EMBEDDED DISTRIBUTOR | B27: $/kW | C27: 28618000 | D27: 71600 | E27: =SUM('7. Allocating Def-Var Balances'!F26:K26)+SUM('7. Allocating Def-Var Balances'!M26:R26) -> -41585.86569 | F27: =+E27/D27 -> -0.5808081801 | G27: 19093.79351 | H27: 79697.52229 | I27: =+G27/H27 -> 0.2395782574
A28: Total | C28: =SUM(C20:C27) -> 1396965487 | D28: =SUM(D20:D27) -> 1828493.61 | E28: =SUM(E20:E27) -> -1996734.134 | G28: =SUM(G20:G27) -> 456146.0038 | H28: =SUM(H20:H27) -> 54720656.35 | J28: =SUM(J20:J27) -> 0
A32: One or more rate classes appear to have negligible rate riders in columns F and/or I. As per Appendix B of the Filing Requirements, please provide details of the Applicant's proposal in the Manager's Summary.

Sheet 9. STS - Billing Det & Rates
A11: Shared Tax Savings
A13: ="Enter your " & '1. Information Sheet'!F35 & " Board-Approved Billing Determinents into columns B, C and D." -> Enter your Board-Approved Billing Determinents into columns B, C and D.
A14: ="Enter your " & '1. Information Sheet'!F35 & " Board-Approved Base monthly service and volumetric charges into columns G, H and I." -> Enter your Board-Approved Base monthly service and volumetric charges into columns G, H and I.
A16: Rate Class | B16: Units | C16: Re-based Billed Customers or Connections | D16: Re-based Billed kWh | E16: Re-based Billed kW (if applicable) | G16: ='1. Information Sheet'!F32 &" Base Monthly Service Charge" -> 2011 Base Monthly Service Charge | H16: ='1. Information Sheet'!F32 &" Base Distribution Volumetric Rate kWh" -> 2011 Base Distribution Volumetric Rate kWh | I16: ='1. Information Sheet'!F32 &" Base Distribution Volumetric Rate kW" -> 2011 Base Distribution Volumetric Rate kW
A17: RESIDENTIAL | B17: $/kWh | C17: 46238 | D17: 393848053.7 | E17: 0 | G17: 14.56 | H17: 0.0184 | I17: 0
A18: GENERAL SERVICE LESS THAN 50 KW | B18: $/kWh | C18: 5427.547578 | D18: 179687810.2 | E18: 0 | G18: 30.63 | H18: 0.0137 | I18: 0
A19: GENERAL SERVICE 50 TO 4,999 KW | B19: $/kW | C19: 666.6431465 | D19: 705732689 | E19: 1581206.519 | G19: 162.82 | H19: 0 | I19: 4.3073
A20: LARGE USE | B20: $/kW | C20: 1 | D20: 79638262.48 | E20: 153851.8077 | G20: 6686.47 | H20: 0 | I20: 3.1991
A21: UNMETERED SCATTERED LOAD | B21: $/kWh | C21: 547.0223936 | D21: 1648665.919 | E21: 0 | G21: 15.31 | H21: 0.019 | I21: 0
A22: STREET LIGHTING | B22: $/kW | C22: 13259.20557 | D22: 7792005.668 | E22: 21835.28338 | G22: 0.33 | H22: 0 | I22: 8.3232
A23: microFIT
A24: EMBEDDED DISTRIBUTOR | B24: $/kW | C24: 1 | D24: 28618000 | E24: 71600 | G24: 0 | H24: 0 | I24: 0.012

Sheet 10. STS - Rebased Rev
A12: Calculation of Rebased Revenue Requirement. No input required.
A15: Rate Class | C15: Re-based Billed Customers or Connections | D15: Re-based Billed kWh | E15: Re-based Billed kW | G15: Rate ReBal Base Service Charge | H15: Rate ReBal Base Distribution Volumetric Rate kWh | I15: Rate ReBal Base Distribution Volumetric Rate kW | K15: Service Charge Revenue | L15: Distribution Volumetric Rate Revenue kWh | M15: Distribution Volumetric Rate Revenue kW | N15: Revenue Requirement from Rates | P15: Service Charge % Revenue | Q15: Distribution Volumetric Rate % Revenue kWh | R15: Distribution Volumetric Rate % Revenue kW | S15: Total % Revenue
C16: A | D16: B | E16: C | G16: D | H16: E | I16: F | K16: G = A * D *12 | L16: H = B * E | M16: I = C * F | N16: J = G + H + I | P16: K = G / J | Q16: L = H / J | R16: M = I / J | S16: N = J / R
A17: RESIDENTIAL | C17: 46238 | D17: 393848053.7 | E17: 0 | G17: 14.56 | H17: 0.0184 | I17: 0 | K17: =G17*C17*12 -> 8078703.36 | L17: =H17*D17 -> 7246804.187 | M17: 0 | N17: =SUM(K17,L17,M17) -> 15325507.55 | P17: =IF(ISERROR(K17/N17),0,K17/N17) -> 0.5271409991 | Q17: =IF(ISERROR(L17/N17),0,L17/N17) -> 0.4728590009 | R17: =IF(ISERROR(M17/N17),0,M17/N17) -> 0 | S17: =N17/N25 -> 0.5314938543
A18: GENERAL SERVICE LESS THAN 50 KW | C18: 5427.547578 | D18: 179687810.2 | E18: 0 | G18: 30.63 | H18: 0.0137 | I18: 0 | K18: 1994949.388 | L18: =H18*D18 -> 2461723 | M18: 0 | N18: 4456672.388 | P18: 0.4476320479 | Q18: 0.5523679521 | R18: 0 | S18: =N18/N25 -> 0.1545589259
A19: GENERAL SERVICE 50 TO 4,999 KW | C19: 666.6431465 | D19: 705732689 | E19: 1581206.519 | G19: 162.82 | H19: 0 | I19: 4.3073 | K19: 1302514.045 | L19: 0 | M19: =I19*E19 -> 6810730.841 | N19: 8113244.886 | P19: 0.16054169 | Q19: 0 | R19: 0.83945831 | S19: =N19/N25 -> 0.2813701133
A20: LARGE USE | C20: 1 | D20: 79638262.48 | E20: 153851.8077 | G20: 6686.47 | H20: 0 | I20: 3.1991 | K20: 80237.64 | L20: 0 | M20: =I20*E20 -> 492187.3179 | N20: 572424.9579 | P20: 0.1401714563 | Q20: 0 | R20: 0.8598285437 | S20: =N20/N25 -> 0.01985189373
A21: UNMETERED SCATTERED LOAD | C21: 547.0223936 | D21: 1648665.919 | E21: 0 | G21: 15.31 | H21: 0.019 | I21: 0 | K21: 100498.9541 | L21: =H21*D21 -> 31324.65246 | M21: 0 | N21: 131823.6066 | P21: 0.7623744846 | Q21: 0.2376255154 | R21: 0 | S21: =N21/N25 -> 0.004571687857
A22: STREET LIGHTING | C22: 13259.20557 | D22: 7792005.668 | E22: 21835.28338 | G22: 0.33 | H22: 0 | I22: 8.3232 | K22: 52506.45404 | L22: 0 | M22: =I22*E22 -> 181739.4307 | N22: 234245.8847 | P22: 0.2241510202 | Q22: 0 | R22: 0.7758489798 | S22: =N22/N25 -> 0.008123727566
A23: microFIT | K23: 0 | L23: 0 | M23: 0 | N23: 0 | P23: 0 | Q23: 0 | R23: 0 | S23: =N23/N25 -> 0
A24: EMBEDDED DISTRIBUTOR | C24: 1 | D24: 28618000 | E24: 71600 | G24: 0 | H24: 0 | I24: 0.012 | K24: 0 | L24: 0 | M24: =I24*E24 -> 859.2 | N24: 859.2 | P24: 0 | Q24: 0 | R24: 1 | S24: =N24/N25 -> 2.979735048e-05
A25: Total | C25: =SUM(C17:C24) -> 66140.41868 | D25: =SUM(D17:D24) -> 1396965487 | E25: =SUM(E17:E24) -> 1828493.61 | K25: =SUM(K17:K24) -> 11609409.84 | L25: =SUM(L17:L24) -> 9739851.84 | M25: =SUM(M17:M24) -> 7485516.789 | N25: =SUM(N17:N24) -> 28834778.47 | S25: =SUM(S17:S24) -> 1

Sheet 11. STS - Tax Change
T1: Rate Base | U1: Federal Tax Rate
T2: 500000 | U2: 0.11
T3: 10000000 | U3: 0.11
T4: =T3+100000 -> 10100000 | U4: 0.11
T5: =T4+100000 -> 10200000 | U5: 0.11
T6: 10300000 | U6: 0.11
T7: 10400000 | U7: 0.11
T8: 10500000 | U8: 0.11
T9: 10600000 | U9: 0.11
T10: 10700000 | U10: 0.11
T11: 10800000 | U11: 0.11
T12: 10900000 | U12: 0.11
A13: Summary - Sharing of Tax Change Forecast Amounts | T13: 11000000 | U13: 0.11
T14: 11100000 | U14: 0.111
A15: ="For the " & '1. Information Sheet'!F35 & " year, enter any Tax Credits from the Cost of Service Tax Calculation (Positive #)" -> For the year, enter any Tax Credits from the Cost of Service Tax Calculation (Positive #) | L15: 136997 | T15: 11200000 | U15: =U14+0.13% -> 0.1123 | V15: =U15-U14 -> 0.0013
T16: 11300000 | U16: =U15+0.13% -> 0.1136 | V16: =U16-U15 -> 0.0013
T17: 11400000 | U17: 0.1149 | V17: 0.0013
A18: 1. Tax Related Amounts Forecast from Capital Tax Rate Changes | L18: ='1. Information Sheet'!F32 -> 2011 | N18: 2015 | T18: 11500000 | U18: 0.1162 | V18: 0.0013
A19: Taxable Capital (if you are not claiming capital tax, please enter your Board-Approved Rate Base) | L19: 150996205.6 | N19: =L19 -> 150996205.6 | T19: 11600000 | U19: =U18+0.12% -> 0.1174 | V19: 0.0012
T20: 11700000 | U20: =U19+0.12% -> 0.1186 | V20: 0.0012
A21: Deduction from taxable capital up to $15,000,000 | N21: =L21 -> 0 | T21: 11800000 | U21: 0.1198 | V21: 0.0012
T22: 11900000 | U22: 0.121 | V22: 0.0012
A23: Net Taxable Capital | L23: =L19-L21 -> 150996205.6 | N23: =N19-N21 -> 150996205.6 | T23: 12000000 | U23: =U22+0.112% -> 0.12212 | V23: 0.00112
T24: 12100000 | U24: =U23+0.112% -> 0.12324 | V24: 0.00112
A25: Rate | N25: 0 | T25: 12200000 | U25: 0.12436 | V25: 0.00112
T26: 12300000 | U26: 0.12548 | V26: 0.00112
A27: Ontario Capital Tax (Deductible, not grossed-up) | L27: =IF(L23>0, L23*L25, 0)*181/365 -> 0 | N27: 0 | T27: 12400000 | U27: 0.1266 | V27: 0.00112
T28: 12500000 | U28: 0.12772 | V28: 0.00112
A29: 2. Tax Related Amounts Forecast from lncome Tax Rate Changes | T29: 12600000 | U29: =U28+0.102% -> 0.12874 | V29: 0.00102
A30: Regulatory Taxable Income | L30: 3183169.7 | N30: =L30 -> 3183169.7 | T30: 12700000 | U30: =U29+0.102% -> 0.12976 | V30: 0.00102
T31: 12800000 | U31: 0.13078 | V31: 0.00102
A32: Corporate Tax Rate | L32: 0.2412016895 | N32: =IF(N30=0,0,IF(N30<=500000,4.5%+11%,IF(N30>500000,(11.5%*N30-35000)/N30+VLOOKUP(N19,T:U,2,TRUE),""))) -> 0.2540046704 | T32: 12900000 | U32: 0.1318 | V32: 0.00102
T33: 13000000 | U33: 0.13282 | V33: 0.00102
A34: Tax Impact | L34: 767785.91 | N34: =N30*N32-L15 -> 671542.9705 | T34: 13100000 | U34: =U33+0.096% -> 0.13378 | V34: 0.00096
T35: 13200000 | U35: =U34+0.096% -> 0.13474 | V35: 0.00096
A36: Grossed-up Tax Amount | L36: 1011844.52 | N36: =N34/(1-N32) -> 900197.2852 | T36: 13300000 | U36: 0.1357 | V36: 0.00096
T37: 13400000 | U37: 0.13666 | V37: 0.00096
A38: Tax Related Amounts Forecast from Capital Tax Rate Changes | L38: =L27 -> 0 | N38: =N27 -> 0 | T38: 13500000 | U38: 0.13762 | V38: 0.00096
T39: 13600000 | U39: =U38+0.088% -> 0.1385 | V39: 0.00088
A40: Tax Related Amounts Forecast from lncome Tax Rate Changes | L40: =L36 -> 1011844.52 | N40: =N36 -> 900197.2852 | T40: 13700000 | U40: =U39+0.088% -> 0.13938 | V40: 0.00088
T41: 13800000 | U41: 0.14026 | V41: 0.00088
A42: Total Tax Related Amounts | L42: =SUM(L40,L38) -> 1011844.52 | N42: =SUM(N40,N38) -> 900197.2852 | T42: 13900000 | U42: 0.14114 | V42: 0.00088
T43: 14000000 | U43: 0.14202 | V43: 0.00088
A44: Incremental Tax Savings | N44: =N42-L42 -> -111647.2348 | T44: 14100000 | U44: =U43+0.082% -> 0.14284 | V44: 0.00082
T45: 14200000 | U45: =U44+0.082% -> 0.14366 | V45: 0.00082
A46: Sharing of Tax Savings (50%) | N46: =0.5*N44 -> -55823.61738 | T46: 14300000 | U46: 0.14448 | V46: 0.00082
T47: 14400000 | U47: 0.1453 | V47: 0.00082
T48: 14500000 | U48: 0.14612 | V48: 0.00082
T49: 14600000 | U49: =U48+0.076% -> 0.14688 | V49: 0.00076
T50: 14700000 | U50: =U49+0.076% -> 0.14764 | V50: 0.00076
T51: 14800000 | U51: 0.1484 | V51: 0.00076
T52: 14900000 | U52: 0.14916 | V52: 0.00076
T53: 15000000 | U53: 0.15 | V53: 0.00084

Sheet 12. STS - Tax Change RR
A11: This worksheet calculates a tax change volumetric rate rider. If the rate riders are material (round to 4 decimal places), then the outputs in columns M and O will appear on Sheet 27 - Final Tariff Schedule.
A15: Rate Class | C15: Total Revenue $ by Rate Class | E15: Total Revenue % by Rate Class | G15: Allocation of Tax Savings by Rate Class | I15: Billed kWh | K15: Billed kW | M15: Distribution Volumetric Rate kWh Rate Rider | O15: Distribution Volumetric Rate kW Rate Rider
A17: RESIDENTIAL | C17: 15325507.55 | E17: =C17/C25 -> 0.5314938543 | G17: =E17*G25 -> -29669.91096 | I17: 393848053.7 | K17: 0 | M17: =ROUND(G17/I17,4) -> -0.0001
A18: GENERAL SERVICE LESS THAN 50 KW | C18: 4456672.388 | E18: =C18/C25 -> 0.1545589259 | G18: =E18*G25 -> -8628.038745 | I18: 179687810.2 | K18: 0 | M18: =+G18/I18 -> -4.801682838e-05
A19: GENERAL SERVICE 50 TO 4,999 KW | C19: 8113244.886 | E19: =C19/C25 -> 0.2813701133 | G19: =E19*G25 -> -15707.09829 | I19: 705732689 | K19: 1581206.519 | O19: =ROUND(G19/K19,4) -> -0.0099
A20: LARGE USE | C20: 572424.9579 | E20: =C20/C25 -> 0.01985189373 | G20: =E20*G25 -> -1108.204572 | I20: 79638262.48 | K20: 153851.8077 | O20: =ROUND(G20/K20,4) -> -0.0072
A21: UNMETERED SCATTERED LOAD | C21: 131823.6066 | E21: =C21/C25 -> 0.004571687857 | G21: =E21*G25 -> -255.2081657 | I21: 1648665.919 | K21: 0 | M21: =ROUND(G21/I21,4) -> -0.0002
A22: STREET LIGHTING | C22: 234245.8847 | E22: =C22/C25 -> 0.008123727566 | G22: =E22*G25 -> -453.4958806 | I22: 7792005.668 | K22: 21835.28338 | O22: =ROUND(G22/K22,4) -> -0.0208
A23: microFIT | C23: 0 | E23: =C23/C25 -> 0 | G23: =E23*G25 -> 0
A24: EMBEDDED DISTRIBUTOR | C24: 859.2 | E24: =C24/C25 -> 2.979735048e-05 | G24: =E24*G25 -> -1.66339597 | I24: 28618000 | K24: 71600 | O24: =ROUND(G24/K24,4) -> 0
A25: Total | C25: =SUM(C17:C24) -> 28834778.47 | E25: =SUM(E17:E24) -> 1 | G25: -55823.62 | I25: =SUM(I17:I24) -> 1396965487 | K25: =SUM(K17:K24) -> 1828493.61
A27: One or more rate classes appear to have negligible rate riders in columns M and/or O. As per Appendix B of the Filing Requirements, please provide details of the Applicant's proposal in the Manager's Summary.

Sheet 13. RTSR Rate Sheet
A13: No input required. This sheet consolidates all Current Retail Transmission Rates entered on Sheet 4.
A15: Rate Class | B15: Rate Description | C15: Unit | D15: RTSR-Network | E15: RTSR-Connection
A17: RESIDENTIAL | B17: Retail Transmission Rate - Network Service Rate | C17: $/kWh | D17: 0.0076
A18: RESIDENTIAL | B18: Retail Transmission Rate - Line and Transformation Connection Service Rate | C18: $/kWh | E18: 0.0022
A19: GENERAL SERVICE LESS THAN 50 KW | B19: Retail Transmission Rate - Network Service Rate | C19: $/kWh | D19: 0.0069
A20: GENERAL SERVICE LESS THAN 50 KW | B20: Retail Transmission Rate - Line and Transformation Connection Service Rate | C20: $/kWh | E20: 0.002
A21: GENERAL SERVICE 50 TO 4,999 KW | B21: Retail Transmission Rate - Network Service Rate - (less than 1,000 kW) | C21: $/kW | D21: 2.8378
A22: GENERAL SERVICE 50 TO 4,999 KW | B22: Retail Transmission Rate - Network Service Rate - Interval Metered (less than 1,000 kW) | C22: $/kW | D22: 3.0141
A23: GENERAL SERVICE 50 TO 4,999 KW | B23: Retail Transmission Rate - Network Service Rate - Interval Metered (1,000 to 4,999 kW) | C23: $/kW | D23: 3.0102
A24: GENERAL SERVICE 50 TO 4,999 KW | B24: Retail Transmission Rate - Line and Transformation Connection Service Rate - (less than 1,000 kW) | C24: $/kW | E24: 0.7815
A25: GENERAL SERVICE 50 TO 4,999 KW | B25: Retail Transmission Rate - Line and Transformation Connection Service Rate - Interval Metered (less than 1,000 kW) | C25: $/kW | E25: 0.9761
A26: GENERAL SERVICE 50 TO 4,999 KW | B26: Retail Transmission Rate - Line and Transformation Connection Service Rate - Interval Metered (1,000 to 4,999 kW) | C26: $/kW | E26: 0.975
A27: LARGE USE | B27: Retail Transmission Rate - Network Service Rate - Interval Metered | C27: $/kW | D27: 3.3372
A28: LARGE USE | B28: Retail Transmission Rate - Line and Transformation Connection Service Rate - Interval Metered | C28: $/kW | E28: 0.9795
A29: UNMETERED SCATTERED LOAD | B29: Retail Transmission Rate - Network Service Rate | C29: $/kWh | D29: 0.0069
A30: UNMETERED SCATTERED LOAD | B30: Retail Transmission Rate - Line and Transformation Connection Service Rate | C30: $/kWh | E30: 0.002
A31: STREET LIGHTING | B31: Retail Transmission Rate - Network Service Rate | C31: $/kW | D31: 2.1404
A32: STREET LIGHTING | B32: Retail Transmission Rate - Line and Transformation Connection Service Rate | C32: $/kW | E32: 0.6039

Sheet 14. RTSR RRR Data
A12: In the green shaded cells, enter the most recent reported RRR billing determinants. Please ensure that billing determinants are non-loss adjusted.
A14: Rate Class | B14: Rate Description | C14: Unit | D14: Non-Loss Adjusted Metered kWh | E14: Non-Loss Adjusted Metered kW | F14: Applicable Loss Factor | H14: Load Factor | I14: Loss Adjusted Billed kWh | J14: Billed kW
A15: RESIDENTIAL | B15: Retail Transmission Rate - Network Service Rate | C15: $/kWh | D15: 409442945 | E15: 0 | F15: 1.0404 | H15: =IF(C15="$/kW", D15/(E15* 30.4 * 24), "" ) ->  | I15: =IF(OR(F15=0, OR(ISBLANK(F15), TRIM(F15)="")), F15, F15 * D15) -> 425984440 | J15: =IF(OR(F15=0, OR(ISBLANK(F15), TRIM(F15)="")), E15, E15) -> 0
A16: RESIDENTIAL | B16: Retail Transmission Rate - Line and Transformation Connection Service Rate | C16: $/kWh | D16: 409442945 | E16: 0 | F16: 1.0404 | H16: =IF(C16="$/kW", D16/(E16* 30.4 * 24), "" ) ->  | I16: 425984440 | J16: 0
A17: GENERAL SERVICE LESS THAN 50 KW | B17: Retail Transmission Rate - Network Service Rate | C17: $/kWh | D17: 194737949 | E17: 0 | F17: 1.0404 | H17: =IF(C17="$/kW", D17/(E17* 30.4 * 24), "" ) ->  | I17: 202605362.1 | J17: 0
A18: GENERAL SERVICE LESS THAN 50 KW | B18: Retail Transmission Rate - Line and Transformation Connection Service Rate | C18: $/kWh | D18: 194737949 | E18: 0 | F18: 1.0404 | H18: =IF(C18="$/kW", D18/(E18* 30.4 * 24), "" ) ->  | I18: 202605362.1 | J18: 0
A19: GENERAL SERVICE 50 TO 4,999 KW | B19: Retail Transmission Rate - Network Service Rate - (less than 1,000 kW) | C19: $/kW | D19: 149939491 | E19: 476304 | F19: 0 | H19: 0 | I19: 0 | J19: 476304
A20: GENERAL SERVICE 50 TO 4,999 KW | B20: Retail Transmission Rate - Network Service Rate - Interval Metered (less than 1,000 kW) | C20: $/kW | D20: 284341457 | E20: 725765 | F20: 0 | H20: 0 | I20: 0 | J20: 725765
A21: GENERAL SERVICE 50 TO 4,999 KW | B21: Retail Transmission Rate - Network Service Rate - Interval Metered (1,000 to 4,999 kW) | C21: $/kW | D21: 271456180 | E21: 569915 | F21: 0 | H21: 0 | I21: 0 | J21: 569915
A22: GENERAL SERVICE 50 TO 4,999 KW | B22: Retail Transmission Rate - Line and Transformation Connection Service Rate - (less than 1,000 kW) | C22: $/kW | D22: 149939491 | E22: 476304 | F22: 0 | H22: 0 | I22: 0 | J22: 476304
A23: GENERAL SERVICE 50 TO 4,999 KW | B23: Retail Transmission Rate - Line and Transformation Connection Service Rate - Interval Metered (less than 1,000 kW) | C23: $/kW | D23: 284341457 | E23: 732051 | F23: 0 | H23: 0 | I23: 0 | J23: 732051
A24: GENERAL SERVICE 50 TO 4,999 KW | B24: Retail Transmission Rate - Line and Transformation Connection Service Rate - Interval Metered (1,000 to 4,999 kW) | C24: $/kW | D24: 271456180 | E24: 571177 | F24: 0 | H24: 0 | I24: 0 | J24: 571177
A25: LARGE USE | B25: Retail Transmission Rate - Network Service Rate - Interval Metered | C25: $/kW | D25: 90202679 | E25: 168361 | F25: 0 | H25: 0 | I25: 0 | J25: 168361
A26: LARGE USE | B26: Retail Transmission Rate - Line and Transformation Connection Service Rate - Interval Metered | C26: $/kW | D26: 90202679 | E26: 168361 | F26: 0 | H26: 0 | I26: 0 | J26: 168361
A27: UNMETERED SCATTERED LOAD | B27: Retail Transmission Rate - Network Service Rate | C27: $/kWh | D27: 2352596 | E27: 0 | F27: 1.0404 | H27: =IF(C27="$/kW", D27/(E27* 30.4 * 24), "" ) ->  | I27: 2447640.878 | J27: 0
A28: UNMETERED SCATTERED LOAD | B28: Retail Transmission Rate - Line and Transformation Connection Service Rate | C28: $/kWh | D28: 2352596 | E28: 0 | F28: 1.0404 | H28: =IF(C28="$/kW", D28/(E28* 30.4 * 24), "" ) ->  | I28: 2447640.878 | J28: 0
A29: STREET LIGHTING | B29: Retail Transmission Rate - Network Service Rate | C29: $/kW | D29: 7696319 | E29: 21461 | F29: 0 | H29: 0 | I29: 0 | J29: 21461
A30: STREET LIGHTING | B30: Retail Transmission Rate - Line and Transformation Connection Service Rate | C30: $/kW | D30: 7696319 | E30: 21461 | F30: 0 | H30: 0 | I30: 0 | J30: 21461

Sheet 15. RTSR - UTRs & Sub-Tx
B18: Uniform Transmission Rates | C18: Unit | E18: Effective January 1, 2013 | G18: Effective January 1, 2014 | I18: Effective January 1, 2015
B20: Rate Description | E20: Rate | G20: Rate | I20: Rate
B22: Network Service Rate | C22: kW | E22: 3.63 | G22: 3.82 | I22: 3.82
B24: Line Connection Service Rate | C24: kW | E24: 0.75 | G24: 0.82 | I24: 0.82
B26: Transformation Connection Service Rate | C26: kW | E26: 1.85 | G26: 1.98 | I26: 1.98
B29: Hydro One Sub-Transmission Rates | C29: Unit | E29: Effective January 1, 2013 | G29: Effective January 1, 2014 | I29: Effective January 1, 2015
B33: Rate Description | E33: Rate | G33: Rate | I33: Rate
B35: Network Service Rate | C35: kW | E35: 3.18 | G35: 3.23 | I35: =+G35 -> 3.23
B37: Line Connection Service Rate | C37: kW | E37: 0.7 | G37: 0.65 | I37: =+G37 -> 0.65
B39: Transformation Connection Service Rate | C39: kW | E39: 1.63 | G39: 1.62 | I39: =+G39 -> 1.62
B41: Both Line and Transformation Connection Service Rate | C41: kW | E41: =E39+E37 -> 2.33 | G41: =G39+G37 -> 2.27 | I41: =I39+I37 -> 2.27
B44: If needed , add extra host here (I) | C44: Unit | E44: Effective January 1, 2013 | G44: Effective January 1, 2014 | I44: Effective January 1, 2015
B48: Rate Description | E48: Rate | G48: Rate | I48: Rate
B50: Network Service Rate | C50: kW | E50: 2.8965 | G50: 3.096 | I50: =+G50 -> 3.096
B52: Line Connection Service Rate | C52: kW | E52: 0.6356 | G52: 0.6461 | I52: =+G52 -> 0.6461
B54: Transformation Connection Service Rate | C54: kW
B56: Both Line and Transformation Connection Service Rate | C56: kW | E56: =E54+E52 -> 0.6356 | G56: =G54+G52 -> 0.6461 | I56: =I54+I52 -> 0.6461
B59: If needed , add extra host here (II) | C59: Unit | E59: Effective January 1, 2013 | G59: Effective January 1, 2014 | I59: Effective January 1, 2015
B63: Rate Description | E63: Rate | G63: Rate | I63: Rate
B65: Network Service Rate | C65: kW | E65: 2.5279 | G65: 2.7207 | I65: =+G65 -> 2.7207
B67: Line Connection Service Rate | C67: kW | E67: 1.6586 | G67: 1.9124 | I67: =+G67 -> 1.9124
B69: Transformation Connection Service Rate | C69: kW
B71: Both Line and Transformation Connection Service Rate | C71: kW | E71: =E69+E67 -> 1.6586 | G71: =G69+G67 -> 1.9124 | I71: =I69+I67 -> 1.9124
B75: Hydro One Sub-Transmission Rate Rider 9A | C75: Unit | E75: Effective January 1, 2013 | G75: Effective January 1, 2014 | I75: Effective January 1, 2015
B77: Rate Description | E77: Rate | G77: Rate | I77: Rate
B79: RSVA Transmission network – 4714 – which affects 1584 | C79: kW | E79: 0 | G79: 0.1465 | I79: 0.1465
B81: RSVA Transmission connection – 4716 – which affects 1586 | C81: kW | E81: 0 | G81: 0.0667 | I81: 0.0667
B83: RSVA LV – 4750 – which affects 1550 | C83: kW | E83: 0 | G83: 0.0475 | I83: 0.0475
B85: RARA 1 – 2252 – which affects 1590 | C85: kW | E85: 0 | G85: 0.0419 | I85: 0.0419
B87: RARA 1 – 2252 – which affects 1590 (2008) | C87: kW | E87: 0 | G87: -0.027 | I87: -0.027
B89: RARA 1 – 2252 – which affects 1590 (2009) | C89: kW | E89: 0 | G89: -0.0006 | I89: -0.0006
B91: Hydro One Sub-Transmission Rate Rider 9A | C91: kW | E91: =SUM(E79:E89) -> 0 | G91: =SUM(G79:G89) -> 0.275 | I91: =SUM(I79:I89) -> 0.275
E94: Historical 2013 | G94: Current 2014 | I94: Forecast 2015
B95: Low Voltage Switchgear Credit (if applicable, enter as a negative value) | C95: $

Sheet 16. RTSR - Historical Wholesale
B13: In the green shaded cells, enter billing detail for wholesale transmission for the same reporting period as the billing determinants on Sheet "14. RTSR RRR Data". For Hydro One Sub-transmission Rates, if you are charged a combined Line and Transformer connection rate, please ensure that both the line connection and transformer connection columns are completed.
B16: IESO | D16: Network | H16: Line Connection | L16: Transformation Connection | P16: Total Line
B17: Month | D17: Units Billed | E17: Rate | F17: Amount | H17: Units Billed | I17: Rate | J17: Amount | L17: Units Billed | M17: Rate | N17: Amount | P17: Amount
B19: January | D19: 212740 | E19: =IF(D19<>0,F19/D19,0) -> 3.63 | F19: 772246.2 | H19: 217226 | I19: =IF(H19<>0,J19/H19,0) -> 0.75 | J19: 162919.5 | L19: 23735 | M19: =IF(L19<>0,N19/L19,0) -> 1.85 | N19: 43909.75 | P19: =J19+N19 -> 206829.25
B20: February | D20: 206978 | E20: 3.63 | F20: 751330.14 | H20: 210117 | I20: 0.75 | J20: 157587.75 | L20: 23261 | M20: 1.85 | N20: 43032.85 | P20: 200620.6
B21: March | D21: 196431 | E21: 3.63 | F21: 713044.53 | H21: 206799 | I21: 0.75 | J21: 155099.25 | L21: 22777 | M21: 1.85 | N21: 42137.45 | P21: 197236.7
B22: April | D22: 182846 | E22: 3.63 | F22: 663730.98 | H22: 192065 | I22: 0.75 | J22: 144048.75 | L22: 21948 | M22: 1.85 | N22: 40603.8 | P22: 184652.55
B23: May | D23: 211057 | E23: 3.63 | F23: 766136.91 | H23: 221204 | I23: 0.75 | J23: 165903 | L23: 22656 | M23: 1.85 | N23: 41913.6 | P23: 207816.6
B24: June | D24: 243780 | E24: 3.63 | F24: 884921.4 | H24: 246709 | I24: 0.75 | J24: 185031.75 | L24: 24961 | M24: 1.85 | N24: 46177.85 | P24: 231209.6
B25: July | D25: 262249 | E25: 3.63 | F25: 951963.87 | H25: 276410 | I25: 0.75 | J25: 207307.5 | L25: 26550 | M25: 1.85 | N25: 49117.5 | P25: 256425
B26: August | D26: 238928 | E26: 3.63 | F26: 867308.64 | H26: 251388 | I26: 0.75 | J26: 188541 | L26: 23533 | M26: 1.85 | N26: 43536.05 | P26: 232077.05
B27: September | D27: 246882 | E27: 3.63 | F27: 896181.66 | H27: 257688 | I27: 0.75 | J27: 193266 | L27: 20851 | M27: 1.85 | N27: 38574.35 | P27: 231840.35
B28: October | D28: 178436 | E28: 3.63 | F28: 647722.68 | H28: 192896 | I28: 0.75 | J28: 144672 | L28: 17995 | M28: 1.85 | N28: 33290.75 | P28: 177962.75
B29: November | D29: 228849 | E29: 3.63 | F29: 830721.87 | H29: 210829 | I29: 0.75 | J29: 158121.75 | L29: 21806 | M29: 1.85 | N29: 40341.1 | P29: 198462.85
B30: December | D30: 197240 | E30: 3.63 | F30: 715981.2 | H30: 224329 | I30: 0.75 | J30: 168246.75 | L30: 23632 | M30: 1.85 | N30: 43719.2 | P30: 211965.95
B32: Total | D32: =SUM(D19:D30) -> 2606416 | E32: =IF(D32<>0,F32/D32,0) -> 3.63 | F32: =SUM(F19:F30) -> 9461290.08 | H32: =SUM(H19:H30) -> 2707660 | I32: =IF(H32<>0,J32/H32,0) -> 0.75 | J32: =SUM(J19:J30) -> 2030745 | L32: =SUM(L19:L30) -> 273705 | M32: =IF(L32<>0,N32/L32,0) -> 1.85 | N32: =SUM(N19:N30) -> 506354.25 | P32: =SUM(P19:P30) -> 2537099.25
B34: Hydro One | D34: Network | H34: Line Connection | L34: Transformation Connection | P34: Total Line
B36: Month | D36: Units Billed | E36: Rate | F36: Amount | H36: Units Billed | I36: Rate | J36: Amount | L36: Units Billed | M36: Rate | N36: Amount | P36: Amount
B38: January | D38: 8404 | E38: =IF(D38<>0,F38/D38,0) -> 2.820968586 | F38: 23707.42 | H38: 8594 | I38: =IF(H38<>0,J38/H38,0) -> 0.6593548738 | J38: 5666.495785 | L38: 8594 | M38: =IF(L38<>0,N38/L38,0) -> 1.541935561 | N38: 13251.39421 | P38: =J38+N38 -> 18917.89
B39: February | D39: 8980 | E39: 3.18 | F39: 28556.4 | H39: 9346 | I39: 0.7 | J39: 6542.2 | L39: 9346 | M39: 1.63 | N39: 15233.98 | P39: 21776.18
B40: March | D40: 8348 | E40: 3.18 | F40: 26546.64 | H40: 8710 | I40: 0.7 | J40: 6097 | L40: 8710 | M40: 1.63 | N40: 14197.3 | P40: 20294.3
B41: April | D41: 7826 | E41: 3.18 | F41: 24886.68 | H41: 7917 | I41: 0.7 | J41: 5541.9 | L41: 7917 | M41: 1.63 | N41: 12904.71 | P41: 18446.61
B42: May | D42: 7801.77 | E42: 3.179998898 | F42: 24809.62 | H42: 7801.77 | I42: 0.6999988464 | J42: 5461.23 | L42: 7801.77 | M42: 1.630000628 | N42: 12716.89 | P42: 18178.12
B43: June | D43: 7453.5 | E43: 3.180001342 | F43: 23702.14 | H43: 7586.06 | I43: 0.7000010546 | J43: 5310.25 | L43: 7586.06 | M43: 1.630001608 | N43: 12365.29 | P43: 17675.54
B44: July | D44: 9076.25 | E44: 3.179998347 | F44: 28862.46 | H44: 9286.12 | I44: 0.6999995692 | J44: 6500.28 | L44: 9286.12 | M44: 1.629999397 | N44: 15136.37 | P44: 21636.65
B45: August | D45: 8334.25 | E45: 3.1799994 | F45: 26502.91 | H45: 8489.28 | I45: 0.6999992932 | J45: 5942.49 | L45: 8489.28 | M45: 1.629999246 | N45: 13837.52 | P45: 19780.01
B46: September | D46: 8550.16 | E46: 3.180002479 | F46: 27189.53 | H46: 9027.4 | I46: 0.6999988923 | J46: 6319.17 | L46: 9027.4 | M46: 1.629999778 | N46: 14714.66 | P46: 21033.83
B47: October | D47: 7008.62 | E47: 3.179998345 | F47: 22287.4 | H47: 7269.77 | I47: 0.699998762 | J47: 5088.83 | L47: 7269.77 | M47: 1.629999298 | N47: 11849.72 | P47: 16938.55
B48: November | D48: 7576.62 | E48: 3.180001109 | F48: 24093.66 | H48: 7708.14 | I48: 0.7000002595 | J48: 5395.7 | L48: 7708.14 | M48: 1.630000234 | N48: 12564.27 | P48: 17959.97
B49: December | D49: 8512.72 | E49: 3.180002396 | F49: 27070.47 | H49: 8666.91 | I49: 0.7000003461 | J49: 6066.84 | L49: 8666.91 | M49: 1.630001927 | N49: 14127.08 | P49: 20193.92
B51: Total | D51: =SUM(D38:D49) -> 97871.89 | E51: =IF(D51<>0,F51/D51,0) -> 3.149171126 | F51: =SUM(F38:F49) -> 308215.33 | H51: =SUM(H38:H49) -> 100402.45 | I51: =IF(H51<>0,J51/H51,0) -> 0.6965207103 | J51: =SUM(J38:J49) -> 69932.38579 | L51: =SUM(L38:L49) -> 100402.45 | M51: =IF(L51<>0,N51/L51,0) -> 1.622462243 | N51: =SUM(N38:N49) -> 162899.1842 | P51: =SUM(P38:P49) -> 232831.57
B53: Add Extra Host Here (I) | D53: Network | H53: Line Connection | L53: Transformation Connection | P53: Total Line
B54: Kitchener (if needed)
B55: Month | D55: Units Billed | E55: Rate | F55: Amount | H55: Units Billed | I55: Rate | J55: Amount | L55: Units Billed | M55: Rate | N55: Amount | P55: Amount
B57: January | D57: 3298.509174 | E57: =IF(D57<>0,F57/D57,0) -> 2.8776 | F57: 9491.79 | H57: 3298.5155 | I57: =IF(H57<>0,J57/H57,0) -> 0.6871 | J57: 2266.41 | M57: =IF(L57<>0,N57/L57,0) -> 0 | P57: =J57+N57 -> 2266.41
B58: February | D58: 2792.830831 | E58: 2.8776 | F58: 8036.65 | H58: 2792.824916 | I58: 0.6871 | J58: 1918.95 | M58: 0 | P58: 1918.95
B59: March | D59: 2562.340145 | E59: 2.8776 | F59: 7373.39 | H59: 2586.523068 | I59: 0.6871 | J59: 1777.2 | M59: 0 | P59: 1777.2
B60: April | D60: 2417.858632 | E60: 2.8776 | F60: 6957.63 | H60: 2369.465871 | I60: 0.6871 | J60: 1628.06 | M60: 0 | P60: 1628.06
B61: May | D61: 2325.461764 | E61: 2.8965 | F61: 6735.7 | H61: 2325.456262 | I61: 0.6356 | J61: 1478.06 | M61: 0 | P61: 1478.06
B62: June | D62: 2669.176592 | E62: 2.8965 | F62: 7731.27 | H62: 2669.178729 | I62: 0.6356 | J62: 1696.53 | M62: 0 | P62: 1696.53
B63: July | D63: 2994.099776 | E63: 2.8965 | F63: 8672.41 | H63: 3035.761485 | I63: 0.6356 | J63: 1929.53 | M63: 0 | P63: 1929.53
B64: August | D64: 2638.608666 | E64: 2.8965 | F64: 7642.73 | H64: 2638.609188 | I64: 0.6356 | J64: 1677.1 | M64: 0 | P64: 1677.1
B65: September | D65: 2811.648541 | E65: 2.8965 | F65: 8143.94 | H65: 2811.642542 | I65: 0.6356 | J65: 1787.08 | M65: 0 | P65: 1787.08
B66: October | D66: 2340.58001 | E66: 2.8965 | F66: 6779.49 | H66: 2340.575834 | I66: 0.6356 | J66: 1487.67 | M66: 0 | P66: 1487.67
B67: November | D67: 2875.49111 | E67: 2.8965 | F67: 8328.86 | H67: 2875.487728 | I67: 0.6356 | J67: 1827.66 | M67: 0 | P67: 1827.66
B68: December | D68: 2985.019852 | E68: 2.8965 | F68: 8646.11 | H68: 3036.438011 | I68: 0.6356 | J68: 1929.96 | M68: 0 | P68: 1929.96
B70: Total | D70: =SUM(D57:D68) -> 32711.62509 | E70: =IF(D70<>0,F70/D70,0) -> 2.890103128 | F70: =SUM(F57:F68) -> 94539.97 | H70: =SUM(H57:H68) -> 32780.47913 | I70: =IF(H70<>0,J70/H70,0) -> 0.6529559837 | J70: =SUM(J57:J68) -> 21404.21 | L70: =SUM(L57:L68) -> 0 | M70: =IF(L70<>0,N70/L70,0) -> 0 | N70: =SUM(N57:N68) -> 0 | P70: =SUM(P57:P68) -> 21404.21
B72: Add Extra Host Here (II) | D72: Network | H72: Line Connection | L72: Transformation Connection | P72: Total Line
B73: Cambridge (if needed)
B74: Month | D74: Units Billed | E74: Rate | F74: Amount | H74: Units Billed | I74: Rate | J74: Amount | L74: Units Billed | M74: Rate | N74: Amount | P74: Amount
B76: January | D76: 5108.349432 | E76: =IF(D76<>0,F76/D76,0) -> 2.5882 | F76: 13221.43 | H76: 5108.349833 | I76: =IF(H76<>0,J76/H76,0) -> 1.7677 | J76: 9030.03 | M76: =IF(L76<>0,N76/L76,0) -> 0 | P76: =J76+N76 -> 9030.03
B77: February | D77: 5191.090333 | E77: 2.5882 | F77: 13435.58 | H77: 5191.090117 | I77: 1.7677 | J77: 9176.29 | M77: 0 | P77: 9176.29
B78: March | D78: 7517.830925 | E78: 2.5882 | F78: 19457.65 | H78: 7663.947502 | I78: 1.7677 | J78: 13547.56 | M78: 0 | P78: 13547.56
B79: April | D79: 12217.61842 | E79: 2.5882 | F79: 31621.64 | H79: 12217.62177 | I79: 1.7677 | J79: 21597.09 | M79: 0 | P79: 21597.09
B80: May | D80: 7715.170695 | E80: 2.5279 | F80: 19503.18 | H80: 7715.16942 | I80: 1.6586 | J80: 12796.38 | M80: 0 | P80: 12796.38
B81: June | D81: 8355.010087 | E81: 2.5279 | F81: 21120.63 | H81: 8355.01025 | I81: 1.6586 | J81: 13857.62 | M81: 0 | P81: 13857.62
B82: July | D82: 9109.478223 | E82: 2.5279 | F82: 23027.85 | H82: 9109.477873 | I82: 1.6586 | J82: 15108.98 | M82: 0 | P82: 15108.98
B83: August | D83: 8310.839036 | E83: 2.5279 | F83: 21008.97 | H83: 8310.840468 | I83: 1.6586 | J83: 13784.36 | M83: 0 | P83: 13784.36
B84: September | D84: 8605.981249 | E84: 2.5279 | F84: 21755.06 | H84: 8605.980948 | I84: 1.6586 | J84: 14273.88 | M84: 0 | P84: 14273.88
B85: October | D85: 6941.611614 | E85: 2.5279 | F85: 17547.7 | H85: 6985.777161 | I85: 1.6586 | J85: 11586.61 | M85: 0 | P85: 11586.61
B86: November | D86: 8037.999921 | E86: 2.5279 | F86: 20319.26 | H86: 8038.001929 | I86: 1.6586 | J86: 13331.83 | M86: 0 | P86: 13331.83
B87: December | D87: 8728.228965 | E87: 2.5279 | F87: 22064.09 | H87: 8728.228627 | I87: 1.6586 | J87: 14476.64 | M87: 0 | P87: 14476.64
B89: Total | D89: =SUM(D76:D87) -> 95839.2089 | E89: =IF(D89<>0,F89/D89,0) -> 2.546797316 | F89: =SUM(F76:F87) -> 244083.04 | H89: =SUM(H76:H87) -> 96029.4959 | I89: =IF(H89<>0,J89/H89,0) -> 1.692888924 | J89: =SUM(J76:J87) -> 162567.27 | L89: =SUM(L76:L87) -> 0 | M89: =IF(L89<>0,N89/L89,0) -> 0 | N89: =SUM(N76:N87) -> 0 | P89: =SUM(P76:P87) -> 162567.27
B91: Total | D91: Network | H91: Line Connection | L91: Transformation Connection | P91: Total Line
B93: Month | D93: Units Billed | E93: Rate | F93: Amount | H93: Units Billed | I93: Rate | J93: Amount | L93: Units Billed | M93: Rate | N93: Amount | P93: Amount
B95: January | D95: =D19+D38+D57+D76 -> 229550.8586 | E95: =IF(D95<>0,F95/D95,0) -> 3.566385441 | F95: =F19+F38+F57+F76 -> 818666.84 | H95: =H19+H38+H57+H76 -> 234226.8653 | I95: =IF(H95<>0,J95/H95,0) -> 0.7679837901 | J95: =J19+J38+J57+J76 -> 179882.4358 | L95: =L19+L38+L57+L76 -> 32329 | M95: =IF(L95<>0,N95/L95,0) -> 1.768107402 | N95: =N19+N38+N57+N76 -> 57161.14421 | P95: =J95+N95 -> 237043.58
B96: February | D96: =D20+D39+D58+D77 -> 223941.9212 | E96: 3.578422324 | F96: =F20+F39+F58+F77 -> 801358.77 | H96: =H20+H39+H58+H77 -> 227446.915 | I96: 0.770400381 | J96: =J20+J39+J58+J77 -> 175225.19 | L96: =L20+L39+L58+L77 -> 32607 | M96: 1.786942374 | N96: =N20+N39+N58+N77 -> 58266.83 | P96: 233492.02
B97: March | D97: 214859.1711 | E97: 3.567090975 | F97: 766422.21 | H97: 225759.4706 | I97: 0.7818985824 | J97: 176521.01 | L97: 31487 | M97: 1.789143138 | N97: 56334.75 | P97: 232855.76
B98: April | D98: 205307.4771 | E98: 3.54198951 | F98: 727196.93 | H98: 214569.0876 | I98: 0.8054086537 | J98: 172815.8 | L98: 29865 | M98: 1.791679558 | N98: 53508.51 | P98: 226324.31
B99: May | D99: 228899.4025 | E99: 3.570063535 | F99: 817185.41 | H99: 239046.3957 | I99: 0.7765800838 | J99: 185638.67 | L99: 30457.77 | M99: 1.793647073 | N99: 54630.49 | P99: 240269.16
B100: June | D100: 262257.6867 | E100: 3.574634749 | F100: 937475.44 | H100: 265319.249 | I100: 0.7760317082 | J100: 205896.15 | L100: 32547.06 | M100: 1.798722834 | N100: 58543.14 | P100: 264439.29
B101: July | D101: 283428.828 | E101: 3.572419211 | F101: 1012526.59 | H101: 297841.3594 | I101: 0.7750645864 | J101: 230846.29 | L101: 35836.12 | M101: 1.792991819 | N101: 64253.87 | P101: 295100.16
B102: August | D102: 258211.6977 | E102: 3.572507591 | F102: 922463.25 | H102: 270826.7297 | I102: 0.7752002554 | J102: 209944.95 | L102: 32022.28 | M102: 1.791676608 | N102: 57373.57 | P102: 267318.52
B103: September | D103: 266849.7898 | E103: 3.572310065 | F103: 953270.19 | H103: 278133.0235 | I103: 0.7753345047 | J103: 215646.13 | L103: 29878.4 | M103: 1.783529573 | N103: 53289.01 | P103: 268935.14
B104: October | D104: 194726.8116 | E104: 3.565699372 | F104: 694337.27 | H104: 209492.123 | I104: 0.7772851202 | J104: 162835.11 | L104: 25264.77 | M104: 1.786696257 | N104: 45140.47 | P104: 207975.58
B105: November | D105: 247339.111 | E105: 3.571872019 | F105: 883463.65 | H105: 229450.6297 | I105: 0.7787162766 | J105: 178676.94 | L105: 29514.14 | M105: 1.792543167 | N105: 52905.37 | P105: 231582.31
B106: December | D106: 217465.9688 | E106: 3.558082555 | F106: 773761.87 | H106: 244760.5766 | I106: 0.7792112301 | J106: 190720.19 | L106: 32298.91 | M106: 1.79096694 | N106: 57846.28 | P106: 248566.47
B108: Total | D108: =SUM(D95:D106) -> 2832838.724 | E108: =IF(D108<>0,F108/D108,0) -> 3.56819763 | F108: =SUM(F95:F106) -> 10108128.42 | H108: =SUM(H95:H106) -> 2936872.425 | I108: =IF(H108<>0,J108/H108,0) -> 0.777919002 | J108: =SUM(J95:J106) -> 2284648.866 | L108: =SUM(L95:L106) -> 374107.45 | M108: =IF(L108<>0,N108/L108,0) -> 1.788933725 | N108: =SUM(N95:N106) -> 669253.4342 | P108: =SUM(P95:P106) -> 2953902.3
N110: Transformer Allowance Credit (if applicable) | P110: ='15. RTSR - UTRs & Sub-Tx'!E95 -> 0
N112: Total including deduction for Transformer Allowance Credit | P112: =P108+P110 -> 2953902.3

Sheet 17. RTSR - Current Wholesale
B13: The purpose of this sheet is to calculate the expected billing when current 2014 Uniform Transmission Rates are applied against historical 2013 transmission units.
B16: IESO | D16: Network | H16: Line Connection | L16: Transformation Connection | P16: Total Line
B18: Month | D18: Units Billed | E18: Rate | F18: Amount | H18: Units Billed | I18: Rate | J18: Amount | L18: Units Billed | M18: Rate | N18: Amount | P18: Amount
B20: January | D20: ='16. RTSR - Historical Wholesale'!D19 -> 212740 | E20: ='15. RTSR - UTRs & Sub-Tx'!G22 -> 3.82 | F20: =D20*E20 -> 812666.8 | H20: ='16. RTSR - Historical Wholesale'!H19 -> 217226 | I20: ='15. RTSR - UTRs & Sub-Tx'!G24 -> 0.82 | J20: =H20*I20 -> 178125.32 | L20: ='16. RTSR - Historical Wholesale'!L19 -> 23735 | M20: ='15. RTSR - UTRs & Sub-Tx'!G26 -> 1.98 | N20: =L20*M20 -> 46995.3 | P20: =J20+N20 -> 225120.62
B21: February | D21: ='16. RTSR - Historical Wholesale'!D20 -> 206978 | E21: =E20 -> 3.82 | F21: =D21*E21 -> 790655.96 | H21: ='16. RTSR - Historical Wholesale'!H20 -> 210117 | I21: =I20 -> 0.82 | J21: =H21*I21 -> 172295.94 | L21: ='16. RTSR - Historical Wholesale'!L20 -> 23261 | M21: =M20 -> 1.98 | N21: =L21*M21 -> 46056.78 | P21: 218352.72
B22: March | D22: ='16. RTSR - Historical Wholesale'!D21 -> 196431 | E22: =E21 -> 3.82 | F22: 750366.42 | H22: ='16. RTSR - Historical Wholesale'!H21 -> 206799 | I22: =I21 -> 0.82 | J22: 169575.18 | L22: ='16. RTSR - Historical Wholesale'!L21 -> 22777 | M22: =M21 -> 1.98 | N22: 45098.46 | P22: 214673.64
B23: April | D23: ='16. RTSR - Historical Wholesale'!D22 -> 182846 | E23: 3.82 | F23: 698471.72 | H23: ='16. RTSR - Historical Wholesale'!H22 -> 192065 | I23: 0.82 | J23: 157493.3 | L23: ='16. RTSR - Historical Wholesale'!L22 -> 21948 | M23: 1.98 | N23: 43457.04 | P23: 200950.34
B24: May | D24: ='16. RTSR - Historical Wholesale'!D23 -> 211057 | E24: 3.82 | F24: 806237.74 | H24: ='16. RTSR - Historical Wholesale'!H23 -> 221204 | I24: 0.82 | J24: 181387.28 | L24: ='16. RTSR - Historical Wholesale'!L23 -> 22656 | M24: 1.98 | N24: 44858.88 | P24: 226246.16
B25: June | D25: ='16. RTSR - Historical Wholesale'!D24 -> 243780 | E25: 3.82 | F25: 931239.6 | H25: ='16. RTSR - Historical Wholesale'!H24 -> 246709 | I25: 0.82 | J25: 202301.38 | L25: ='16. RTSR - Historical Wholesale'!L24 -> 24961 | M25: 1.98 | N25: 49422.78 | P25: 251724.16
B26: July | D26: ='16. RTSR - Historical Wholesale'!D25 -> 262249 | E26: 3.82 | F26: 1001791.18 | H26: ='16. RTSR - Historical Wholesale'!H25 -> 276410 | I26: 0.82 | J26: 226656.2 | L26: ='16. RTSR - Historical Wholesale'!L25 -> 26550 | M26: 1.98 | N26: 52569 | P26: 279225.2
B27: August | D27: ='16. RTSR - Historical Wholesale'!D26 -> 238928 | E27: 3.82 | F27: 912704.96 | H27: ='16. RTSR - Historical Wholesale'!H26 -> 251388 | I27: 0.82 | J27: 206138.16 | L27: ='16. RTSR - Historical Wholesale'!L26 -> 23533 | M27: 1.98 | N27: 46595.34 | P27: 252733.5
B28: September | D28: ='16. RTSR - Historical Wholesale'!D27 -> 246882 | E28: 3.82 | F28: 943089.24 | H28: ='16. RTSR - Historical Wholesale'!H27 -> 257688 | I28: 0.82 | J28: 211304.16 | L28: ='16. RTSR - Historical Wholesale'!L27 -> 20851 | M28: 1.98 | N28: 41284.98 | P28: 252589.14
B29: October | D29: ='16. RTSR - Historical Wholesale'!D28 -> 178436 | E29: 3.82 | F29: 681625.52 | H29: ='16. RTSR - Historical Wholesale'!H28 -> 192896 | I29: 0.82 | J29: 158174.72 | L29: ='16. RTSR - Historical Wholesale'!L28 -> 17995 | M29: 1.98 | N29: 35630.1 | P29: 193804.82
B30: November | D30: ='16. RTSR - Historical Wholesale'!D29 -> 228849 | E30: 3.82 | F30: 874203.18 | H30: ='16. RTSR - Historical Wholesale'!H29 -> 210829 | I30: 0.82 | J30: 172879.78 | L30: ='16. RTSR - Historical Wholesale'!L29 -> 21806 | M30: 1.98 | N30: 43175.88 | P30: 216055.66
B31: December | D31: ='16. RTSR - Historical Wholesale'!D30 -> 197240 | E31: 3.82 | F31: 753456.8 | H31: ='16. RTSR - Historical Wholesale'!H30 -> 224329 | I31: 0.82 | J31: 183949.78 | L31: ='16. RTSR - Historical Wholesale'!L30 -> 23632 | M31: 1.98 | N31: 46791.36 | P31: 230741.14
B33: Total | D33: =SUM(D20:D31) -> 2606416 | E33: =IF(D33<>0,F33/D33,0) -> 3.82 | F33: =SUM(F20:F31) -> 9956509.12 | H33: =SUM(H20:H31) -> 2707660 | I33: =IF(H33<>0,J33/H33,0) -> 0.82 | J33: =SUM(J20:J31) -> 2220281.2 | L33: =SUM(L20:L31) -> 273705 | M33: =IF(L33<>0,N33/L33,0) -> 1.98 | N33: =SUM(N20:N31) -> 541935.9 | P33: =SUM(P20:P31) -> 2762217.1
B35: Hydro One | D35: Network | H35: Line Connection | L35: Transformation Connection | P35: Total Line
B37: Month | D37: Units Billed | E37: Rate | F37: Amount | H37: Units Billed | I37: Rate | J37: Amount | L37: Units Billed | M37: Rate | N37: Amount | P37: Amount
B39: January | D39: ='16. RTSR - Historical Wholesale'!D38 -> 8404 | E39: ='15. RTSR - UTRs & Sub-Tx'!G35+'15. RTSR - UTRs & Sub-Tx'!G79 -> 3.3765 | F39: =D39*E39 -> 28376.106 | H39: ='16. RTSR - Historical Wholesale'!H38 -> 8594 | I39: ='15. RTSR - UTRs & Sub-Tx'!G37+'15. RTSR - UTRs & Sub-Tx'!G81 -> 0.7167 | J39: =H39*I39 -> 6159.3198 | L39: ='16. RTSR - Historical Wholesale'!L38 -> 8594 | M39: ='15. RTSR - UTRs & Sub-Tx'!G39 -> 1.62 | N39: =L39*M39 -> 13922.28 | P39: =J39+N39 -> 20081.5998
B40: February | D40: ='16. RTSR - Historical Wholesale'!D39 -> 8980 | E40: =E39 -> 3.3765 | F40: =D40*E40 -> 30320.97 | H40: ='16. RTSR - Historical Wholesale'!H39 -> 9346 | I40: =I39 -> 0.7167 | J40: =H40*I40 -> 6698.2782 | L40: ='16. RTSR - Historical Wholesale'!L39 -> 9346 | M40: =M39 -> 1.62 | N40: =L40*M40 -> 15140.52 | P40: 21838.7982
B41: March | D41: ='16. RTSR - Historical Wholesale'!D40 -> 8348 | E41: =E40 -> 3.3765 | F41: 28187.022 | H41: ='16. RTSR - Historical Wholesale'!H40 -> 8710 | I41: =I40 -> 0.7167 | J41: 6242.457 | L41: ='16. RTSR - Historical Wholesale'!L40 -> 8710 | M41: =M40 -> 1.62 | N41: 14110.2 | P41: 20352.657
B42: April | D42: ='16. RTSR - Historical Wholesale'!D41 -> 7826 | E42: 3.3765 | F42: 26424.489 | H42: ='16. RTSR - Historical Wholesale'!H41 -> 7917 | I42: 0.7167 | J42: 5674.1139 | L42: ='16. RTSR - Historical Wholesale'!L41 -> 7917 | M42: =M41 -> 1.62 | N42: 12825.54 | P42: 18499.6539
B43: May | D43: ='16. RTSR - Historical Wholesale'!D42 -> 7801.77 | E43: 3.3765 | F43: 26342.67641 | H43: ='16. RTSR - Historical Wholesale'!H42 -> 7801.77 | I43: 0.7167 | J43: 5591.528559 | L43: ='16. RTSR - Historical Wholesale'!L42 -> 7801.77 | M43: 1.62 | N43: 12638.8674 | P43: 18230.39596
B44: June | D44: ='16. RTSR - Historical Wholesale'!D43 -> 7453.5 | E44: 3.3765 | F44: 25166.74275 | H44: ='16. RTSR - Historical Wholesale'!H43 -> 7586.06 | I44: 0.7167 | J44: 5436.929202 | L44: ='16. RTSR - Historical Wholesale'!L43 -> 7586.06 | M44: 1.62 | N44: 12289.4172 | P44: 17726.3464
B45: July | D45: ='16. RTSR - Historical Wholesale'!D44 -> 9076.25 | E45: 3.3765 | F45: 30645.95813 | H45: ='16. RTSR - Historical Wholesale'!H44 -> 9286.12 | I45: 0.7167 | J45: 6655.362204 | L45: ='16. RTSR - Historical Wholesale'!L44 -> 9286.12 | M45: 1.62 | N45: 15043.5144 | P45: 21698.8766
B46: August | D46: ='16. RTSR - Historical Wholesale'!D45 -> 8334.25 | E46: 3.3765 | F46: 28140.59512 | H46: ='16. RTSR - Historical Wholesale'!H45 -> 8489.28 | I46: 0.7167 | J46: 6084.266976 | L46: ='16. RTSR - Historical Wholesale'!L45 -> 8489.28 | M46: 1.62 | N46: 13752.6336 | P46: 19836.90058
B47: September | D47: ='16. RTSR - Historical Wholesale'!D46 -> 8550.16 | E47: 3.3765 | F47: 28869.61524 | H47: ='16. RTSR - Historical Wholesale'!H46 -> 9027.4 | I47: 0.7167 | J47: 6469.93758 | L47: ='16. RTSR - Historical Wholesale'!L46 -> 9027.4 | M47: 1.62 | N47: 14624.388 | P47: 21094.32558
B48: October | D48: ='16. RTSR - Historical Wholesale'!D47 -> 7008.62 | E48: 3.3765 | F48: 23664.60543 | H48: ='16. RTSR - Historical Wholesale'!H47 -> 7269.77 | I48: 0.7167 | J48: 5210.244159 | L48: ='16. RTSR - Historical Wholesale'!L47 -> 7269.77 | M48: 1.62 | N48: 11777.0274 | P48: 16987.27156
B49: November | D49: ='16. RTSR - Historical Wholesale'!D48 -> 7576.62 | E49: 3.3765 | F49: 25582.45743 | H49: ='16. RTSR - Historical Wholesale'!H48 -> 7708.14 | I49: 0.7167 | J49: 5524.423938 | L49: ='16. RTSR - Historical Wholesale'!L48 -> 7708.14 | M49: 1.62 | N49: 12487.1868 | P49: 18011.61074
B50: December | D50: ='16. RTSR - Historical Wholesale'!D49 -> 8512.72 | E50: 3.3765 | F50: 28743.19908 | H50: ='16. RTSR - Historical Wholesale'!H49 -> 8666.91 | I50: 0.7167 | J50: 6211.574397 | L50: ='16. RTSR - Historical Wholesale'!L49 -> 8666.91 | M50: 1.62 | N50: 14040.3942 | P50: 20251.9686
B52: Total | D52: =SUM(D39:D50) -> 97871.89 | E52: =IF(D52<>0,F52/D52,0) -> 3.3765 | F52: =SUM(F39:F50) -> 330464.4366 | H52: =SUM(H39:H50) -> 100402.45 | I52: =IF(H52<>0,J52/H52,0) -> 0.7167 | J52: =SUM(J39:J50) -> 71958.43591 | L52: =SUM(L39:L50) -> 100402.45 | M52: =IF(L52<>0,N52/L52,0) -> 1.62 | N52: =SUM(N39:N50) -> 162651.969 | P52: =SUM(P39:P50) -> 234610.4049
B54: ='16. RTSR - Historical Wholesale'!B53 -> Add Extra Host Here (I) | D54: Network | H54: Line Connection | L54: Transformation Connection | P54: Total Line
B56: Month | D56: Units Billed | E56: Rate | F56: Amount | H56: Units Billed | I56: Rate | J56: Amount | L56: Units Billed | M56: Rate | N56: Amount | P56: Amount
B58: January | D58: ='16. RTSR - Historical Wholesale'!D57 -> 3298.509174 | E58: ='15. RTSR - UTRs & Sub-Tx'!G50 -> 3.096 | F58: =D58*E58 -> 10212.1844 | H58: ='16. RTSR - Historical Wholesale'!H57 -> 3298.5155 | I58: ='15. RTSR - UTRs & Sub-Tx'!G52 -> 0.6461 | J58: =H58*I58 -> 2131.170865 | L58: ='16. RTSR - Historical Wholesale'!L57 -> 0 | M58: ='15. RTSR - UTRs & Sub-Tx'!G54 -> 0 | N58: =L58*M58 -> 0 | P58: =J58+N58 -> 2131.170865
B59: February | D59: ='16. RTSR - Historical Wholesale'!D58 -> 2792.830831 | E59: =E58 -> 3.096 | F59: =D59*E59 -> 8646.604254 | H59: ='16. RTSR - Historical Wholesale'!H58 -> 2792.824916 | I59: =I58 -> 0.6461 | J59: =H59*I59 -> 1804.444178 | L59: ='16. RTSR - Historical Wholesale'!L58 -> 0 | M59: =M58 -> 0 | N59: =L59*M59 -> 0 | P59: 1804.444178
B60: March | D60: ='16. RTSR - Historical Wholesale'!D59 -> 2562.340145 | E60: =E59 -> 3.096 | F60: 7933.005088 | H60: ='16. RTSR - Historical Wholesale'!H59 -> 2586.523068 | I60: =I59 -> 0.6461 | J60: 1671.152554 | L60: ='16. RTSR - Historical Wholesale'!L59 -> 0 | M60: =M59 -> 0 | N60: 0 | P60: 1671.152554
B61: April | D61: ='16. RTSR - Historical Wholesale'!D60 -> 2417.858632 | E61: 3.096 | F61: 7485.690325 | H61: ='16. RTSR - Historical Wholesale'!H60 -> 2369.465871 | I61: 0.6461 | J61: 1530.911899 | L61: ='16. RTSR - Historical Wholesale'!L60 -> 0 | M61: =M60 -> 0 | N61: 0 | P61: 1530.911899
B62: May | D62: ='16. RTSR - Historical Wholesale'!D61 -> 2325.461764 | E62: 3.096 | F62: 7199.629622 | H62: ='16. RTSR - Historical Wholesale'!H61 -> 2325.456262 | I62: 0.6461 | J62: 1502.477291 | L62: ='16. RTSR - Historical Wholesale'!L61 -> 0 | M62: 0 | N62: 0 | P62: 1502.477291
B63: June | D63: ='16. RTSR - Historical Wholesale'!D62 -> 2669.176592 | E63: 3.096 | F63: 8263.77073 | H63: ='16. RTSR - Historical Wholesale'!H62 -> 2669.178729 | I63: 0.6461 | J63: 1724.556377 | L63: ='16. RTSR - Historical Wholesale'!L62 -> 0 | M63: 0 | N63: 0 | P63: 1724.556377
B64: July | D64: ='16. RTSR - Historical Wholesale'!D63 -> 2994.099776 | E64: 3.096 | F64: 9269.732905 | H64: ='16. RTSR - Historical Wholesale'!H63 -> 3035.761485 | I64: 0.6461 | J64: 1961.405496 | L64: ='16. RTSR - Historical Wholesale'!L63 -> 0 | M64: 0 | N64: 0 | P64: 1961.405496
B65: August | D65: ='16. RTSR - Historical Wholesale'!D64 -> 2638.608666 | E65: 3.096 | F65: 8169.132429 | H65: ='16. RTSR - Historical Wholesale'!H64 -> 2638.609188 | I65: 0.6461 | J65: 1704.805396 | L65: ='16. RTSR - Historical Wholesale'!L64 -> 0 | M65: 0 | N65: 0 | P65: 1704.805396
B66: September | D66: ='16. RTSR - Historical Wholesale'!D65 -> 2811.648541 | E66: 3.096 | F66: 8704.863884 | H66: ='16. RTSR - Historical Wholesale'!H65 -> 2811.642542 | I66: 0.6461 | J66: 1816.602247 | L66: ='16. RTSR - Historical Wholesale'!L65 -> 0 | M66: 0 | N66: 0 | P66: 1816.602247
B67: October | D67: ='16. RTSR - Historical Wholesale'!D66 -> 2340.58001 | E67: 3.096 | F67: 7246.435712 | H67: ='16. RTSR - Historical Wholesale'!H66 -> 2340.575834 | I67: 0.6461 | J67: 1512.246046 | L67: ='16. RTSR - Historical Wholesale'!L66 -> 0 | M67: 0 | N67: 0 | P67: 1512.246046
B68: November | D68: ='16. RTSR - Historical Wholesale'!D67 -> 2875.49111 | E68: 3.096 | F68: 8902.520476 | H68: ='16. RTSR - Historical Wholesale'!H67 -> 2875.487728 | I68: 0.6461 | J68: 1857.852621 | L68: ='16. RTSR - Historical Wholesale'!L67 -> 0 | M68: 0 | N68: 0 | P68: 1857.852621
B69: December | D69: ='16. RTSR - Historical Wholesale'!D68 -> 2985.019852 | E69: 3.096 | F69: 9241.62146 | H69: ='16. RTSR - Historical Wholesale'!H68 -> 3036.438011 | I69: 0.6461 | J69: 1961.842599 | L69: ='16. RTSR - Historical Wholesale'!L68 -> 0 | M69: 0 | N69: 0 | P69: 1961.842599
B71: Total | D71: =SUM(D58:D69) -> 32711.62509 | E71: =IF(D71<>0,F71/D71,0) -> 3.096 | F71: =SUM(F58:F69) -> 101275.1913 | H71: =SUM(H58:H69) -> 32780.47913 | I71: =IF(H71<>0,J71/H71,0) -> 0.6461 | J71: =SUM(J58:J69) -> 21179.46757 | L71: =SUM(L58:L69) -> 0 | M71: =IF(L71<>0,N71/L71,0) -> 0 | N71: =SUM(N58:N69) -> 0 | P71: =SUM(P58:P69) -> 21179.46757
B73: ='16. RTSR - Historical Wholesale'!B72 -> Add Extra Host Here (II) | D73: Network | H73: Line Connection | L73: Transformation Connection | P73: Total Line
B75: Month | D75: Units Billed | E75: Rate | F75: Amount | H75: Units Billed | I75: Rate | J75: Amount | L75: Units Billed | M75: Rate | N75: Amount | P75: Amount
B77: January | D77: ='16. RTSR - Historical Wholesale'!D76 -> 5108.349432 | E77: ='15. RTSR - UTRs & Sub-Tx'!G65 -> 2.7207 | F77: =D77*E77 -> 13898.2863 | H77: ='16. RTSR - Historical Wholesale'!H76 -> 5108.349833 | I77: ='15. RTSR - UTRs & Sub-Tx'!G67 -> 1.9124 | J77: =H77*I77 -> 9769.208221 | L77: ='16. RTSR - Historical Wholesale'!L76 -> 0 | M77: ='15. RTSR - UTRs & Sub-Tx'!G69 -> 0 | N77: =L77*M77 -> 0 | P77: =J77+N77 -> 9769.208221
B78: February | D78: ='16. RTSR - Historical Wholesale'!D77 -> 5191.090333 | E78: =E77 -> 2.7207 | F78: =D78*E78 -> 14123.39947 | H78: ='16. RTSR - Historical Wholesale'!H77 -> 5191.090117 | I78: =I77 -> 1.9124 | J78: =H78*I78 -> 9927.44074 | L78: ='16. RTSR - Historical Wholesale'!L77 -> 0 | M78: =M77 -> 0 | N78: =L78*M78 -> 0 | P78: 9927.44074
B79: March | D79: ='16. RTSR - Historical Wholesale'!D78 -> 7517.830925 | E79: =E78 -> 2.7207 | F79: 20453.7626 | H79: ='16. RTSR - Historical Wholesale'!H78 -> 7663.947502 | I79: =I78 -> 1.9124 | J79: 14656.5332 | L79: ='16. RTSR - Historical Wholesale'!L78 -> 0 | M79: =M78 -> 0 | N79: 0 | P79: 14656.5332
B80: April | D80: ='16. RTSR - Historical Wholesale'!D79 -> 12217.61842 | E80: 2.7207 | F80: 33240.47444 | H80: ='16. RTSR - Historical Wholesale'!H79 -> 12217.62177 | I80: 1.9124 | J80: 23364.97987 | L80: ='16. RTSR - Historical Wholesale'!L79 -> 0 | M80: =M79 -> 0 | N80: 0 | P80: 23364.97987
B81: May | D81: ='16. RTSR - Historical Wholesale'!D80 -> 7715.170695 | E81: 2.7207 | F81: 20990.66491 | H81: ='16. RTSR - Historical Wholesale'!H80 -> 7715.16942 | I81: 1.9124 | J81: 14754.49 | L81: ='16. RTSR - Historical Wholesale'!L80 -> 0 | M81: 0 | N81: 0 | P81: 14754.49
B82: June | D82: ='16. RTSR - Historical Wholesale'!D81 -> 8355.010087 | E82: 2.7207 | F82: 22731.47594 | H82: ='16. RTSR - Historical Wholesale'!H81 -> 8355.01025 | I82: 1.9124 | J82: 15978.1216 | L82: ='16. RTSR - Historical Wholesale'!L81 -> 0 | M82: 0 | N82: 0 | P82: 15978.1216
B83: July | D83: ='16. RTSR - Historical Wholesale'!D82 -> 9109.478223 | E83: 2.7207 | F83: 24784.1574 | H83: ='16. RTSR - Historical Wholesale'!H82 -> 9109.477873 | I83: 1.9124 | J83: 17420.96548 | L83: ='16. RTSR - Historical Wholesale'!L82 -> 0 | M83: 0 | N83: 0 | P83: 17420.96548
B84: August | D84: ='16. RTSR - Historical Wholesale'!D83 -> 8310.839036 | E84: 2.7207 | F84: 22611.29977 | H84: ='16. RTSR - Historical Wholesale'!H83 -> 8310.840468 | I84: 1.9124 | J84: 15893.65131 | L84: ='16. RTSR - Historical Wholesale'!L83 -> 0 | M84: 0 | N84: 0 | P84: 15893.65131
B85: September | D85: ='16. RTSR - Historical Wholesale'!D84 -> 8605.981249 | E85: 2.7207 | F85: 23414.29318 | H85: ='16. RTSR - Historical Wholesale'!H84 -> 8605.980948 | I85: 1.9124 | J85: 16458.07796 | L85: ='16. RTSR - Historical Wholesale'!L84 -> 0 | M85: 0 | N85: 0 | P85: 16458.07796
B86: October | D86: ='16. RTSR - Historical Wholesale'!D85 -> 6941.611614 | E86: 2.7207 | F86: 18886.04272 | H86: ='16. RTSR - Historical Wholesale'!H85 -> 6985.777161 | I86: 1.9124 | J86: 13359.60024 | L86: ='16. RTSR - Historical Wholesale'!L85 -> 0 | M86: 0 | N86: 0 | P86: 13359.60024
B87: November | D87: ='16. RTSR - Historical Wholesale'!D86 -> 8037.999921 | E87: 2.7207 | F87: 21868.98638 | H87: ='16. RTSR - Historical Wholesale'!H86 -> 8038.001929 | I87: 1.9124 | J87: 15371.87489 | L87: ='16. RTSR - Historical Wholesale'!L86 -> 0 | M87: 0 | N87: 0 | P87: 15371.87489
B88: December | D88: ='16. RTSR - Historical Wholesale'!D87 -> 8728.228965 | E88: 2.7207 | F88: 23746.89254 | H88: ='16. RTSR - Historical Wholesale'!H87 -> 8728.228627 | I88: 1.9124 | J88: 16691.86443 | L88: ='16. RTSR - Historical Wholesale'!L87 -> 0 | M88: 0 | N88: 0 | P88: 16691.86443
B90: Total | D90: =SUM(D77:D88) -> 95839.2089 | E90: =IF(D90<>0,F90/D90,0) -> 2.7207 | F90: =SUM(F77:F88) -> 260749.7357 | H90: =SUM(H77:H88) -> 96029.4959 | I90: =IF(H90<>0,J90/H90,0) -> 1.9124 | J90: =SUM(J77:J88) -> 183646.808 | L90: =SUM(L77:L88) -> 0 | M90: =IF(L90<>0,N90/L90,0) -> 0 | N90: =SUM(N77:N88) -> 0 | P90: =SUM(P77:P88) -> 183646.808
B92: Total | D92: Network | H92: Line Connection | L92: Transformation Connection | P92: Total Line
B94: Month | D94: Units Billed | E94: Rate | F94: Amount | H94: Units Billed | I94: Rate | J94: Amount | L94: Units Billed | M94: Rate | N94: Amount | P94: Amount
B96: January | D96: =D20+D39+D58+D77 -> 229550.8586 | E96: =IF(D96<>0,F96/D96,0) -> 3.768896278 | F96: =F20+F39+F58+F77 -> 865153.3767 | H96: =H20+H39+H58+H77 -> 234226.8653 | I96: =IF(H96<>0,J96/H96,0) -> 0.8375854691 | J96: =J20+J39+J58+J77 -> 196185.0189 | L96: =L20+L39+L58+L77 -> 32329 | M96: =IF(L96<>0,N96/L96,0) -> 1.884301401 | N96: =N20+N39+N58+N77 -> 60917.58 | P96: =J96+N96 -> 257102.5989
B97: February | D97: =D21+D40+D59+D78 -> 223941.9212 | E97: 3.767704275 | F97: =F21+F40+F59+F78 -> 843746.9337 | H97: =H21+H40+H59+H78 -> 227446.915 | I97: 0.8385521654 | J97: =J21+J40+J59+J78 -> 190726.1031 | L97: =L21+L40+L59+L78 -> 32607 | M97: 1.876814794 | N97: =N21+N40+N59+N78 -> 61197.3 | P97: 251923.4031
B98: March | D98: 214859.1711 | E98: 3.75567031 | F98: 806940.2097 | H98: 225759.4706 | I98: 0.8511063668 | J98: 192145.3228 | L98: 31487 | M98: 1.880416045 | N98: 59208.66 | P98: 251353.9828
B99: April | D99: 205307.4771 | E99: 3.729149979 | F99: 765622.3738 | H99: 214569.0876 | I99: 0.8764697084 | J99: 188063.3057 | L99: 29865 | M99: 1.884566549 | N99: 56282.58 | P99: 244345.8857
B100: May | D100: 228899.4025 | E100: 3.760476007 | F100: 860770.7109 | H100: 239046.3957 | I100: 0.8501938516 | J100: 203235.7758 | L100: 30457.77 | M100: 1.887785856 | N100: 57497.7474 | P100: 260733.5232
B101: June | D101: 262257.6867 | E101: 3.765005335 | F101: 987401.5894 | H101: 265319.249 | I101: 0.8496970651 | J101: 225440.9872 | L101: 32547.06 | M101: 1.896091297 | N101: 61712.1972 | P101: 287153.1844
B102: July | D102: 283428.828 | E102: 3.762817763 | F102: 1066491.028 | H102: 297841.3594 | I102: 0.848417875 | J102: 252693.9332 | L102: 35836.12 | M102: 1.886714142 | N102: 67612.5144 | P102: 320306.4476
B103: August | D103: 258211.6977 | E103: 3.762904609 | F103: 971625.9873 | H103: 270826.7297 | I103: 0.8485901077 | J103: 229820.8837 | L103: 32022.28 | M103: 1.884562049 | N103: 60347.9736 | P103: 290168.8573
B104: September | D104: 266849.7898 | E104: 3.76270865 | F104: 1004078.012 | H104: 278133.0235 | I104: 0.8486902232 | J104: 236048.7778 | L104: 29878.4 | M104: 1.87123032 | N104: 55909.368 | P104: 291958.1458
B105: October | D105: 194726.8116 | E105: 3.756147383 | F105: 731422.6039 | H105: 209492.123 | I105: 0.8508998233 | J105: 178256.8104 | L105: 25264.77 | M105: 1.876412388 | N105: 47407.1274 | P105: 225663.9378
B106: November | D106: 247339.111 | E106: 3.762272535 | F106: 930557.1443 | H106: 229450.6297 | I106: 0.8526188476 | J106: 195633.9314 | L106: 29514.14 | M106: 1.885979629 | N106: 55663.0668 | P106: 251296.9982
B107: December | D107: 217465.9688 | E107: 3.748579686 | F107: 815188.5131 | H107: 244760.5766 | I107: 0.8531400943 | J107: 208815.0614 | L107: 32298.91 | M107: 1.883399601 | N107: 60831.7542 | P107: 269646.8156
B109: Total | D109: =SUM(D96:D107) -> 2832838.724 | E109: =IF(D109<>0,F109/D109,0) -> 3.759126276 | F109: =SUM(F96:F107) -> 10648998.48 | H109: =SUM(H96:H107) -> 2936872.425 | I109: =IF(H109<>0,J109/H109,0) -> 0.85024664 | J109: =SUM(J96:J107) -> 2497065.911 | L109: =SUM(L96:L107) -> 374107.45 | M109: =IF(L109<>0,N109/L109,0) -> 1.883383688 | N109: =SUM(N96:N107) -> 704587.869 | P109: =SUM(P96:P107) -> 3201653.78
N111: Transformer Allowance Credit (if applicable) | P111: ='15. RTSR - UTRs & Sub-Tx'!G95 -> 0
N113: Total including deduction for Transformer Allowance Credit | P113: =P109+P111 -> 3201653.78

Sheet 18. RTSR - Forecast Wholesale
B13: The purpose of this sheet is to calculate the expected billing when forecasted 2015 Uniform Transmission Rates are applied against historical 2013 transmission units.
B16: IESO | D16: Network | H16: Line Connection | L16: Transformation Connection | P16: Total Line
B18: Month | D18: Units Billed | E18: Rate | F18: Amount | H18: Units Billed | I18: Rate | J18: Amount | L18: Units Billed | M18: Rate | N18: Amount | P18: Amount
B20: January | D20: ='16. RTSR - Historical Wholesale'!D19 -> 212740 | E20: ='15. RTSR - UTRs & Sub-Tx'!I22 -> 3.82 | F20: =D20*E20 -> 812666.8 | H20: ='16. RTSR - Historical Wholesale'!H19 -> 217226 | I20: ='15. RTSR - UTRs & Sub-Tx'!I24 -> 0.82 | J20: =H20*I20 -> 178125.32 | L20: ='16. RTSR - Historical Wholesale'!L19 -> 23735 | M20: ='15. RTSR - UTRs & Sub-Tx'!I26 -> 1.98 | N20: =L20*M20 -> 46995.3 | P20: =J20+N20 -> 225120.62
B21: February | D21: ='16. RTSR - Historical Wholesale'!D20 -> 206978 | E21: =E20 -> 3.82 | F21: 790655.96 | H21: ='16. RTSR - Historical Wholesale'!H20 -> 210117 | I21: =I20 -> 0.82 | J21: 172295.94 | L21: ='16. RTSR - Historical Wholesale'!L20 -> 23261 | M21: =M20 -> 1.98 | N21: 46056.78 | P21: 218352.72
B22: March | D22: ='16. RTSR - Historical Wholesale'!D21 -> 196431 | E22: 3.82 | F22: 750366.42 | H22: ='16. RTSR - Historical Wholesale'!H21 -> 206799 | I22: 0.82 | J22: 169575.18 | L22: ='16. RTSR - Historical Wholesale'!L21 -> 22777 | M22: 1.98 | N22: 45098.46 | P22: 214673.64
B23: April | D23: ='16. RTSR - Historical Wholesale'!D22 -> 182846 | E23: 3.82 | F23: 698471.72 | H23: ='16. RTSR - Historical Wholesale'!H22 -> 192065 | I23: 0.82 | J23: 157493.3 | L23: ='16. RTSR - Historical Wholesale'!L22 -> 21948 | M23: 1.98 | N23: 43457.04 | P23: 200950.34
B24: May | D24: ='16. RTSR - Historical Wholesale'!D23 -> 211057 | E24: 3.82 | F24: 806237.74 | H24: ='16. RTSR - Historical Wholesale'!H23 -> 221204 | I24: 0.82 | J24: 181387.28 | L24: ='16. RTSR - Historical Wholesale'!L23 -> 22656 | M24: 1.98 | N24: 44858.88 | P24: 226246.16
B25: June | D25: ='16. RTSR - Historical Wholesale'!D24 -> 243780 | E25: 3.82 | F25: 931239.6 | H25: ='16. RTSR - Historical Wholesale'!H24 -> 246709 | I25: 0.82 | J25: 202301.38 | L25: ='16. RTSR - Historical Wholesale'!L24 -> 24961 | M25: 1.98 | N25: 49422.78 | P25: 251724.16
B26: July | D26: ='16. RTSR - Historical Wholesale'!D25 -> 262249 | E26: 3.82 | F26: 1001791.18 | H26: ='16. RTSR - Historical Wholesale'!H25 -> 276410 | I26: 0.82 | J26: 226656.2 | L26: ='16. RTSR - Historical Wholesale'!L25 -> 26550 | M26: 1.98 | N26: 52569 | P26: 279225.2
B27: August | D27: ='16. RTSR - Historical Wholesale'!D26 -> 238928 | E27: 3.82 | F27: 912704.96 | H27: ='16. RTSR - Historical Wholesale'!H26 -> 251388 | I27: 0.82 | J27: 206138.16 | L27: ='16. RTSR - Historical Wholesale'!L26 -> 23533 | M27: 1.98 | N27: 46595.34 | P27: 252733.5
B28: September | D28: ='16. RTSR - Historical Wholesale'!D27 -> 246882 | E28: 3.82 | F28: 943089.24 | H28: ='16. RTSR - Historical Wholesale'!H27 -> 257688 | I28: 0.82 | J28: 211304.16 | L28: ='16. RTSR - Historical Wholesale'!L27 -> 20851 | M28: 1.98 | N28: 41284.98 | P28: 252589.14
B29: October | D29: ='16. RTSR - Historical Wholesale'!D28 -> 178436 | E29: 3.82 | F29: 681625.52 | H29: ='16. RTSR - Historical Wholesale'!H28 -> 192896 | I29: 0.82 | J29: 158174.72 | L29: ='16. RTSR - Historical Wholesale'!L28 -> 17995 | M29: 1.98 | N29: 35630.1 | P29: 193804.82
B30: November | D30: ='16. RTSR - Historical Wholesale'!D29 -> 228849 | E30: 3.82 | F30: 874203.18 | H30: ='16. RTSR - Historical Wholesale'!H29 -> 210829 | I30: 0.82 | J30: 172879.78 | L30: ='16. RTSR - Historical Wholesale'!L29 -> 21806 | M30: 1.98 | N30: 43175.88 | P30: 216055.66
B31: December | D31: ='16. RTSR - Historical Wholesale'!D30 -> 197240 | E31: 3.82 | F31: 753456.8 | H31: ='16. RTSR - Historical Wholesale'!H30 -> 224329 | I31: 0.82 | J31: 183949.78 | L31: ='16. RTSR - Historical Wholesale'!L30 -> 23632 | M31: 1.98 | N31: 46791.36 | P31: 230741.14
B33: Total | D33: =SUM(D20:D31) -> 2606416 | E33: =IF(D33<>0,F33/D33,0) -> 3.82 | F33: =SUM(F20:F31) -> 9956509.12 | H33: =SUM(H20:H31) -> 2707660 | I33: =IF(H33<>0,J33/H33,0) -> 0.82 | J33: =SUM(J20:J31) -> 2220281.2 | L33: =SUM(L20:L31) -> 273705 | M33: =IF(L33<>0,N33/L33,0) -> 1.98 | N33: =SUM(N20:N31) -> 541935.9 | P33: =SUM(P20:P31) -> 2762217.1
B35: Hydro One | D35: Network | H35: Line Connection | L35: Transformation Connection | P35: Total Line
B37: Month | D37: Units Billed | E37: Rate | F37: Amount | H37: Units Billed | I37: Rate | J37: Amount | L37: Units Billed | M37: Rate | N37: Amount | P37: Amount
B39: January | D39: ='16. RTSR - Historical Wholesale'!D38 -> 8404 | E39: ='15. RTSR - UTRs & Sub-Tx'!I35+'15. RTSR - UTRs & Sub-Tx'!I79 -> 3.3765 | F39: =D39*E39 -> 28376.106 | H39: ='16. RTSR - Historical Wholesale'!H38 -> 8594 | I39: ='15. RTSR - UTRs & Sub-Tx'!I37+'15. RTSR - UTRs & Sub-Tx'!I81 -> 0.7167 | J39: =H39*I39 -> 6159.3198 | L39: ='16. RTSR - Historical Wholesale'!L38 -> 8594 | M39: ='15. RTSR - UTRs & Sub-Tx'!I39 -> 1.62 | N39: =L39*M39 -> 13922.28 | P39: =J39+N39 -> 20081.5998
B40: February | D40: ='16. RTSR - Historical Wholesale'!D39 -> 8980 | E40: =E39 -> 3.3765 | F40: 30320.97 | H40: ='16. RTSR - Historical Wholesale'!H39 -> 9346 | I40: =I39 -> 0.7167 | J40: 6698.2782 | L40: ='16. RTSR - Historical Wholesale'!L39 -> 9346 | M40: =M39 -> 1.62 | N40: 15140.52 | P40: 21838.7982
B41: March | D41: ='16. RTSR - Historical Wholesale'!D40 -> 8348 | E41: 3.3765 | F41: 28187.022 | H41: ='16. RTSR - Historical Wholesale'!H40 -> 8710 | I41: 0.7167 | J41: 6242.457 | L41: ='16. RTSR - Historical Wholesale'!L40 -> 8710 | M41: 1.62 | N41: 14110.2 | P41: 20352.657
B42: April | D42: ='16. RTSR - Historical Wholesale'!D41 -> 7826 | E42: 3.3765 | F42: 26424.489 | H42: ='16. RTSR - Historical Wholesale'!H41 -> 7917 | I42: 0.7167 | J42: 5674.1139 | L42: ='16. RTSR - Historical Wholesale'!L41 -> 7917 | M42: 1.62 | N42: 12825.54 | P42: 18499.6539
B43: May | D43: ='16. RTSR - Historical Wholesale'!D42 -> 7801.77 | E43: 3.3765 | F43: 26342.67641 | H43: ='16. RTSR - Historical Wholesale'!H42 -> 7801.77 | I43: 0.7167 | J43: 5591.528559 | L43: ='16. RTSR - Historical Wholesale'!L42 -> 7801.77 | M43: 1.62 | N43: 12638.8674 | P43: 18230.39596
B44: June | D44: ='16. RTSR - Historical Wholesale'!D43 -> 7453.5 | E44: 3.3765 | F44: 25166.74275 | H44: ='16. RTSR - Historical Wholesale'!H43 -> 7586.06 | I44: 0.7167 | J44: 5436.929202 | L44: ='16. RTSR - Historical Wholesale'!L43 -> 7586.06 | M44: 1.62 | N44: 12289.4172 | P44: 17726.3464
B45: July | D45: ='16. RTSR - Historical Wholesale'!D44 -> 9076.25 | E45: 3.3765 | F45: 30645.95813 | H45: ='16. RTSR - Historical Wholesale'!H44 -> 9286.12 | I45: 0.7167 | J45: 6655.362204 | L45: ='16. RTSR - Historical Wholesale'!L44 -> 9286.12 | M45: 1.62 | N45: 15043.5144 | P45: 21698.8766
B46: August | D46: ='16. RTSR - Historical Wholesale'!D45 -> 8334.25 | E46: 3.3765 | F46: 28140.59512 | H46: ='16. RTSR - Historical Wholesale'!H45 -> 8489.28 | I46: 0.7167 | J46: 6084.266976 | L46: ='16. RTSR - Historical Wholesale'!L45 -> 8489.28 | M46: 1.62 | N46: 13752.6336 | P46: 19836.90058
B47: September | D47: ='16. RTSR - Historical Wholesale'!D46 -> 8550.16 | E47: 3.3765 | F47: 28869.61524 | H47: ='16. RTSR - Historical Wholesale'!H46 -> 9027.4 | I47: 0.7167 | J47: 6469.93758 | L47: ='16. RTSR - Historical Wholesale'!L46 -> 9027.4 | M47: 1.62 | N47: 14624.388 | P47: 21094.32558
B48: October | D48: ='16. RTSR - Historical Wholesale'!D47 -> 7008.62 | E48: 3.3765 | F48: 23664.60543 | H48: ='16. RTSR - Historical Wholesale'!H47 -> 7269.77 | I48: 0.7167 | J48: 5210.244159 | L48: ='16. RTSR - Historical Wholesale'!L47 -> 7269.77 | M48: 1.62 | N48: 11777.0274 | P48: 16987.27156
B49: November | D49: ='16. RTSR - Historical Wholesale'!D48 -> 7576.62 | E49: 3.3765 | F49: 25582.45743 | H49: ='16. RTSR - Historical Wholesale'!H48 -> 7708.14 | I49: 0.7167 | J49: 5524.423938 | L49: ='16. RTSR - Historical Wholesale'!L48 -> 7708.14 | M49: 1.62 | N49: 12487.1868 | P49: 18011.61074
B50: December | D50: ='16. RTSR - Historical Wholesale'!D49 -> 8512.72 | E50: 3.3765 | F50: 28743.19908 | H50: ='16. RTSR - Historical Wholesale'!H49 -> 8666.91 | I50: 0.7167 | J50: 6211.574397 | L50: ='16. RTSR - Historical Wholesale'!L49 -> 8666.91 | M50: 1.62 | N50: 14040.3942 | P50: 20251.9686
B52: Total | D52: =SUM(D39:D50) -> 97871.89 | E52: =IF(D52<>0,F52/D52,0) -> 3.3765 | F52: =SUM(F39:F50) -> 330464.4366 | H52: =SUM(H39:H50) -> 100402.45 | I52: =IF(H52<>0,J52/H52,0) -> 0.7167 | J52: =SUM(J39:J50) -> 71958.43591 | L52: =SUM(L39:L50) -> 100402.45 | M52: =IF(L52<>0,N52/L52,0) -> 1.62 | N52: =SUM(N39:N50) -> 162651.969 | P52: =SUM(P39:P50) -> 234610.4049
B54: ='16. RTSR - Historical Wholesale'!B53 -> Add Extra Host Here (I) | D54: Network | H54: Line Connection | L54: Transformation Connection | P54: Total Line
B56: Month | D56: Units Billed | E56: Rate | F56: Amount | H56: Units Billed | I56: Rate | J56: Amount | L56: Units Billed | M56: Rate | N56: Amount | P56: Amount
B58: January | D58: ='16. RTSR - Historical Wholesale'!D57 -> 3298.509174 | E58: ='15. RTSR - UTRs & Sub-Tx'!I50 -> 3.096 | F58: =D58*E58 -> 10212.1844 | H58: ='16. RTSR - Historical Wholesale'!H57 -> 3298.5155 | I58: ='15. RTSR - UTRs & Sub-Tx'!I52 -> 0.6461 | J58: =H58*I58 -> 2131.170865 | L58: ='16. RTSR - Historical Wholesale'!L57 -> 0 | M58: ='15. RTSR - UTRs & Sub-Tx'!I54 -> 0 | N58: =L58*M58 -> 0 | P58: =J58+N58 -> 2131.170865
B59: February | D59: ='16. RTSR - Historical Wholesale'!D58 -> 2792.830831 | E59: =E58 -> 3.096 | F59: 8646.604254 | H59: ='16. RTSR - Historical Wholesale'!H58 -> 2792.824916 | I59: =I58 -> 0.6461 | J59: 1804.444178 | L59: ='16. RTSR - Historical Wholesale'!L58 -> 0 | M59: =M58 -> 0 | N59: 0 | P59: 1804.444178
B60: March | D60: ='16. RTSR - Historical Wholesale'!D59 -> 2562.340145 | E60: 3.096 | F60: 7933.005088 | H60: ='16. RTSR - Historical Wholesale'!H59 -> 2586.523068 | I60: 0.6461 | J60: 1671.152554 | L60: ='16. RTSR - Historical Wholesale'!L59 -> 0 | M60: 0 | N60: 0 | P60: 1671.152554
B61: April | D61: ='16. RTSR - Historical Wholesale'!D60 -> 2417.858632 | E61: 3.096 | F61: 7485.690325 | H61: ='16. RTSR - Historical Wholesale'!H60 -> 2369.465871 | I61: 0.6461 | J61: 1530.911899 | L61: ='16. RTSR - Historical Wholesale'!L60 -> 0 | M61: 0 | N61: 0 | P61: 1530.911899
B62: May | D62: ='16. RTSR - Historical Wholesale'!D61 -> 2325.461764 | E62: 3.096 | F62: 7199.629622 | H62: ='16. RTSR - Historical Wholesale'!H61 -> 2325.456262 | I62: 0.6461 | J62: 1502.477291 | L62: ='16. RTSR - Historical Wholesale'!L61 -> 0 | M62: 0 | N62: 0 | P62: 1502.477291
B63: June | D63: ='16. RTSR - Historical Wholesale'!D62 -> 2669.176592 | E63: 3.096 | F63: 8263.77073 | H63: ='16. RTSR - Historical Wholesale'!H62 -> 2669.178729 | I63: 0.6461 | J63: 1724.556377 | L63: ='16. RTSR - Historical Wholesale'!L62 -> 0 | M63: 0 | N63: 0 | P63: 1724.556377
B64: July | D64: ='16. RTSR - Historical Wholesale'!D63 -> 2994.099776 | E64: 3.096 | F64: 9269.732905 | H64: ='16. RTSR - Historical Wholesale'!H63 -> 3035.761485 | I64: 0.6461 | J64: 1961.405496 | L64: ='16. RTSR - Historical Wholesale'!L63 -> 0 | M64: 0 | N64: 0 | P64: 1961.405496
B65: August | D65: ='16. RTSR - Historical Wholesale'!D64 -> 2638.608666 | E65: 3.096 | F65: 8169.132429 | H65: ='16. RTSR - Historical Wholesale'!H64 -> 2638.609188 | I65: 0.6461 | J65: 1704.805396 | L65: ='16. RTSR - Historical Wholesale'!L64 -> 0 | M65: 0 | N65: 0 | P65: 1704.805396
B66: September | D66: ='16. RTSR - Historical Wholesale'!D65 -> 2811.648541 | E66: 3.096 | F66: 8704.863884 | H66: ='16. RTSR - Historical Wholesale'!H65 -> 2811.642542 | I66: 0.6461 | J66: 1816.602247 | L66: ='16. RTSR - Historical Wholesale'!L65 -> 0 | M66: 0 | N66: 0 | P66: 1816.602247
B67: October | D67: ='16. RTSR - Historical Wholesale'!D66 -> 2340.58001 | E67: 3.096 | F67: 7246.435712 | H67: ='16. RTSR - Historical Wholesale'!H66 -> 2340.575834 | I67: 0.6461 | J67: 1512.246046 | L67: ='16. RTSR - Historical Wholesale'!L66 -> 0 | M67: 0 | N67: 0 | P67: 1512.246046
B68: November | D68: ='16. RTSR - Historical Wholesale'!D67 -> 2875.49111 | E68: 3.096 | F68: 8902.520476 | H68: ='16. RTSR - Historical Wholesale'!H67 -> 2875.487728 | I68: 0.6461 | J68: 1857.852621 | L68: ='16. RTSR - Historical Wholesale'!L67 -> 0 | M68: 0 | N68: 0 | P68: 1857.852621
B69: December | D69: ='16. RTSR - Historical Wholesale'!D68 -> 2985.019852 | E69: 3.096 | F69: 9241.62146 | H69: ='16. RTSR - Historical Wholesale'!H68 -> 3036.438011 | I69: 0.6461 | J69: 1961.842599 | L69: ='16. RTSR - Historical Wholesale'!L68 -> 0 | M69: 0 | N69: 0 | P69: 1961.842599
B71: Total | D71: =SUM(D58:D69) -> 32711.62509 | E71: =IF(D71<>0,F71/D71,0) -> 3.096 | F71: =SUM(F58:F69) -> 101275.1913 | H71: =SUM(H58:H69) -> 32780.47913 | I71: =IF(H71<>0,J71/H71,0) -> 0.6461 | J71: =SUM(J58:J69) -> 21179.46757 | L71: =SUM(L58:L69) -> 0 | M71: =IF(L71<>0,N71/L71,0) -> 0 | N71: =SUM(N58:N69) -> 0 | P71: =SUM(P58:P69) -> 21179.46757
B73: ='16. RTSR - Historical Wholesale'!B72 -> Add Extra Host Here (II) | D73: Network | H73: Line Connection | L73: Transformation Connection | P73: Total Line
B75: Month | D75: Units Billed | E75: Rate | F75: Amount | H75: Units Billed | I75: Rate | J75: Amount | L75: Units Billed | M75: Rate | N75: Amount | P75: Amount
B77: January | D77: ='16. RTSR - Historical Wholesale'!D76 -> 5108.349432 | E77: ='15. RTSR - UTRs & Sub-Tx'!I65 -> 2.7207 | F77: =D77*E77 -> 13898.2863 | H77: ='16. RTSR - Historical Wholesale'!H76 -> 5108.349833 | I77: ='15. RTSR - UTRs & Sub-Tx'!I67 -> 1.9124 | J77: =H77*I77 -> 9769.208221 | L77: ='16. RTSR - Historical Wholesale'!L76 -> 0 | M77: ='15. RTSR - UTRs & Sub-Tx'!I69 -> 0 | N77: =L77*M77 -> 0 | P77: =J77+N77 -> 9769.208221
B78: February | D78: ='16. RTSR - Historical Wholesale'!D77 -> 5191.090333 | E78: =E77 -> 2.7207 | F78: 14123.39947 | H78: ='16. RTSR - Historical Wholesale'!H77 -> 5191.090117 | I78: =I77 -> 1.9124 | J78: 9927.44074 | L78: ='16. RTSR - Historical Wholesale'!L77 -> 0 | M78: =M77 -> 0 | N78: 0 | P78: 9927.44074
B79: March | D79: ='16. RTSR - Historical Wholesale'!D78 -> 7517.830925 | E79: 2.7207 | F79: 20453.7626 | H79: ='16. RTSR - Historical Wholesale'!H78 -> 7663.947502 | I79: 1.9124 | J79: 14656.5332 | L79: ='16. RTSR - Historical Wholesale'!L78 -> 0 | M79: 0 | N79: 0 | P79: 14656.5332
B80: April | D80: ='16. RTSR - Historical Wholesale'!D79 -> 12217.61842 | E80: 2.7207 | F80: 33240.47444 | H80: ='16. RTSR - Historical Wholesale'!H79 -> 12217.62177 | I80: 1.9124 | J80: 23364.97987 | L80: ='16. RTSR - Historical Wholesale'!L79 -> 0 | M80: 0 | N80: 0 | P80: 23364.97987
B81: May | D81: ='16. RTSR - Historical Wholesale'!D80 -> 7715.170695 | E81: 2.7207 | F81: 20990.66491 | H81: ='16. RTSR - Historical Wholesale'!H80 -> 7715.16942 | I81: 1.9124 | J81: 14754.49 | L81: ='16. RTSR - Historical Wholesale'!L80 -> 0 | M81: 0 | N81: 0 | P81: 14754.49
B82: June | D82: ='16. RTSR - Historical Wholesale'!D81 -> 8355.010087 | E82: 2.7207 | F82: 22731.47594 | H82: ='16. RTSR - Historical Wholesale'!H81 -> 8355.01025 | I82: 1.9124 | J82: 15978.1216 | L82: ='16. RTSR - Historical Wholesale'!L81 -> 0 | M82: 0 | N82: 0 | P82: 15978.1216
B83: July | D83: ='16. RTSR - Historical Wholesale'!D82 -> 9109.478223 | E83: 2.7207 | F83: 24784.1574 | H83: ='16. RTSR - Historical Wholesale'!H82 -> 9109.477873 | I83: 1.9124 | J83: 17420.96548 | L83: ='16. RTSR - Historical Wholesale'!L82 -> 0 | M83: 0 | N83: 0 | P83: 17420.96548
B84: August | D84: ='16. RTSR - Historical Wholesale'!D83 -> 8310.839036 | E84: 2.7207 | F84: 22611.29977 | H84: ='16. RTSR - Historical Wholesale'!H83 -> 8310.840468 | I84: 1.9124 | J84: 15893.65131 | L84: ='16. RTSR - Historical Wholesale'!L83 -> 0 | M84: 0 | N84: 0 | P84: 15893.65131
B85: September | D85: ='16. RTSR - Historical Wholesale'!D84 -> 8605.981249 | E85: 2.7207 | F85: 23414.29318 | H85: ='16. RTSR - Historical Wholesale'!H84 -> 8605.980948 | I85: 1.9124 | J85: 16458.07796 | L85: ='16. RTSR - Historical Wholesale'!L84 -> 0 | M85: 0 | N85: 0 | P85: 16458.07796
B86: October | D86: ='16. RTSR - Historical Wholesale'!D85 -> 6941.611614 | E86: 2.7207 | F86: 18886.04272 | H86: ='16. RTSR - Historical Wholesale'!H85 -> 6985.777161 | I86: 1.9124 | J86: 13359.60024 | L86: ='16. RTSR - Historical Wholesale'!L85 -> 0 | M86: 0 | N86: 0 | P86: 13359.60024
B87: November | D87: ='16. RTSR - Historical Wholesale'!D86 -> 8037.999921 | E87: 2.7207 | F87: 21868.98638 | H87: ='16. RTSR - Historical Wholesale'!H86 -> 8038.001929 | I87: 1.9124 | J87: 15371.87489 | L87: ='16. RTSR - Historical Wholesale'!L86 -> 0 | M87: 0 | N87: 0 | P87: 15371.87489
B88: December | D88: ='16. RTSR - Historical Wholesale'!D87 -> 8728.228965 | E88: 2.7207 | F88: 23746.89254 | H88: ='16. RTSR - Historical Wholesale'!H87 -> 8728.228627 | I88: 1.9124 | J88: 16691.86443 | L88: ='16. RTSR - Historical Wholesale'!L87 -> 0 | M88: 0 | N88: 0 | P88: 16691.86443
B90: Total | D90: =SUM(D77:D88) -> 95839.2089 | E90: =IF(D90<>0,F90/D90,0) -> 2.7207 | F90: =SUM(F77:F88) -> 260749.7357 | H90: =SUM(H77:H88) -> 96029.4959 | I90: =IF(H90<>0,J90/H90,0) -> 1.9124 | J90: =SUM(J77:J88) -> 183646.808 | L90: =SUM(L77:L88) -> 0 | M90: =IF(L90<>0,N90/L90,0) -> 0 | N90: =SUM(N77:N88) -> 0 | P90: =SUM(P77:P88) -> 183646.808
B92: Total | D92: Network | H92: Line Connection | L92: Transformation Connection | P92: Total Line
B94: Month | D94: Units Billed | E94: Rate | F94: Amount | H94: Units Billed | I94: Rate | J94: Amount | L94: Units Billed | M94: Rate | N94: Amount | P94: Amount
B96: January | D96: =D20+D39 -> 221144 | E96: =IF(D96<>0,F96/D96,0) -> 3.803145941 | F96: =F20+F39 -> 841042.906 | H96: =H20+H39 -> 225820 | I96: =IF(H96<>0,J96/H96,0) -> 0.8160687264 | J96: =J20+J39 -> 184284.6398 | L96: =L20+L39 -> 32329 | M96: =IF(L96<>0,N96/L96,0) -> 1.884301401 | N96: =N20+N39 -> 60917.58 | P96: =J96+N96 -> 245202.2198
B97: February | D97: 215958 | E97: 3.801558312 | F97: 820976.93 | H97: 219463 | I97: 0.8156008904 | J97: 178994.2182 | L97: 32607 | M97: 1.876814794 | N97: 61197.3 | P97: 240191.5182
B98: March | D98: 204779 | E98: 3.801920324 | F98: 778553.442 | H98: 215509 | I98: 0.8158250328 | J98: 175817.637 | L98: 31487 | M98: 1.880416045 | N98: 59208.66 | P98: 235026.297
B99: April | D99: 190672 | E99: 3.80179685 | F99: 724896.209 | H99: 199982 | I99: 0.8159105014 | J99: 163167.4139 | L99: 29865 | M99: 1.884566549 | N99: 56282.58 | P99: 219449.9939
B100: May | D100: 218858.77 | E100: 3.80419033 | F100: 832580.4164 | H100: 229005.77 | I100: 0.816480775 | J100: 186978.8086 | L100: 30457.77 | M100: 1.887785856 | N100: 57497.7474 | P100: 244476.556
B101: June | D101: 251233.5 | E101: 3.806842411 | F101: 956406.3427 | H101: 254295.06 | I101: 0.8169183829 | J101: 207738.3092 | L101: 32547.06 | M101: 1.896091297 | N101: 61712.1972 | P101: 269450.5064
B102: July | D102: 271325.25 | E102: 3.805164238 | F102: 1032437.138 | H102: 285696.12 | I102: 0.8166423898 | J102: 233311.5622 | L102: 35836.12 | M102: 1.886714142 | N102: 67612.5144 | P102: 300924.0766
B103: August | D103: 247262.25 | E103: 3.805051338 | F103: 940845.5551 | H103: 259877.28 | I103: 0.816625551 | J103: 212222.427 | L103: 32022.28 | M103: 1.884562049 | N103: 60347.9736 | P103: 272570.4006
B104: September | D104: 255432.16 | E104: 3.805154587 | F104: 971958.8552 | H104: 266715.4 | I104: 0.8165036499 | J104: 217774.0976 | L104: 29878.4 | M104: 1.87123032 | N104: 55909.368 | P104: 273683.4656
B105: October | D105: 185444.62 | E105: 3.803238538 | F105: 705290.1254 | H105: 200165.77 | I105: 0.8162482734 | J105: 163384.9642 | L105: 25264.77 | M105: 1.876412388 | N105: 47407.1274 | P105: 210792.0916
B106: November | D106: 236425.62 | E106: 3.805787365 | F106: 899785.6374 | H106: 218537.14 | I106: 0.8163564506 | J106: 178404.2039 | L106: 29514.14 | M106: 1.885979629 | N106: 55663.0668 | P106: 234067.2707
B107: December | D107: 205752.72 | E107: 3.801650832 | F107: 782199.9991 | H107: 232995.91 | I107: 0.8161574785 | J107: 190161.3544 | L107: 32298.91 | M107: 1.883399601 | N107: 60831.7542 | P107: 250993.1086
B109: Total | D109: =SUM(D96:D107) -> 2704287.89 | E109: =IF(D109<>0,F109/D109,0) -> 3.803949126 | F109: =SUM(F96:F107) -> 10286973.56 | H109: =SUM(H96:H107) -> 2808062.45 | I109: =IF(H109<>0,J109/H109,0) -> 0.816306502 | J109: =SUM(J96:J107) -> 2292239.636 | L109: =SUM(L96:L107) -> 374107.45 | M109: =IF(L109<>0,N109/L109,0) -> 1.883383688 | N109: =SUM(N96:N107) -> 704587.869 | P109: =SUM(P96:P107) -> 2996827.505
N111: Transformer Allowance Credit (if applicable) | P111: ='15. RTSR - UTRs & Sub-Tx'!I95 -> 0
N113: Total including deduction for Transformer Allowance Credit | P113: =P109+P111 -> 2996827.505

Sheet 19. RTSR Ntwrk to Curren WS
A13: The purpose of this sheet is to re-align the current RTS Network Rates to recover current wholesale network costs.
A16: Rate Class | B16: Rate Description | C16: Unit | E16: Current RTSR-Network | G16: Loss Adjusted Billed kWh | I16: Loss Adjusted Billed kW | K16: Billed Amount | M16: Billed Amount % | O16: Current Wholesale Billing | Q16: Proposed RTSR Network
A19: RESIDENTIAL | B19: Retail Transmission Rate - Network Service Rate | C19: $/kWh | E19: 0.0076 | G19: 425984440 | I19: 0 | K19: =IF(E19="", "", IF(C19="$/kWh", E19*G19, E19*I19)) -> 3237481.744 | M19: =IF(ISERROR(K19/SUM(K19:K100)),"",K19/SUM(K19:K100)) -> 0.3078952974 | O19: =IF(ISERROR('17. RTSR - Current Wholesale'!$F$109*M19), "", '17. RTSR - Current Wholesale'!$F$109*M19) -> 3278776.555 | Q19: =IF(C19="","",IF(C19="$/kWh",IF(G19<>0,O19/G19,),IF(I19<>0,O19/I19,0))) -> 0.007696939717
A20: GENERAL SERVICE LESS THAN 50 KW | B20: Retail Transmission Rate - Network Service Rate | C20: $/kWh | E20: 0.0069 | G20: 202605362.1 | I20: 0 | K20: 1397976.999 | M20: =IF(ISERROR(K20/SUM(K19:K100)),"",K20/SUM(K19:K100)) -> 0.132952269 | O20: =IF(ISERROR('17. RTSR - Current Wholesale'!$F$109*M20), "", '17. RTSR - Current Wholesale'!$F$109*M20) -> 1415808.511 | Q20: 0.006988011059
A21: GENERAL SERVICE 50 TO 4,999 KW | B21: Retail Transmission Rate - Network Service Rate - (less than 1,000 kW) | C21: $/kW | E21: 2.8378 | G21: 0 | I21: 476304 | K21: 1351655.491 | M21: =IF(ISERROR(K21/SUM(K19:K100)),"",K21/SUM(K19:K100)) -> 0.1285469394 | O21: =IF(ISERROR('17. RTSR - Current Wholesale'!$F$109*M21), "", '17. RTSR - Current Wholesale'!$F$109*M21) -> 1368896.162 | Q21: 2.87399678
A22: GENERAL SERVICE 50 TO 4,999 KW | B22: Retail Transmission Rate - Network Service Rate - Interval Metered (less than 1,000 kW) | C22: $/kW | E22: 3.0141 | G22: 0 | I22: 725765 | K22: 2187528.286 | M22: =IF(ISERROR(K22/SUM(K19:K100)),"",K22/SUM(K19:K100)) -> 0.2080412264 | O22: =IF(ISERROR('17. RTSR - Current Wholesale'!$F$109*M22), "", '17. RTSR - Current Wholesale'!$F$109*M22) -> 2215430.704 | Q22: 3.052545526
A23: GENERAL SERVICE 50 TO 4,999 KW | B23: Retail Transmission Rate - Network Service Rate - Interval Metered (1,000 to 4,999 kW) | C23: $/kW | E23: 3.0102 | G23: 0 | I23: 569915 | K23: 1715558.133 | M23: =IF(ISERROR(K23/SUM(K19:K100)),"",K23/SUM(K19:K100)) -> 0.1631552927 | O23: =IF(ISERROR('17. RTSR - Current Wholesale'!$F$109*M23), "", '17. RTSR - Current Wholesale'!$F$109*M23) -> 1737440.464 | Q23: 3.048595781
A24: LARGE USE | B24: Retail Transmission Rate - Network Service Rate - Interval Metered | C24: $/kW | E24: 3.3372 | G24: 0 | I24: 168361 | K24: 561854.3292 | M24: =IF(ISERROR(K24/SUM(K19:K100)),"",K24/SUM(K19:K100)) -> 0.05343421815 | O24: =IF(ISERROR('17. RTSR - Current Wholesale'!$F$109*M24), "", '17. RTSR - Current Wholesale'!$F$109*M24) -> 569020.9081 | Q24: 3.37976674
A25: UNMETERED SCATTERED LOAD | B25: Retail Transmission Rate - Network Service Rate | C25: $/kWh | E25: 0.0069 | G25: 2447640.878 | I25: 0 | K25: 16888.72206 | M25: =IF(ISERROR(K25/SUM(K19:K100)),"",K25/SUM(K19:K100)) -> 0.001606173722 | O25: =IF(ISERROR('17. RTSR - Current Wholesale'!$F$109*M25), "", '17. RTSR - Current Wholesale'!$F$109*M25) -> 17104.14153 | Q25: 0.006988011059
A26: STREET LIGHTING | B26: Retail Transmission Rate - Network Service Rate | C26: $/kW | E26: 2.1404 | G26: 0 | I26: 21461 | K26: 45935.1244 | M26: =IF(ISERROR(K26/SUM(K19:K100)),"",K26/SUM(K19:K100)) -> 0.004368583333 | O26: =IF(ISERROR('17. RTSR - Current Wholesale'!$F$109*M26), "", '17. RTSR - Current Wholesale'!$F$109*M26) -> 46521.03729 | Q26: 2.167701285

Sheet 20. RTSR Adj Conn to Current WS
A13: The purpose of this sheet is to re-align the current RTS Connection Rates to recover current wholesale connection costs.
A16: Rate Class | B16: Rate Description | C16: Unit | E16: Current RTSR-Connection | G16: Loss Adjusted Billed kWh | I16: Loss Adjusted Billed kW | K16: Billed Amount | M16: Billed Amount % | O16: Current Wholesale Billing | Q16: Proposed RTSR Connection
A19: RESIDENTIAL | B19: Retail Transmission Rate - Line and Transformation Connection Service Rate | C19: $/kWh | E19: 0.0022 | G19: 425984440 | I19: 0 | K19: =IF(E19="", "", IF(C19="$/kWh", E19*G19, E19*I19)) -> 937165.768 | M19: =IF(ISERROR(K19/SUM(K19:K100)),"",K19/SUM(K19:K100)) -> 0.2957454357 | O19: =IF(ISERROR('17. RTSR - Current Wholesale'!$P$113*M19), "", '17. RTSR - Current Wholesale'!$P$113*M19) -> 946874.4923 | Q19: =IF(C19="","",IF(C19="$/kWh",IF(G19<>0,O19/G19,),IF(I19<>0,O19/I19,0))) -> 0.002222791265
A20: GENERAL SERVICE LESS THAN 50 KW | B20: Retail Transmission Rate - Line and Transformation Connection Service Rate | C20: $/kWh | E20: 0.002 | G20: 202605362.1 | I20: 0 | K20: 405210.7243 | M20: =IF(ISERROR(K20/SUM(K19:K100)),"",K20/SUM(K19:K100)) -> 0.1278740926 | O20: =IF(ISERROR('17. RTSR - Current Wholesale'!$P$113*M20), "", '17. RTSR - Current Wholesale'!$P$113*M20) -> 409408.572 | Q20: 0.002020719332
A21: GENERAL SERVICE 50 TO 4,999 KW | B21: Retail Transmission Rate - Line and Transformation Connection Service Rate - (less than 1,000 kW) | C21: $/kW | E21: 0.7815 | G21: 0 | I21: 476304 | K21: 372231.576 | M21: =IF(ISERROR(K21/SUM(K19:K100)),"",K21/SUM(K19:K100)) -> 0.1174667208 | O21: =IF(ISERROR('17. RTSR - Current Wholesale'!$P$113*M21), "", '17. RTSR - Current Wholesale'!$P$113*M21) -> 376087.7708 | Q21: 0.789596079
A22: GENERAL SERVICE 50 TO 4,999 KW | B22: Retail Transmission Rate - Line and Transformation Connection Service Rate - Interval Metered (less than 1,000 kW) | C22: $/kW | E22: 0.9761 | G22: 0 | I22: 732051 | K22: 714554.9811 | M22: =IF(ISERROR(K22/SUM(K19:K100)),"",K22/SUM(K19:K100)) -> 0.2254951914 | O22: =IF(ISERROR('17. RTSR - Current Wholesale'!$P$113*M22), "", '17. RTSR - Current Wholesale'!$P$113*M22) -> 721957.532 | Q22: 0.98621207
A23: GENERAL SERVICE 50 TO 4,999 KW | B23: Retail Transmission Rate - Line and Transformation Connection Service Rate - Interval Metered (1,000 to 4,999 kW) | C23: $/kW | E23: 0.975 | G23: 0 | I23: 571177 | K23: 556897.575 | M23: =IF(ISERROR(K23/SUM(K19:K100)),"",K23/SUM(K19:K100)) -> 0.1757425651 | O23: =IF(ISERROR('17. RTSR - Current Wholesale'!$P$113*M23), "", '17. RTSR - Current Wholesale'!$P$113*M23) -> 562666.8479 | Q23: 0.9851006744
A24: LARGE USE | B24: Retail Transmission Rate - Line and Transformation Connection Service Rate - Interval Metered | C24: $/kW | E24: 0.9795 | G24: 0 | I24: 168361 | K24: 164909.5995 | M24: =IF(ISERROR(K24/SUM(K19:K100)),"",K24/SUM(K19:K100)) -> 0.05204123222 | O24: =IF(ISERROR('17. RTSR - Current Wholesale'!$P$113*M24), "", '17. RTSR - Current Wholesale'!$P$113*M24) -> 166618.0079 | Q24: 0.9896472929
A25: UNMETERED SCATTERED LOAD | B25: Retail Transmission Rate - Line and Transformation Connection Service Rate | C25: $/kWh | E25: 0.002 | G25: 2447640.878 | I25: 0 | K25: 4895.281757 | M25: =IF(ISERROR(K25/SUM(K19:K100)),"",K25/SUM(K19:K100)) -> 0.001544825137 | O25: =IF(ISERROR('17. RTSR - Current Wholesale'!$P$113*M25), "", '17. RTSR - Current Wholesale'!$P$113*M25) -> 4945.995241 | Q25: 0.002020719332
A26: STREET LIGHTING | B26: Retail Transmission Rate - Line and Transformation Connection Service Rate | C26: $/kW | E26: 0.6039 | G26: 0 | I26: 21461 | K26: 12960.2979 | M26: =IF(ISERROR(K26/SUM(K19:K100)),"",K26/SUM(K19:K100)) -> 0.004089937 | O26: =IF(ISERROR('17. RTSR - Current Wholesale'!$P$113*M26), "", '17. RTSR - Current Wholesale'!$P$113*M26) -> 13094.56226 | Q26: 0.6101562023

Sheet 21. RTSR Adj Ntwk to Forcast WS
A13: The purpose of this sheet is to update the re-align RTS Network Rates to recover forecast wholesale network costs.
A16: Rate Class | B16: Rate Description | C16: Unit | E16: Adjusted RTSR-Network | G16: Loss Adjusted Billed kWh | I16: Loss Adjusted Billed kW | K16: Billed Amount | M16: Billed Amount % | O16: Forecast Wholesale Billing | Q16: Proposed RTSR Network
A19: RESIDENTIAL | B19: Retail Transmission Rate - Network Service Rate | C19: $/kWh | E19: 0.007696939717 | G19: 425984440 | I19: 0 | K19: =IF(E19="", "", IF(C19="$/kWh", E19*G19, E19*I19)) -> 3278776.555 | M19: =IF(ISERROR(K19/SUM(K19:K100)),"",K19/SUM(K19:K100)) -> 0.3078952974 | O19: =IF(ISERROR('18. RTSR - Forecast Wholesale'!$F$109*M19), "", '18. RTSR - Forecast Wholesale'!$F$109*M19) -> 3167310.782 | Q19: =IF(C19="","",IF(C19="$/kWh",IF(G19<>0,O19/G19,),IF(I19<>0,O19/I19,0))) -> 0.007435273416
A20: GENERAL SERVICE LESS THAN 50 KW | B20: Retail Transmission Rate - Network Service Rate | C20: $/kWh | E20: 0.006988011059 | G20: 202605362.1 | I20: 0 | K20: 1415808.511 | M20: =IF(ISERROR(K20/SUM(K19:K100)),"",K20/SUM(K19:K100)) -> 0.132952269 | O20: =IF(ISERROR('18. RTSR - Forecast Wholesale'!$F$109*M20), "", '18. RTSR - Forecast Wholesale'!$F$109*M20) -> 1367676.476 | Q20: 0.006750445601
A21: GENERAL SERVICE 50 TO 4,999 KW | B21: Retail Transmission Rate - Network Service Rate - (less than 1,000 kW) | C21: $/kW | E21: 2.87399678 | G21: 0 | I21: 476304 | K21: 1368896.162 | M21: =IF(ISERROR(K21/SUM(K19:K100)),"",K21/SUM(K19:K100)) -> 0.1285469394 | O21: =IF(ISERROR('18. RTSR - Forecast Wholesale'!$F$109*M21), "", '18. RTSR - Forecast Wholesale'!$F$109*M21) -> 1322358.966 | Q21: 2.776291961
A22: GENERAL SERVICE 50 TO 4,999 KW | B22: Retail Transmission Rate - Network Service Rate - Interval Metered (less than 1,000 kW) | C22: $/kW | E22: 3.052545526 | G22: 0 | I22: 725765 | K22: 2215430.704 | M22: =IF(ISERROR(K22/SUM(K19:K100)),"",K22/SUM(K19:K100)) -> 0.2080412264 | O22: =IF(ISERROR('18. RTSR - Forecast Wholesale'!$F$109*M22), "", '18. RTSR - Forecast Wholesale'!$F$109*M22) -> 2140114.594 | Q22: 2.948770737
A23: GENERAL SERVICE 50 TO 4,999 KW | B23: Retail Transmission Rate - Network Service Rate - Interval Metered (1,000 to 4,999 kW) | C23: $/kW | E23: 3.048595781 | G23: 0 | I23: 569915 | K23: 1737440.464 | M23: =IF(ISERROR(K23/SUM(K19:K100)),"",K23/SUM(K19:K100)) -> 0.1631552927 | O23: =IF(ISERROR('18. RTSR - Forecast Wholesale'!$F$109*M23), "", '18. RTSR - Forecast Wholesale'!$F$109*M23) -> 1678374.182 | Q23: 2.944955268
A24: LARGE USE | B24: Retail Transmission Rate - Network Service Rate - Interval Metered | C24: $/kW | E24: 3.37976674 | G24: 0 | I24: 168361 | K24: 569020.9081 | M24: =IF(ISERROR(K24/SUM(K19:K100)),"",K24/SUM(K19:K100)) -> 0.05343421815 | O24: =IF(ISERROR('18. RTSR - Forecast Wholesale'!$F$109*M24), "", '18. RTSR - Forecast Wholesale'!$F$109*M24) -> 549676.3892 | Q24: 3.26486769
A25: UNMETERED SCATTERED LOAD | B25: Retail Transmission Rate - Network Service Rate | C25: $/kWh | E25: 0.006988011059 | G25: 2447640.878 | I25: 0 | K25: 17104.14153 | M25: =IF(ISERROR(K25/SUM(K19:K100)),"",K25/SUM(K19:K100)) -> 0.001606173722 | O25: =IF(ISERROR('18. RTSR - Forecast Wholesale'!$F$109*M25), "", '18. RTSR - Forecast Wholesale'!$F$109*M25) -> 16522.6666 | Q25: 0.006750445601
A26: STREET LIGHTING | B26: Retail Transmission Rate - Network Service Rate | C26: $/kW | E26: 2.167701285 | G26: 0 | I26: 21461 | K26: 46521.03729 | M26: =IF(ISERROR(K26/SUM(K19:K100)),"",K26/SUM(K19:K100)) -> 0.004368583333 | O26: =IF(ISERROR('18. RTSR - Forecast Wholesale'!$F$109*M26), "", '18. RTSR - Forecast Wholesale'!$F$109*M26) -> 44939.50123 | Q26: 2.094007792

Sheet 22. RTSR Adj Conn. to Forcst WS
A13: The purpose of this sheet is to update the re-aligned RTS Connection Rates to recover forecast wholesale connection costs.
A16: Rate Class | B16: Rate Description | C16: Unit | E16: Adjusted RTSR-Connection | G16: Loss Adjusted Billed kWh | I16: Loss Adjusted Billed kW | K16: Billed Amount | M16: Billed Amount % | O16: Forecast Wholesale Billing | Q16: Proposed RTSR Connection
A19: RESIDENTIAL | B19: Retail Transmission Rate - Line and Transformation Connection Service Rate | C19: $/kWh | E19: 0.002222791265 | G19: 425984440 | I19: 0 | K19: =IF(E19="", "", IF(C19="$/kWh", E19*G19, E19*I19)) -> 946874.4923 | M19: =IF(ISERROR(K19/SUM(K19:K100)),"",K19/SUM(K19:K100)) -> 0.2957454357 | O19: =IF(ISERROR('18. RTSR - Forecast Wholesale'!$P$113*M19), "", '18. RTSR - Forecast Wholesale'!$P$113*M19) -> 886298.0562 | Q19: =IF(C19="","",IF(C19="$/kWh",IF(G19<>0,O19/G19,),IF(I19<>0,O19/I19,0))) -> 0.002080587864
A20: GENERAL SERVICE LESS THAN 50 KW | B20: Retail Transmission Rate - Line and Transformation Connection Service Rate | C20: $/kWh | E20: 0.002020719332 | G20: 202605362.1 | I20: 0 | K20: 409408.572 | M20: =IF(ISERROR(K20/SUM(K19:K100)),"",K20/SUM(K19:K100)) -> 0.1278740926 | O20: =IF(ISERROR('18. RTSR - Forecast Wholesale'!$P$113*M20), "", '18. RTSR - Forecast Wholesale'!$P$113*M20) -> 383216.5979 | Q20: 0.001891443513
A21: GENERAL SERVICE 50 TO 4,999 KW | B21: Retail Transmission Rate - Line and Transformation Connection Service Rate - (less than 1,000 kW) | C21: $/kW | E21: 0.789596079 | G21: 0 | I21: 476304 | K21: 376087.7708 | M21: =IF(ISERROR(K21/SUM(K19:K100)),"",K21/SUM(K19:K100)) -> 0.1174667208 | O21: =IF(ISERROR('18. RTSR - Forecast Wholesale'!$P$113*M21), "", '18. RTSR - Forecast Wholesale'!$P$113*M21) -> 352027.4999 | Q21: 0.7390815527
A22: GENERAL SERVICE 50 TO 4,999 KW | B22: Retail Transmission Rate - Line and Transformation Connection Service Rate - Interval Metered (less than 1,000 kW) | C22: $/kW | E22: 0.98621207 | G22: 0 | I22: 732051 | K22: 721957.532 | M22: =IF(ISERROR(K22/SUM(K19:K100)),"",K22/SUM(K19:K100)) -> 0.2254951914 | O22: =IF(ISERROR('18. RTSR - Forecast Wholesale'!$P$113*M22), "", '18. RTSR - Forecast Wholesale'!$P$113*M22) -> 675770.1918 | Q22: 0.9231190065
A23: GENERAL SERVICE 50 TO 4,999 KW | B23: Retail Transmission Rate - Line and Transformation Connection Service Rate - Interval Metered (1,000 to 4,999 kW) | C23: $/kW | E23: 0.9851006744 | G23: 0 | I23: 571177 | K23: 562666.8479 | M23: =IF(ISERROR(K23/SUM(K19:K100)),"",K23/SUM(K19:K100)) -> 0.1757425651 | O23: =IF(ISERROR('18. RTSR - Forecast Wholesale'!$P$113*M23), "", '18. RTSR - Forecast Wholesale'!$P$113*M23) -> 526670.1528 | Q23: 0.9220787126
A24: LARGE USE | B24: Retail Transmission Rate - Line and Transformation Connection Service Rate - Interval Metered | C24: $/kW | E24: 0.9896472929 | G24: 0 | I24: 168361 | K24: 166618.0079 | M24: =IF(ISERROR(K24/SUM(K19:K100)),"",K24/SUM(K19:K100)) -> 0.05204123222 | O24: =IF(ISERROR('18. RTSR - Forecast Wholesale'!$P$113*M24), "", '18. RTSR - Forecast Wholesale'!$P$113*M24) -> 155958.5961 | Q24: 0.9263344605
A25: UNMETERED SCATTERED LOAD | B25: Retail Transmission Rate - Line and Transformation Connection Service Rate | C25: $/kWh | E25: 0.002020719332 | G25: 2447640.878 | I25: 0 | K25: 4945.995241 | M25: =IF(ISERROR(K25/SUM(K19:K100)),"",K25/SUM(K19:K100)) -> 0.001544825137 | O25: =IF(ISERROR('18. RTSR - Forecast Wholesale'!$P$113*M25), "", '18. RTSR - Forecast Wholesale'!$P$113*M25) -> 4629.574462 | Q25: 0.001891443513
A26: STREET LIGHTING | B26: Retail Transmission Rate - Line and Transformation Connection Service Rate | C26: $/kW | E26: 0.6101562023 | G26: 0 | I26: 21461 | K26: 13094.56226 | M26: =IF(ISERROR(K26/SUM(K19:K100)),"",K26/SUM(K19:K100)) -> 0.004089937 | O26: =IF(ISERROR('18. RTSR - Forecast Wholesale'!$P$113*M26), "", '18. RTSR - Forecast Wholesale'!$P$113*M26) -> 12256.83569 | Q26: 0.5711213688

Sheet 23. RTSR Final 2015 RTS Rates
A13: This sheet lists proposed RTSRs for all classes. No input required.
A16: Rate Class | B16: Rate Description | C16: Unit | E16: Proposed Retail Transmission Rate
A19: RESIDENTIAL | B19: Retail Transmission Rate - Network Service Rate | C19: $/kWh | E19: 0.007435273416
A20: RESIDENTIAL | B20: Retail Transmission Rate - Line and Transformation Connection Service Rate | C20: $/kWh | E20: 0.002080587864
A21: GENERAL SERVICE LESS THAN 50 KW | B21: Retail Transmission Rate - Network Service Rate | C21: $/kWh | E21: 0.006750445601
A22: GENERAL SERVICE LESS THAN 50 KW | B22: Retail Transmission Rate - Line and Transformation Connection Service Rate | C22: $/kWh | E22: 0.001891443513
A23: GENERAL SERVICE 50 TO 4,999 KW | B23: Retail Transmission Rate - Network Service Rate - (less than 1,000 kW) | C23: $/kW | E23: 2.776291961
A24: GENERAL SERVICE 50 TO 4,999 KW | B24: Retail Transmission Rate - Network Service Rate - Interval Metered (less than 1,000 kW) | C24: $/kW | E24: 2.948770737
A25: GENERAL SERVICE 50 TO 4,999 KW | B25: Retail Transmission Rate - Network Service Rate - Interval Metered (1,000 to 4,999 kW) | C25: $/kW | E25: 2.944955268
A26: GENERAL SERVICE 50 TO 4,999 KW | B26: Retail Transmission Rate - Line and Transformation Connection Service Rate - (less than 1,000 kW) | C26: $/kW | E26: 0.7390815527
A27: GENERAL SERVICE 50 TO 4,999 KW | B27: Retail Transmission Rate - Line and Transformation Connection Service Rate - Interval Metered (less than 1,000 kW) | C27: $/kW | E27: 0.9231190065
A28: GENERAL SERVICE 50 TO 4,999 KW | B28: Retail Transmission Rate - Line and Transformation Connection Service Rate - Interval Metered (1,000 to 4,999 kW) | C28: $/kW | E28: 0.9220787126
A29: LARGE USE | B29: Retail Transmission Rate - Network Service Rate - Interval Metered | C29: $/kW | E29: 3.26486769
A30: LARGE USE | B30: Retail Transmission Rate - Line and Transformation Connection Service Rate - Interval Metered | C30: $/kW | E30: 0.9263344605
A31: UNMETERED SCATTERED LOAD | B31: Retail Transmission Rate - Network Service Rate | C31: $/kWh | E31: 0.006750445601
A32: UNMETERED SCATTERED LOAD | B32: Retail Transmission Rate - Line and Transformation Connection Service Rate | C32: $/kWh | E32: 0.001891443513
A33: STREET LIGHTING | B33: Retail Transmission Rate - Network Service Rate | C33: $/kW | E33: 2.094007792
A34: STREET LIGHTING | B34: Retail Transmission Rate - Line and Transformation Connection Service Rate | C34: $/kW | E34: 0.5711213688

Sheet 24. Rev2Cost_GDPIPI
Y1: FALSE | Z1: 0 | AC1: NO
Y2: TRUE
A12: If applicable, please enter any adjustments related to the revenue to cost ratio model into columns C and E. The Price Escalator and Stretch Factor have been set at the 2014 values and will be updated by Board staff at a later date.
A15: Price Escalator | B15: 0.017 | C15: Choose Stretch Factor Group | E15: III
A16: Productivity Factor | B16: 0 | C16: Associated Stretch Factor Value | E16: =IF(E15="I", 0%, IF(E15="II", 0.15%, IF(E15="III", 0.3%, IF(E15="IV", 0.45%, 0.6%)))) -> 0.003
A17: Price Cap Index | B17: =B15-B16-E16 -> 0.014
B19: Current MFC | C19: MFC Adjustment from R/C Model | D19: Current Volumetric Charge | E19: DVR Adjustment from R/C Model | F19: Price Cap Index to be Applied to MFC and DVR | G19: Proposed MFC | H19: Proposed Volumetric Charge
A20: Rate Class
A22: RESIDENTIAL | B22: 15 | D22: 0.019 | F22: =$B$17 -> 0.014 | G22: =ROUND(SUM(B22,C22)*(1+F22),2) -> 15.21 | H22: =ROUND(SUM(D22,E22)*(1+F22),4) -> 0.0193
A23: GENERAL SERVICE LESS THAN 50 KW | B23: 31.55 | D23: 0.0141 | F23: 0.014 | G23: 31.99 | H23: 0.0143
A24: GENERAL SERVICE 50 TO 4,999 KW | B24: 117.85 | D24: 4.6787 | F24: 0.014 | G24: 119.5 | H24: 4.7442
A25: LARGE USE | B25: 6886.2 | D25: 3.2947 | F25: 0.014 | G25: 6982.61 | H25: 3.3408
A26: UNMETERED SCATTERED LOAD | B26: 15.77 | D26: 0.0196 | F26: 0.014 | G26: 15.99 | H26: 0.0199
A27: STREET LIGHTING | B27: 0.33 | D27: 8.5718 | F27: 0.014 | G27: 0.33 | H27: 8.6918
A28: microFIT | B28: 5.4 | G28: 5.4
A29: EMBEDDED DISTRIBUTOR | D29: 0.0124 | F29: =$B$17 -> 0.014 | G29: 0 | H29: =ROUND(SUM(D29,E29)*(1+F29),4) -> 0.0126

Sheet 25. Other Charges & LF
A11: Please enter the following charges as found on your most recent Board-Approved Tariff Schedule. The standard Allowance rates have been included as default entries. If you have different rates, please make the appropriate corrections in the applicable cells below. As well, please enter the current Specific Service Charges below. The standard Retail Service Charges have been entered below. If you have different rates, please make the appropriate corrections in columns A, C or D as applicable (cells are unlocked).
C13: UNIT | D13: RATE
A15: ALLOWANCES
A17: Transformer Allowance for Ownership - per kW of billing demand/month | C17: $/kW | D17: -0.6
A20: Primary Metering Allowance for transformer losses – applied to measured demand and energy | C20: % | D20: -1
A22: SPECIFIC SERVICE CHARGES
A24: APPLICATION
A26: The application of these rates and charges shall be in accordance with the Licence of the Distributor and any Code or Order of the Board, and amendments thereto as approved by the Board, which may be applicable to the administration of this schedule.
A27: No charges to meet the costs of any work or service done or furnished for the purpose of the distribution of electricity shall be made except as permitted by this schedule, unless required by the Distributor’s Licence or a Code or Order of the Board, and amendments thereto as approved by the Board, or as specified herein.
A28: It should be noted that this schedule does not list any charges, assessments or credits that are required by law to be invoiced by a distributor and that are not subject to Board approval, such as the Debt Retirement Charge, the Global Adjustment, the Ontario Clean Energy Benefit and the HST.
A30: Customer Administration
A31: Easement letter | C31: $ | D31: 15
A32: Notification charge | C32: $ | D32: 15
A33: Credit reference/credit check (plus credit agency costs) | C33: $ | D33: 15
A34: Returned cheque charge (plus bank charges) | C34: $ | D34: 15
A35: Duplicate invoices for previous billing | C35: $ | D35: 15
A36: Income tax letter | C36: $ | D36: 15
A37: Account set up charge/change of occupancy charge (plus credit agency costs if applicable) | C37: $ | D37: 30
A38: Meter dispute charge plus Measurement Canada fees (if meter found correct) | C38: $ | D38: 30
A67: Non-Payment of Account
A68: Late Payment - per month | C68: % | D68: 1.5
A69: Late Payment - per annum | C69: % | D69: 19.56
A70: Disconnect/Reconnect at meter - during regular hours | C70: $ | D70: 65
A71: Disconnect/Reconnect at meter - after regular hours | C71: $ | D71: 185
A88: Specific Charge for Access to the Power Poles $/pole/year | C88: $ | D88: 22.35
A137: RETAIL SERVICE CHARGES (if applicable)
A139: The application of these rates and charges shall be in accordance with the Licence of the Distributor and any Code or Order of the Board, and amendments thereto as approved by the Board, which may be applicable to the administration of this schedule.
A141: No rates and charges for the distribution of electricity and charges to meet the costs of any work or service done or furnished for the purpose of the distribution of electricity shall be made except as permitted by this schedule, unless required by the Distributor’s Licence or a Code or Order of the Board, and amendments thereto as approved by the Board, or as specified herein.
A143: Unless specifically noted, this schedule does not contain any charges for the electricity commodity, be it under the Regulated Price Plan, a contract with a retailer or the wholesale market price, as applicable.
A145: It should be noted that this schedule does not list any charges, assessments, or credits that are required by law to be invoiced by a distributor and that are not subject to Board approval, such as the Debt Retirement Charge, the Global Adjustment, the Ontario Clean Energy Benefit and the HST.
A147: Retail Service Charges refer to services provided by a distributor to retailers or customers related to the supply of competitive electricity.
A149: One-time charge, per retailer, to establish the service agreement between the distributor and the retailer | C149: $ | D149: 100
A150: Monthly Fixed Charge, per retailer | C150: $ | D150: 20
A151: Monthly Variable Charge, per customer, per retailer | C151: $/cust. | D151: 0.5
A152: Distributor-consolidated billing monthly charge, per customer, per retailer | C152: $/cust. | D152: 0.3
A153: Retailer-consolidated billing monthly credit, per customer, per retailer | C153: $/cust. | D153: -0.3
A154: Service Transaction Requests (STR)
A155: Request fee, per request, applied to the requesting party | C155: $ | D155: 0.25
A156: Processing fee, per request, applied to the requesting party | C156: $ | D156: 0.5
A157: Request for customer information as outlined in Section 10.6.3 and Chapter 11 of the Retail
A158: Settlement Code directly to retailers and customers, if not delivered electronically through the
A159: Electronic Business Transaction (EBT) system, applied to the requesting party
A160: Up to twice a year | C160: $ | D160: no charge
A161: More than twice a year, per request (plus incremental delivery costs) | C161: $ | D161: 2
A164: LOSS FACTORS
A166: If the distributor is not capable of prorating changed loss factors jointly with distribution rates, the revised loss factors will be implemented upon the first subsequent billing for each billing cycle.
A169: Total Loss Factor – Secondary Metered Customer < 5,000 kW | D169: 1.0404 | H169: TLF_Secondary_LT_5000kW
A170: Total Loss Factor – Secondary Metered Customer > 5,000 kW | D170: 1.015 | H170: TLF_Primary_LT_5000kW
A171: Total Loss Factor – Primary Metered Customer < 5,000 kW | D171: 1.03
A172: Total Loss Factor – Primary Metered Customer > 5,000 kW | D172: 1.005

Sheet 26. Proposed Rates
Z1: 3
L5: =ROUND(LEN(B5), -2) / 100 -> 0
L9: =ROUND(LEN(B9), -2) / 100 -> 0
B12: In the Green Cells below, enter any proposed rate riders that are not already included in this model (e.g: ICM rate riders). In column B, the rate rider descriptions must begin with "Rate Rider for". In column C, choose the associated unit from the drop-down menu. In column D, enter the rate. All rate riders with a "$" unit will be rounded to 2 decimal places and all others will be rounded to 4 decimal places.
A20: RESIDENTIAL | B20: RESIDENTIAL SERVICE CLASSIFICATION | C20: Unit | D20: Rate
A21: RESIDENTIAL
A22: RESIDENTIAL
A23: RESIDENTIAL
A24: RESIDENTIAL
A25: RESIDENTIAL
A26: RESIDENTIAL
A27: RESIDENTIAL
A28: RESIDENTIAL
A29: RESIDENTIAL
A30: RESIDENTIAL
A32: GENERAL SERVICE LESS THAN 50 KW | B32: GENERAL SERVICE LESS THAN 50 KW SERVICE CLASSIFICATION | C32: Unit | D32: Rate
A33: GENERAL SERVICE LESS THAN 50 KW
A34: GENERAL SERVICE LESS THAN 50 KW
A35: GENERAL SERVICE LESS THAN 50 KW
A36: GENERAL SERVICE LESS THAN 50 KW
A37: GENERAL SERVICE LESS THAN 50 KW
A38: GENERAL SERVICE LESS THAN 50 KW
A39: GENERAL SERVICE LESS THAN 50 KW
A40: GENERAL SERVICE LESS THAN 50 KW
A41: GENERAL SERVICE LESS THAN 50 KW
A42: GENERAL SERVICE LESS THAN 50 KW
A44: GENERAL SERVICE 50 TO 4,999 KW | B44: GENERAL SERVICE 50 TO 4,999 KW SERVICE CLASSIFICATION | C44: Unit | D44: Rate
A45: GENERAL SERVICE 50 TO 4,999 KW
A46: GENERAL SERVICE 50 TO 4,999 KW
A47: GENERAL SERVICE 50 TO 4,999 KW
A48: GENERAL SERVICE 50 TO 4,999 KW
A49: GENERAL SERVICE 50 TO 4,999 KW
A50: GENERAL SERVICE 50 TO 4,999 KW
A51: GENERAL SERVICE 50 TO 4,999 KW
A52: GENERAL SERVICE 50 TO 4,999 KW
A53: GENERAL SERVICE 50 TO 4,999 KW
A54: GENERAL SERVICE 50 TO 4,999 KW
A56: LARGE USE | B56: LARGE USE SERVICE CLASSIFICATION | C56: Unit | D56: Rate
A57: LARGE USE
A58: LARGE USE
A59: LARGE USE
A60: LARGE USE
A61: LARGE USE
A62: LARGE USE
A63: LARGE USE
A64: LARGE USE
A65: LARGE USE
A66: LARGE USE
A68: UNMETERED SCATTERED LOAD | B68: UNMETERED SCATTERED LOAD SERVICE CLASSIFICATION | C68: Unit | D68: Rate
A69: UNMETERED SCATTERED LOAD
A70: UNMETERED SCATTERED LOAD
A71: UNMETERED SCATTERED LOAD
A72: UNMETERED SCATTERED LOAD
A73: UNMETERED SCATTERED LOAD
A74: UNMETERED SCATTERED LOAD
A75: UNMETERED SCATTERED LOAD
A76: UNMETERED SCATTERED LOAD
A77: UNMETERED SCATTERED LOAD
A78: UNMETERED SCATTERED LOAD
A80: STREET LIGHTING | B80: STREET LIGHTING SERVICE CLASSIFICATION | C80: Unit | D80: Rate
A81: STREET LIGHTING
A82: STREET LIGHTING
A83: STREET LIGHTING
A84: STREET LIGHTING
A85: STREET LIGHTING
A86: STREET LIGHTING
A87: STREET LIGHTING
A88: STREET LIGHTING
A89: STREET LIGHTING
A90: STREET LIGHTING
A92: microFIT | B92: microFIT SERVICE CLASSIFICATION | C92: Unit | D92: Rate
A93: microFIT
A94: microFIT
A95: microFIT
A96: microFIT
A97: microFIT
A98: microFIT
A99: microFIT
A100: microFIT
A101: microFIT
A102: microFIT
A104: EMBEDDED DISTRIBUTOR | B104: EMBEDDED DISTRIBUTOR SERVICE CLASSIFICATION | C104: Unit | D104: Rate
A105: EMBEDDED DISTRIBUTOR
A106: EMBEDDED DISTRIBUTOR
A107: EMBEDDED DISTRIBUTOR
A108: EMBEDDED DISTRIBUTOR
A109: EMBEDDED DISTRIBUTOR
A110: EMBEDDED DISTRIBUTOR
A111: EMBEDDED DISTRIBUTOR
A112: EMBEDDED DISTRIBUTOR
A113: EMBEDDED DISTRIBUTOR
A114: EMBEDDED DISTRIBUTOR
B118: PROPOSED MONTHLY RATES AND CHARGES - Regulatory Component
A120: Wholesale Market Service Rate | B120: Wholesale Market Service Rate | C120: $/kWh | D120: 0.0044
A121: Rural or Remote Electricity Rate Protection Charge (RRRP) | B121: Rural or Remote Electricity Rate Protection Charge (RRRP) | C121: $/kWh | D121: 0.0013
A122: Standard Supply Service - Administrative Charge (if applicable) | B122: Standard Supply Service - Administrative Charge (if applicable) | C122: $ | D122: 0.25

Sheet 27. Final Tariff Schedule
A1: hidden column | B1: Waterloo North Hydro Inc. | F1: hidden column | Z1: 3
A2: for rate classes | B2: TARIFF OF RATES AND CHARGES | F2: for proposed
B3: Effective and Implementation Date May 01, 2015 | F3: labeliing
B5: This schedule supersedes and replaces all previously
B6: approved schedules of Rates, Charges and Loss Factors | L6: =ROUND(LEN(B6), -2) / 100 -> 1
B7: EB-2014-0119
B9: RESIDENTIAL SERVICE CLASSIFICATION
B11: This classification applies to an account taking electricity at 750 volts or less where the electricity is used exclusively in a separate metered living accommodation. Customers shall be residing in single-dwelling units that consist of a detached house or one unit of a semi-detached, duplex, triplex or quadruplex house, with a residential zoning. Separately metered dwellings within a town house complex or apartment building also qualify as residential customers. All customers are single-phase. Further servicing details are available in the distributor’s Conditions of Service. | L11: =ROUND(LEN(B11), -2) / 100 -> 6
B13: APPLICATION
B15: The application of these rates and charges shall be in accordance with the Licence of the Distributor and any Code or Order of the Board, and amendments thereto as approved by the Board, which may be applicable to the administration of this schedule. | L15: =ROUND(LEN(B15), -2) / 100 -> 3
B17: No rates and charges for the distribution of electricity and charges to meet the costs of any work or service done or furnished for the purpose of the distribution of electricity shall be made except as permitted by this schedule, unless required by the Distributor’s Licence or a Code or Order of the Board, and amendments thereto as approved by the Board, or as specified herein. | L17: =ROUND(LEN(B17), -2) / 100 -> 4
B19: Unless specifically noted, this schedule does not contain any charges for the electricity commodity, be it under the Regulated Price Plan, a contract with a retailer or the wholesale market price, as applicable. In addition, the charges in the MONTHLY RATES AND CHARGES - Regulatory Component of this schedule do not apply to a customer that is an embedded wholesale market participant. | L19: =ROUND(LEN(B19), -2) / 100 -> 4
B21: It should be noted that this schedule does not list any charges, assessments or credits that are required by law to be invoiced by a distributor and that are not subject to Board approval, such as the Debt Retirement Charge, the Global Adjustment, the Ontario Clean Energy Benefit and the HST. | L21: =ROUND(LEN(B21), -2) / 100 -> 3
B23: MONTHLY RATES AND CHARGES - Delivery Component
A25: RESIDENTIAL | B25: Service Charge | D25: $ | E25: 15.21 | K25: 1_P_MSC
A26: RESIDENTIAL | B26: Rate Rider for Recovery of Smart Meter Incremental Revenue Requirement - in effect until the effective date of the next cost of service-based rate order | D26: $ | E26: 2.11 | K26: 1_P_MSC_Rate_Rider_1
A27: RESIDENTIAL | B27: Rate Rider for Smart Metering Entity Charge - effective until October 31, 2018 | D27: $ | E27: 0.79 | K27: 1_P_SMEC
A28: RESIDENTIAL | B28: Distribution Volumetric Rate | D28: $/kWh | E28: 0.0193 | K28: 1_P_VC_1
A29: RESIDENTIAL | B29: Low Voltage Service Rate | D29: $/kWh | E29: 0.0001 | K29: 1_P_LVrate
A30: RESIDENTIAL | B30: Rate Rider for Disposition of Deferral/Variance Accounts (2015) - effective until April 30, 2016 | D30: $/kWh | E30: -0.0014 | K30: 1_P_VC_DEFVAR_kWh_1
A31: RESIDENTIAL | B31: Rate Rider for Disposition of Global Adjustment Account (2015) - effective until April 30, 2016 Applicable only for Non RPP Customers | D31: $/kWh | E31: 0.0006 | K31: 1_P_VC_GA_Rate_Rider_kWh_1
B32: Rate Rider for Tax Change (2015) - effective until April 29, 2016 | D32: $/kWh | E32: =+'12. STS - Tax Change RR'!M17 -> -0.0001
A33: RESIDENTIAL | B33: Retail Transmission Rate - Network Service Rate | D33: $/kWh | E33: 0.007435273416 | K33: 1_P_RTSR_Network
A34: RESIDENTIAL | B34: Retail Transmission Rate - Line and Transformation Connection Service Rate | D34: $/kWh | E34: 0.002080587864 | K34: 1_P_RTSR_Connection
A35: RESIDENTIAL
A36: RESIDENTIAL | B36: MONTHLY RATES AND CHARGES - Regulatory Component
A37: RESIDENTIAL
A38: RESIDENTIAL | B38: Wholesale Market Service Rate | D38: $/kWh | E38: 0.0044 | K38: 1_P_WMSR
A39: RESIDENTIAL | B39: Rural or Remote Electricity Rate Protection Charge (RRRP) | D39: $/kWh | E39: 0.0013 | K39: 1_P_RRPC
A40: RESIDENTIAL | B40: Standard Supply Service - Administrative Charge (if applicable) | D40: $ | E40: 0.25 | K40: 1_P_SSS
B42: Waterloo North Hydro Inc.
B43: TARIFF OF RATES AND CHARGES
B44: Effective and Implementation Date May 01, 2015
B46: This schedule supersedes and replaces all previously
B47: approved schedules of Rates, Charges and Loss Factors
B48: EB-2014-0119
B51: GENERAL SERVICE LESS THAN 50 KW SERVICE CLASSIFICATION
B53: This classification applies to a non residential account taking electricity at 750 volts or less whose average monthly maximum demand is less than, or is forecast to be less than, 50 kW. Further servicing details are available in the distributor’s Conditions of Service. | L53: =ROUND(LEN(B53), -2) / 100 -> 3
B55: APPLICATION
B57: The application of these rates and charges shall be in accordance with the Licence of the Distributor and any Code or Order of the Board, and amendments thereto as approved by the Board, which may be applicable to the administration of this schedule. | L57: =ROUND(LEN(B57), -2) / 100 -> 3
B59: No rates and charges for the distribution of electricity and charges to meet the costs of any work or service done or furnished for the purpose of the distribution of electricity shall be made except as permitted by this schedule, unless required by the Distributor’s Licence or a Code or Order of the Board, and amendments thereto as approved by the Board, or as specified herein. | L59: =ROUND(LEN(B59), -2) / 100 -> 4
B61: Unless specifically noted, this schedule does not contain any charges for the electricity commodity, be it under the Regulated Price Plan, a contract with a retailer or the wholesale market price, as applicable. In addition, the charges in the MONTHLY RATES AND CHARGES - Regulatory Component of this schedule do not apply to a customer that is an embedded wholesale market participant. | L61: =ROUND(LEN(B61), -2) / 100 -> 4
B63: It should be noted that this schedule does not list any charges, assessments or credits that are required by law to be invoiced by a distributor and that are not subject to Board approval, such as the Debt Retirement Charge, the Global Adjustment, the Ontario Clean Energy Benefit and the HST. | L63: =ROUND(LEN(B63), -2) / 100 -> 3
B65: MONTHLY RATES AND CHARGES - Delivery Component
A67: GENERAL SERVICE LESS THAN 50 KW | B67: Service Charge | D67: $ | E67: 31.99 | K67: 2_P_MSC
A68: GENERAL SERVICE LESS THAN 50 KW | B68: Rate Rider for Recovery of Smart Meter Incremental Revenue Requirement - in effect until the effective date of the next cost of service-based rate order | D68: $ | E68: 5.51 | K68: 2_P_MSC_Rate_Rider_1
A69: GENERAL SERVICE LESS THAN 50 KW | B69: Rate Rider for Smart Metering Entity Charge - effective until October 31, 2018 | D69: $ | E69: 0.79 | K69: 2_P_SMEC
A70: GENERAL SERVICE LESS THAN 50 KW | B70: Distribution Volumetric Rate | D70: $/kWh | E70: 0.0143 | K70: 2_P_VC_1
A71: GENERAL SERVICE LESS THAN 50 KW | B71: Low Voltage Service Rate | D71: $/kWh | E71: 0.0001 | K71: 2_P_LVrate
A72: GENERAL SERVICE LESS THAN 50 KW | B72: Rate Rider for Disposition of Deferral/Variance Accounts (2015) - effective until April 30, 2016 | D72: $/kWh | E72: -0.0014 | K72: 2_P_VC_DEFVAR_kWh_1
A73: GENERAL SERVICE LESS THAN 50 KW | B73: Rate Rider for Disposition of Global Adjustment Account (2015) - effective until April 30, 2016 Applicable only for Non RPP Customers | D73: $/kWh | E73: 0.0006 | K73: 2_P_VC_GA_Rate_Rider_kWh_1
A74: GENERAL SERVICE LESS THAN 50 KW | B74: Retail Transmission Rate - Network Service Rate | D74: $/kWh | E74: 0.006750445601 | K74: 2_P_RTSR_Network
A75: GENERAL SERVICE LESS THAN 50 KW | B75: Retail Transmission Rate - Line and Transformation Connection Service Rate | D75: $/kWh | E75: 0.001891443513 | K75: 2_P_RTSR_Connection
A76: GENERAL SERVICE LESS THAN 50 KW
A77: GENERAL SERVICE LESS THAN 50 KW | B77: MONTHLY RATES AND CHARGES - Regulatory Component
A78: GENERAL SERVICE LESS THAN 50 KW
A79: GENERAL SERVICE LESS THAN 50 KW | B79: Wholesale Market Service Rate | D79: $/kWh | E79: 0.0044 | K79: 2_P_WMSR
A80: GENERAL SERVICE LESS THAN 50 KW | B80: Rural or Remote Electricity Rate Protection Charge (RRRP) | D80: $/kWh | E80: 0.0013 | K80: 2_P_RRPC
A81: GENERAL SERVICE LESS THAN 50 KW | B81: Standard Supply Service - Administrative Charge (if applicable) | D81: $ | E81: 0.25 | K81: 2_P_SSS
B86: Waterloo North Hydro Inc.
B87: TARIFF OF RATES AND CHARGES
B88: Effective and Implementation Date May 01, 2015
B90: This schedule supersedes and replaces all previously
B91: approved schedules of Rates, Charges and Loss Factors
B92: EB-2014-0119
B94: GENERAL SERVICE 50 TO 4,999 KW SERVICE CLASSIFICATION
B96: This classification applies to a non residential account whose average monthly maximum demand used for billing purposes is equal to or greater than, or is forecast to be equal to or greater than, 50 kW but less than 5,000 kW. Further servicing details are available in the distributor’s Conditions of Service. Note that for the application of the Retail Transmission Rate – Network Service Rate and the Retail Transmission Rate – Line and Transformation Connection Service Rate the following sub-classifications apply: General Service 50 to 999 kW non-interval metered General Service 50 to 999 kW interval metered General Service 1,000 to 4,999 kW interval metered. | L96: =ROUND(LEN(B96), -2) / 100 -> 7
B98: APPLICATION
B100: The application of these rates and charges shall be in accordance with the Licence of the Distributor and any Code or Order of the Board, and amendments thereto as approved by the Board, which may be applicable to the administration of this schedule. | L100: =ROUND(LEN(B100), -2) / 100 -> 3
B102: No rates and charges for the distribution of electricity and charges to meet the costs of any work or service done or furnished for the purpose of the distribution of electricity shall be made except as permitted by this schedule, unless required by the Distributor’s Licence or a Code or Order of the Board, and amendments thereto as approved by the Board, or as specified herein. | L102: =ROUND(LEN(B102), -2) / 100 -> 4
B104: Unless specifically noted, this schedule does not contain any charges for the electricity commodity, be it under the Regulated Price Plan, a contract with a retailer or the wholesale market price, as applicable. In addition, the charges in the MONTHLY RATES AND CHARGES - Regulatory Component of this schedule do not apply to a customer that is an embedded wholesale market participant. | L104: =ROUND(LEN(B104), -2) / 100 -> 4
B106: It should be noted that this schedule does not list any charges, assessments or credits that are required by law to be invoiced by a distributor and that are not subject to Board approval, such as the Debt Retirement Charge, the Global Adjustment, the Ontario Clean Energy Benefit and the HST. | L106: =ROUND(LEN(B106), -2) / 100 -> 3
B108: MONTHLY RATES AND CHARGES - Delivery Component
A110: GENERAL SERVICE 50 TO 4,999 KW | B110: Service Charge | D110: $ | E110: 119.5 | K110: 3_P_MSC
A111: GENERAL SERVICE 50 TO 4,999 KW | B111: Distribution Volumetric Rate | D111: $/kW | E111: 4.7442 | K111: 3_P_VC_1
A112: GENERAL SERVICE 50 TO 4,999 KW | B112: Low Voltage Service Rate | D112: $/kW | E112: 0.0551 | K112: 3_P_LVrate
A113: GENERAL SERVICE 50 TO 4,999 KW | B113: Rate Rider for Tax Change (2015) - effective until April 29, 2016 | D113: $/kW | E113: -0.0099 | K113: 3_P_VC_Rate_Rider_kW_1
A114: GENERAL SERVICE 50 TO 4,999 KW | B114: Rate Rider for Disposition of Deferral/Variance Accounts (2015) - effective until April 30, 2016 | D114: $/kW | E114: -0.6486 | K114: 3_P_VC_DEFVAR_kW_1
A115: GENERAL SERVICE 50 TO 4,999 KW | B115: Rate Rider for Disposition of Global Adjustment Account (2015) - effective until April 30, 2016 Applicable only for Non RPP Customers | D115: $/kW | E115: 0.2675 | K115: 3_P_VC_GA_Rate_Rider_kW_1
A116: GENERAL SERVICE 50 TO 4,999 KW | B116: Retail Transmission Rate - Network Service Rate - (less than 1,000 kW) | D116: $/kW | E116: 2.776291961 | K116: 3_P_RTSR_Network
A117: GENERAL SERVICE 50 TO 4,999 KW | B117: Retail Transmission Rate - Network Service Rate - Interval Metered (less than 1,000 kW) | D117: $/kW | E117: 2.948770737 | K117: 3_P_RTSR_Network_Interval
A118: GENERAL SERVICE 50 TO 4,999 KW | B118: Retail Transmission Rate - Network Service Rate - Interval Metered (1,000 to 4,999 kW) | D118: $/kW | E118: 2.944955268 | K118: 3_P_RTSR_Network_Interval_GR1000kW
A119: GENERAL SERVICE 50 TO 4,999 KW | B119: Retail Transmission Rate - Line and Transformation Connection Service Rate - (less than 1,000 kW) | D119: $/kW | E119: 0.7390815527 | K119: 3_P_RTSR_Connection
A120: GENERAL SERVICE 50 TO 4,999 KW | B120: Retail Transmission Rate - Line and Transformation Connection Service Rate - Interval Metered (less than 1,000 kW) | D120: $/kW | E120: 0.9231190065 | K120: 3_P_RTSR_Connection_Interval
A121: GENERAL SERVICE 50 TO 4,999 KW | B121: Retail Transmission Rate - Line and Transformation Connection Service Rate - Interval Metered (1,000 to 4,999 kW) | D121: $/kW | E121: 0.9220787126 | K121: 3_P_RTSR_Connection_Interval_GR1000kW
A122: GENERAL SERVICE 50 TO 4,999 KW
A126: GENERAL SERVICE 50 TO 4,999 KW | B126: MONTHLY RATES AND CHARGES - Regulatory Component
A127: GENERAL SERVICE 50 TO 4,999 KW
A128: GENERAL SERVICE 50 TO 4,999 KW | B128: Wholesale Market Service Rate | D128: $/kWh | E128: 0.0044 | K128: 3_P_WMSR
A129: GENERAL SERVICE 50 TO 4,999 KW | B129: Rural or Remote Electricity Rate Protection Charge (RRRP) | D129: $/kWh | E129: 0.0013 | K129: 3_P_RRPC
A130: GENERAL SERVICE 50 TO 4,999 KW | B130: Standard Supply Service - Administrative Charge (if applicable) | D130: $ | E130: 0.25 | K130: 3_P_SSS
B185: Waterloo North Hydro Inc.
B186: TARIFF OF RATES AND CHARGES
B187: Effective and Implementation Date May 01, 2015
B189: This schedule supersedes and replaces all previously
B190: approved schedules of Rates, Charges and Loss Factors
B191: EB-2014-0119
B194: LARGE USE SERVICE CLASSIFICATION
B196: This classification applies to an account whose average monthly maximum demand used for billing purposes is equal to or greater than, or is forecast to be equal to or greater than, 5,000 kW. Further servicing details are available in the distributor’s Conditions of Service. | L196: =ROUND(LEN(B196), -2) / 100 -> 3
B198: APPLICATION
B200: The application of these rates and charges shall be in accordance with the Licence of the Distributor and any Code or Order of the Board, and amendments thereto as approved by the Board, which may be applicable to the administration of this schedule. | L200: =ROUND(LEN(B200), -2) / 100 -> 3
B202: No rates and charges for the distribution of electricity and charges to meet the costs of any work or service done or furnished for the purpose of the distribution of electricity shall be made except as permitted by this schedule, unless required by the Distributor’s Licence or a Code or Order of the Board, and amendments thereto as approved by the Board, or as specified herein. | L202: =ROUND(LEN(B202), -2) / 100 -> 4
B204: Unless specifically noted, this schedule does not contain any charges for the electricity commodity, be it under the Regulated Price Plan, a contract with a retailer or the wholesale market price, as applicable. In addition, the charges in the MONTHLY RATES AND CHARGES - Regulatory Component of this schedule do not apply to a customer that is an embedded wholesale market participant. | L204: =ROUND(LEN(B204), -2) / 100 -> 4
B206: It should be noted that this schedule does not list any charges, assessments or credits that are required by law to be invoiced by a distributor and that are not subject to Board approval, such as the Debt Retirement Charge, the Global Adjustment, the Ontario Clean Energy Benefit and the HST. | L206: =ROUND(LEN(B206), -2) / 100 -> 3
B208: MONTHLY RATES AND CHARGES - Delivery Component
A210: LARGE USE | B210: Service Charge | D210: $ | E210: 6982.61 | K210: 4_P_MSC
A211: LARGE USE | B211: Distribution Volumetric Rate | D211: $/kW | E211: 3.3408 | K211: 4_P_VC_1
A212: LARGE USE | B212: Low Voltage Service Rate | D212: $/kW | E212: 0.0553 | K212: 4_P_LVrate
A213: LARGE USE | B213: Rate Rider for Tax Change (2015) - effective until April 29, 2016 | D213: $/kW | E213: -0.0072 | K213: 4_P_VC_Rate_Rider_kW_1
A214: LARGE USE | B214: Rate Rider for Disposition of Deferral/Variance Accounts (2015) - effective until April 30, 2016 | D214: $/kW | E214: -0.7522 | K214: 4_P_VC_DEFVAR_kW_1
A215: LARGE USE | B215: Retail Transmission Rate - Network Service Rate - Interval Metered | D215: $/kW | E215: 3.26486769 | K215: 4_P_RTSR_Network_Interval
A216: LARGE USE | B216: Retail Transmission Rate - Line and Transformation Connection Service Rate - Interval Metered | D216: $/kW | E216: 0.9263344605 | K216: 4_P_RTSR_Connection_Interval
A217: LARGE USE
A218: LARGE USE | B218: MONTHLY RATES AND CHARGES - Regulatory Component
A219: LARGE USE
A220: LARGE USE | B220: Wholesale Market Service Rate | D220: $/kWh | E220: 0.0044 | K220: 4_P_WMSR
A221: LARGE USE | B221: Rural or Remote Electricity Rate Protection Charge (RRRP) | D221: $/kWh | E221: 0.0013 | K221: 4_P_RRPC
A222: LARGE USE | B222: Standard Supply Service - Administrative Charge (if applicable) | D222: $ | E222: 0.25 | K222: 4_P_SSS
B231: Waterloo North Hydro Inc.
B232: TARIFF OF RATES AND CHARGES
B233: Effective and Implementation Date May 01, 2015
B235: This schedule supersedes and replaces all previously
B236: approved schedules of Rates, Charges and Loss Factors
B237: EB-2014-0119
B240: UNMETERED SCATTERED LOAD SERVICE CLASSIFICATION
B242: This classification applies to an account taking electricity at 750 volts or less whose average monthly maximum demand is less than, or is forecast to be less than, 50 kW and the consumption is unmetered. Such connections include cable TV power packs, bus shelters, telephone booths, traffic lights, railway crossings, etc. The level of the consumption will be agreed to by the distributor and the customer, based on detailed manufacturer information/ documentation with regard to electrical consumption of the unmetered load or periodic monitoring of actual consumption. Further servicing details are available in the distributor’s Conditions of Service. | L242: =ROUND(LEN(B242), -2) / 100 -> 7
B244: APPLICATION
B246: The application of these rates and charges shall be in accordance with the Licence of the Distributor and any Code or Order of the Board, and amendments thereto as approved by the Board, which may be applicable to the administration of this schedule. | L246: =ROUND(LEN(B246), -2) / 100 -> 3
B248: No rates and charges for the distribution of electricity and charges to meet the costs of any work or service done or furnished for the purpose of the distribution of electricity shall be made except as permitted by this schedule, unless required by the Distributor’s Licence or a Code or Order of the Board, and amendments thereto as approved by the Board, or as specified herein. | L248: =ROUND(LEN(B248), -2) / 100 -> 4
B250: Unless specifically noted, this schedule does not contain any charges for the electricity commodity, be it under the Regulated Price Plan, a contract with a retailer or the wholesale market price, as applicable. In addition, the charges in the MONTHLY RATES AND CHARGES - Regulatory Component of this schedule do not apply to a customer that is an embedded wholesale market participant. | L250: =ROUND(LEN(B250), -2) / 100 -> 4
B252: It should be noted that this schedule does not list any charges, assessments or credits that are required by law to be invoiced by a distributor and that are not subject to Board approval, such as the Debt Retirement Charge, the Global Adjustment, the Ontario Clean Energy Benefit and the HST. | L252: =ROUND(LEN(B252), -2) / 100 -> 3
B254: MONTHLY RATES AND CHARGES - Delivery Component
A256: UNMETERED SCATTERED LOAD | B256: Service Charge (per connection) | D256: $ | E256: 15.99 | K256: 5_P_MSC
A257: UNMETERED SCATTERED LOAD | B257: Distribution Volumetric Rate | D257: $/kWh | E257: 0.0199 | K257: 5_P_VC_1
A258: UNMETERED SCATTERED LOAD | B258: Low Voltage Service Rate | D258: $/kWh | E258: 0.0001 | K258: 5_P_LVrate
B259: Rate Rider for Tax Change (2015) - effective until April 29, 2016 | D259: $/kWh | E259: =+'12. STS - Tax Change RR'!M21 -> -0.0002
A260: UNMETERED SCATTERED LOAD | B260: Rate Rider for Disposition of Deferral/Variance Accounts (2015) - effective until April 30, 2016 | D260: $/kWh | E260: -0.0015 | K260: 5_P_VC_DEFVAR_kWh_1
A261: UNMETERED SCATTERED LOAD | B261: Rate Rider for Disposition of Global Adjustment Account (2015) - effective until April 30, 2016 Applicable only for Non RPP Customers | D261: $/kWh | E261: 0.0006 | K261: 5_P_VC_GA_Rate_Rider_kWh_1
A262: UNMETERED SCATTERED LOAD | B262: Retail Transmission Rate - Network Service Rate | D262: $/kWh | E262: 0.006750445601 | K262: 5_P_RTSR_Network
A263: UNMETERED SCATTERED LOAD | B263: Retail Transmission Rate - Line and Transformation Connection Service Rate | D263: $/kWh | E263: 0.001891443513 | K263: 5_P_RTSR_Connection
A264: UNMETERED SCATTERED LOAD
A265: UNMETERED SCATTERED LOAD | B265: MONTHLY RATES AND CHARGES - Regulatory Component
A266: UNMETERED SCATTERED LOAD
A267: UNMETERED SCATTERED LOAD | B267: Wholesale Market Service Rate | D267: $/kWh | E267: 0.0044 | K267: 5_P_WMSR
A268: UNMETERED SCATTERED LOAD | B268: Rural or Remote Electricity Rate Protection Charge (RRRP) | D268: $/kWh | E268: 0.0013 | K268: 5_P_RRPC
A269: UNMETERED SCATTERED LOAD | B269: Standard Supply Service - Administrative Charge (if applicable) | D269: $ | E269: 0.25 | K269: 5_P_SSS
B272: Waterloo North Hydro Inc.
B273: TARIFF OF RATES AND CHARGES
B274: Effective and Implementation Date May 01, 2015
B276: This schedule supersedes and replaces all previously
B277: approved schedules of Rates, Charges and Loss Factors
B278: EB-2014-0119
B281: STREET LIGHTING SERVICE CLASSIFICATION
B283: This classification applies to an account for roadway lighting with a Municipality, Regional Municipality, Ministry of Transportation and private roadway lighting, controlled by photo cells. The consumption for these customers will be based on the calculated connected load times the required lighting times established in the approved OEB street lighting load shape template. Further servicing details are available in the distributor’s Conditions of Service. | L283: =ROUND(LEN(B283), -2) / 100 -> 5
B285: APPLICATION
B287: The application of these rates and charges shall be in accordance with the Licence of the Distributor and any Code or Order of the Board, and amendments thereto as approved by the Board, which may be applicable to the administration of this schedule. | L287: =ROUND(LEN(B287), -2) / 100 -> 3
B289: No rates and charges for the distribution of electricity and charges to meet the costs of any work or service done or furnished for the purpose of the distribution of electricity shall be made except as permitted by this schedule, unless required by the Distributor’s Licence or a Code or Order of the Board, and amendments thereto as approved by the Board, or as specified herein. | L289: =ROUND(LEN(B289), -2) / 100 -> 4
B291: Unless specifically noted, this schedule does not contain any charges for the electricity commodity, be it under the Regulated Price Plan, a contract with a retailer or the wholesale market price, as applicable. In addition, the charges in the MONTHLY RATES AND CHARGES - Regulatory Component of this schedule do not apply to a customer that is an embedded wholesale market participant. | L291: =ROUND(LEN(B291), -2) / 100 -> 4
B293: It should be noted that this schedule does not list any charges, assessments or credits that are required by law to be invoiced by a distributor and that are not subject to Board approval, such as the Debt Retirement Charge, the Global Adjustment, the Ontario Clean Energy Benefit and the HST. | L293: =ROUND(LEN(B293), -2) / 100 -> 3
B295: MONTHLY RATES AND CHARGES - Delivery Component
A297: STREET LIGHTING | B297: Service Charge (per connection) | D297: $ | E297: 0.33 | K297: 6_P_MSC
A298: STREET LIGHTING | B298: Distribution Volumetric Rate | D298: $/kW | E298: 8.6918 | K298: 6_P_VC_1
A299: STREET LIGHTING | B299: Low Voltage Service Rate | D299: $/kW | E299: 0.0341 | K299: 6_P_LVrate
A300: STREET LIGHTING | B300: Rate Rider for Tax Change (2015) - effective until April 29, 2016 | D300: $/kW | E300: -0.0208 | K300: 6_P_VC_Rate_Rider_kW_1
A301: STREET LIGHTING | B301: Rate Rider for Disposition of Deferral/Variance Accounts (2015) - effective until April 30, 2016 | D301: $/kW | E301: -0.5186 | K301: 6_P_VC_DEFVAR_kW_1
A302: STREET LIGHTING | B302: Rate Rider for Disposition of Global Adjustment Account (2015) - effective until April 30, 2016 Applicable only for Non RPP Customers | D302: $/kW | E302: 0.2139 | K302: 6_P_VC_GA_Rate_Rider_kW_1
A303: STREET LIGHTING | B303: Retail Transmission Rate - Network Service Rate | D303: $/kW | E303: 2.094007792 | K303: 6_P_RTSR_Network
A304: STREET LIGHTING | B304: Retail Transmission Rate - Line and Transformation Connection Service Rate | D304: $/kW | E304: 0.5711213688 | K304: 6_P_RTSR_Connection
A305: STREET LIGHTING
A306: STREET LIGHTING | B306: MONTHLY RATES AND CHARGES - Regulatory Component
A307: STREET LIGHTING
A308: STREET LIGHTING | B308: Wholesale Market Service Rate | D308: $/kWh | E308: 0.0044 | K308: 6_P_WMSR
A309: STREET LIGHTING | B309: Rural or Remote Electricity Rate Protection Charge (RRRP) | D309: $/kWh | E309: 0.0013 | K309: 6_P_RRPC
A310: STREET LIGHTING | B310: Standard Supply Service - Administrative Charge (if applicable) | D310: $ | E310: 0.25 | K310: 6_P_SSS
B315: Waterloo North Hydro Inc.
B316: TARIFF OF RATES AND CHARGES
B317: Effective and Implementation Date May 01, 2015
B319: This schedule supersedes and replaces all previously
B320: approved schedules of Rates, Charges and Loss Factors
B321: EB-2014-0119
B324: MICROFIT SERVICE CLASSIFICATION
B326: This classification applies to an electricity generation facility contracted under the Ontario Power Authority’s microFIT program and connected to the distributor’s distribution system. Further servicing details are available in the distributor’s Conditions of Service. | L326: =ROUND(LEN(B326), -2) / 100 -> 3
B328: APPLICATION
B330: The application of these rates and charges shall be in accordance with the Licence of the Distributor and any Code or Order of the Board, and amendments thereto as approved by the Board, which may be applicable to the administration of this schedule. | L330: =ROUND(LEN(B330), -2) / 100 -> 3
B332: No rates and charges for the distribution of electricity and charges to meet the costs of any work or service done or furnished for the purpose of the distribution of electricity shall be made except as permitted by this schedule, unless required by the Distributor’s Licence or a Code or Order of the Board, and amendments thereto as approved by the Board, or as specified herein. | L332: =ROUND(LEN(B332), -2) / 100 -> 4
B334: Unless specifically noted, this schedule does not contain any charges for the electricity commodity, be it under the Regulated Price Plan, a contract with a retailer or the wholesale market price, as applicable. | L334: =ROUND(LEN(B334), -2) / 100 -> 2
B336: It should be noted that this schedule does not list any charges, assessments or credits that are required by law to be invoiced by a distributor and that are not subject to Board approval, such as the Debt Retirement Charge, the Global Adjustment, the Ontario Clean Energy Benefit and the HST. | L336: =ROUND(LEN(B336), -2) / 100 -> 3
B338: MONTHLY RATES AND CHARGES - Delivery Component
A340: MICROFIT | B340: Service Charge | D340: $ | E340: 5.4 | K340: 7_P_MSC
A363: MICROFIT | B363: Waterloo North Hydro Inc.
B364: TARIFF OF RATES AND CHARGES
B365: Effective and Implementation Date May 01, 2015
B367: This schedule supersedes and replaces all previously
B368: approved schedules of Rates, Charges and Loss Factors
B369: EB-2014-0119
B372: EMBEDDED DISTRIBUTOR SERVICE CLASSIFICATION
A373: MICROFIT
B374: This classification applies to an electricity distributor licensed by the Board that is provided electricity by means of this distributor’s facilities. Further servicing details are available in the distributor’s Conditions of Service. | L374: =ROUND(LEN(B374), -2) / 100 -> 2
B376: APPLICATION
B378: The application of these rates and charges shall be in accordance with the Licence of the Distributor and any Code or Order of the Board, and amendments thereto as approved by the Board, which may be applicable to the administration of this schedule. | L378: =ROUND(LEN(B378), -2) / 100 -> 3
... 107 more rows

Sheet 28. Bill Impacts
S1: 1 | Z1: =MATCH(C14, '[1]3. Rate Class Selection'!B19:B40,0) -> 1 | AA1: =VLOOKUP(C14, [1]lists!AO:AP,2,0) -> kWh
A14: Rate Class | C14: RESIDENTIAL
A16: Loss Factor | E16: 2.0808
A18: Consumption | C18: kWh | E18: 800
A20: If Billed on a kW basis:
A21: Demand | C21: kW
E25: Current Board-Approved | I25: Proposed | M25: Impact
E26: Rate | F26: Volume | G26: Charge | I26: Rate | J26: Volume | K26: Charge | M26: $ Change | N26: % Change
E27: ($) | G27: ($) | I27: ($) | K27: ($)
A28: Monthly Service Charge | E28: 15 | F28: 1 | G28: =F28*E28 -> 15 | I28: 15.21 | J28: 1 | K28: =J28*I28 -> 15.21 | M28: =K28-G28 -> 0.21 | N28: =IF((G28)=0,"",(M28/G28)) -> 0.014
A29: Distribution Volumetric Rate | E29: 0.019 | F29: 800 | G29: =F29*E29 -> 15.2 | I29: 0.0193 | J29: =F29 -> 800 | K29: =J29*I29 -> 15.44 | M29: 0.24 | N29: 0.01578947368
A30: Fixed Rate Riders | E30: 2.11 | F30: 1 | G30: =F30*E30 -> 2.11 | I30: 2.11 | J30: 1 | K30: =J30*I30 -> 2.11 | M30: 0 | N30: 0
A31: Volumetric Rate Riders | E31: 0.0001 | F31: 800 | G31: =F31*E31 -> 0.08 | I31: 0 | J31: =F31 -> 800 | K31: =J31*I31 -> 0 | M31: -0.08 | N31: -1
A32: Sub-Total A (excluding pass through) | G32: =SUM(G28:G31) -> 32.39 | K32: =SUM(K28:K31) -> 32.76 | M32: 0.37 | N32: 0.01142327879
A33: Line Losses on Cost of Power | E33: =E45*0.64+E46*0.18+E47*0.18 -> 0.08392 | F33: =E18*(E16-1) -> 864.64 | G33: =E33*F33 -> 72.5605888 | I33: =I45*0.64+I46*0.18+I47*0.18 -> 0.08392 | J33: =F33 -> 864.64 | K33: =I33*J33 -> 72.5605888 | M33: 0 | N33: 0
A34: Total Deferral/Variance Account Rate Riders | E34: -0.0016 | F34: 800 | G34: =F34*E34 -> -1.28 | I34: -0.0014 | J34: =F34 -> 800 | K34: =J34*I34 -> -1.12 | M34: 0.16 | N34: -0.125
A35: Low Voltage Service Charge | E35: 0.0001 | F35: 800 | G35: =F35*E35 -> 0.08 | I35: 0.0001 | J35: =F35 -> 800 | K35: =J35*I35 -> 0.08 | M35: 0 | N35: 0
A36: Smart Meter Entity Charge | E36: 0.79 | F36: 1 | G36: =F36*E36 -> 0.79 | I36: 0.79 | J36: =F36 -> 1 | K36: =J36*I36 -> 0.79 | M36: 0 | N36: 0
A37: Sub-Total B - Distribution (includes Sub-Total A) | G37: =SUM(G32:G36) -> 104.5405888 | K37: =SUM(K32:K36) -> 105.0705888 | M37: 0.53 | N37: 0.005069801176
A38: RTSR - Network | E38: 0.0076 | F38: 1664.64 | G38: =F38*E38 -> 12.651264 | I38: 0.0074 | J38: =F38 -> 1664.64 | K38: =J38*I38 -> 12.318336 | M38: -0.332928 | N38: -0.02631578947
A39: RTSR - Connection and/or Line and Transformation Connection | E39: 0.0022 | F39: 1664.64 | G39: =F39*E39 -> 3.662208 | I39: 0.0021 | J39: =F39 -> 1664.64 | K39: =J39*I39 -> 3.495744 | M39: -0.166464 | N39: -0.04545454545
A40: Sub-Total C - Delivery (including Sub-Total B) | G40: =SUM(G37:G39) -> 120.8540608 | K40: =SUM(K37:K39) -> 120.8846688 | M40: 0.030608 | N40: 0.0002532641419
A41: Wholesale Market Service Charge (WMSC) | E41: 0.0044 | F41: =E18*E16 -> 1664.64 | G41: =F41*E41 -> 7.324416 | I41: 0.0044 | J41: =E18*E16 -> 1664.64 | K41: =J41*I41 -> 7.324416 | M41: 0 | N41: 0
A42: Rural and Remote Rate Protection (RRRP) | E42: 0.0013 | F42: =E18*E16 -> 1664.64 | G42: 2.164032 | I42: 0.0013 | J42: =E18*E16 -> 1664.64 | K42: 2.164032 | M42: 0 | N42: 0
A43: Standard Supply Service Charge | E43: 0.25 | F43: 1 | G43: 0.25 | I43: 0.25 | J43: 1 | K43: 0.25 | M43: 0 | N43: 0
A44: Debt Retirement Charge (DRC) | E44: 0.007 | F44: =E18 -> 800 | G44: 5.6 | I44: 0.007 | J44: =E18 -> 800 | K44: 5.6 | M44: 0 | N44: 0
A45: TOU - Off Peak | E45: 0.067 | F45: 512 | G45: 34.304 | I45: 0.067 | J45: =F45 -> 512 | K45: 34.304 | M45: 0 | N45: 0
A46: TOU - Mid Peak | E46: 0.104 | F46: 144 | G46: 14.976 | I46: 0.104 | J46: =F46 -> 144 | K46: 14.976 | M46: 0 | N46: 0
A47: TOU - On Peak | E47: 0.124 | F47: 144 | G47: 17.856 | I47: 0.124 | J47: =F47 -> 144 | K47: 17.856 | M47: 0 | N47: 0
A49: Total Bill on TOU (before Taxes) | G49: =SUM(G40:G44,G45:G47) -> 203.3285088 | K49: =SUM(K40:K44,K45:K47) -> 203.3591168 | M49: =K49-G49 -> 0.030608 | N49: =IF((G49)=0,"",(M49/G49)) -> 0.0001505347193
A50: HST | E50: 0.13 | G50: =G49*E50 -> 26.43270614 | I50: 0.13 | K50: =K49*I50 -> 26.43668518 | M50: 0.00397904 | N50: 0.0001505347193
A51: Total Bill (including HST) | G51: =G49+G50 -> 229.7612149 | K51: =K49+K50 -> 229.795802 | M51: 0.03458704 | N51: 0.0001505347193
A52: Ontario Clean Energy Benefit 1 | G52: =ROUND(-G51*10%,2) -> -22.98 | K52: =ROUND(-K51*10%,2) -> -22.98 | M52: 0 | N52: 0
A53: Total Bill on TOU (including OCEB) | G53: =G51+G52 -> 206.7812149 | K53: =K51+K52 -> 206.815802 | M53: 0.03458704 | N53: 0.0001672639365
A58: Note: For distributors who have a majority of customers on Tiered pricing, please provide a separate bill impact for such customers.

Sheet 29. WNH RSVA Model
A13: Sheet 29. WNH RSVA Model - Adjustment of GS > 50 kW RSVA Rate Rider to split out Market Participant
A16: Per Sheet 7 2015 Rate Generator Model
A17: Allocation of Group 1 Accounts (including Account 1568)
C18: % of Total kWh | D18: % of Total non-RPP kWh | E18: % of Customer Numbers ** | N18: 1595 (2008) | O18: 1595 (2009) | P18: 1595 (2010) | Q18: 1595 (2011) | R18: 1595 (2012) | S18: 1568
A19: Rate Class | F19: 1550 | G19: 1551 | H19: 1580 | I19: 1584 | J19: 1586 | K19: 1588 | L19: 1589 | M19: 1590
A21: RESIDENTIAL | C21: 0.2819311267 | D21: 0.02928238887 | E21: 0.8968650104 | F21: 29378.43664 | G21: 29818.66711 | H21: -269010.7621 | I21: -122299.4429 | J21: -77506.94707 | K21: -132876.3403 | L21: 13357.04467 | M21: 0 | N21: 0 | O21: 0 | P21: 0 | Q21: 0 | R21: 0 | S21: 0
A22: GENERAL SERVICE LESS THAN 50 KW | C22: 0.1286272366 | D22: 0.04051979823 | E22: 0.1031349896 | F22: 13403.51158 | G22: 3428.997549 | H22: -122732.4962 | I22: -55797.45508 | J22: -35361.48895 | K22: -60623.02048 | L22: 18482.94404 | M22: 0 | N22: 0 | O22: 0 | P22: 0 | Q22: 0 | R22: 0 | S22: 0
A23: GENERAL SERVICE 50 TO 4,999 KW | C23: 0.5051897814 | D23: 0.8781631922 | F23: 52642.94922 | G23: 0 | H23: -482037.8995 | I23: -219147.2419 | J23: -138883.9824 | K23: -238099.8867 | L23: 400570.6308 | M23: 0 | N23: 0 | O23: 0 | P23: 0 | Q23: 0 | R23: 0 | S23: 0
A24: LARGE USE | C24: 0.05700803866 | D24: 0 | F24: 5940.482952 | G24: 0 | H24: -54395.46922 | I24: -24729.62617 | J24: -15672.3349 | K24: -26868.33353 | L24: 0 | M24: 0 | N24: 0 | O24: 0 | P24: 0 | Q24: 0 | R24: 0 | S24: 0
A25: UNMETERED SCATTERED LOAD | C25: 0.001180176557 | D25: 3.609319563e-06 | F25: 122.9794759 | G25: 0 | H25: -1126.091322 | I25: -511.9510468 | J25: -324.4476161 | K25: -556.226422 | L25: 1.646376695 | M25: 0 | N25: 0 | O25: 0 | P25: 0 | Q25: 0 | R25: 0 | S25: 0
A26: STREET LIGHTING | C26: 0.005577808285 | D26: 0.01017205977 | F26: 581.2316264 | G26: 0 | H26: -5322.187994 | I26: -2419.608128 | J26: -1533.420224 | K26: -2628.864577 | L26: 4639.944416 | M26: 0 | N26: 0 | O26: 0 | P26: 0 | Q26: 0 | R26: 0 | S26: 0
A27: microFIT | C27: 0 | D27: 0 | E27: 0 | F27: 0 | G27: 0 | H27: 0 | I27: 0 | J27: 0 | K27: 0 | L27: 0 | M27: 0 | N27: 0 | O27: 0 | P27: 0 | Q27: 0 | R27: 0 | S27: 0
A28: EMBEDDED DISTRIBUTOR | C28: 0.0204858318 | D28: 0.04185895163 | F28: 2134.711831 | G28: 0 | H28: -19547.00529 | I28: -8886.588174 | J28: -5631.851651 | K28: -9655.132409 | L28: 19093.79351 | M28: 0 | N28: 0 | O28: 0 | P28: 0 | Q28: 0 | R28: 0 | S28: 0
A30: Total | C30: 1 | D30: 1 | E30: 1 | F30: 104204.3033 | G30: 33247.66466 | H30: -954171.9116 | I30: -433791.9134 | J30: -274914.4728 | K30: -471307.8045 | L30: 456146.0038 | M30: 0 | N30: 0 | O30: 0 | P30: 0 | Q30: 0 | R30: 0 | S30: 0
A33: * RSVA - Power (Excluding Global Adjustment)
A34: ** Used to allocate Account 1551 as this account records the variances arising from the Smart Metering Entity Charges to Residential and GS<50 customers.
A36: Per Sheet 8 2015 Rate Generator Model
A38: Please indicate the Rate Rider Recovery Period (in years) | D38: 1
E40: Balance of Accounts Allocated by kWh/kW (RPP) or Distribution Revenue | F40: Deferral/Variance Account Rate Rider | G40: Allocation of Balance in Account 1589 | H40: Billed kWh or Estimated kW for Non-RPP Customers | I40: Global Adjustment Rate Rider | J40: Allocation of Account 1568 | K40: Account 1568 Rate Rider
A41: Rate Class | B41: Unit | C41: Billed kWh | D41: Billed kW or kVA
A43: RESIDENTIAL | B43: $/kWh | C43: 393848053.7 | E43: -542496.3886 | F43: =+E43/C43 -> -0.001377425592 | G43: 13357.04467 | H43: 22283799.06 | I43: =+G43/H43 -> 0.0005994060811
A44: GENERAL SERVICE LESS THAN 50 KW | B44: $/kWh | C44: 179687810.2 | E44: -257681.9516 | F44: =+E44/C44 -> -0.001434053603 | G44: 18482.94404 | H44: 30835429.63 | I44: =+G44/H44 -> 0.0005994060811
A46: GENERAL SERVICE 50 TO 4,999 KW - per Sheet 8 | B46: $/kW | C46: 705732689 | D46: 1581206.519 | E46: -1025526.061 | F46: =+E46/D46 -> -0.6485718651 | G46: 400570.6308 | H46: 1497291.371 | I46: =+G46/H46 -> 0.2675301805
A47: MARKET PARTICIPANT - 2013 KW - see below - Proposed Rate | B47: $/kW | D47: 13337.56 | E47: -2506 | F47: =+E47/D47 -> -0.1878904387
A48: THUS, BALANCE OF GS 50 TO 4,999 KW - Proposed Rate | B48: $/kW | D48: =+D46-D47 -> 1567868.959 | E48: =SUM(E46:E47) -> -1028032.061 | F48: =+E48/D48 -> -0.6556874892
A50: LARGE USE | B50: $/kW | C50: 79638262.48 | D50: 153851.8077 | E50: -115725.2809 | F50: =+E50/D50 -> -0.7521866829 | G50: 0 | H50: 0 | I50: 0
A51: UNMETERED SCATTERED LOAD | B51: $/kWh | C51: 1648665.919 | E51: -2395.736931 | F51: =+E51/C51 -> -0.001453136687 | G51: 1.646376695 | H51: 2746.68 | I51: =+G51/H51 -> 0.0005994060811
A52: STREET LIGHTING | B52: $/kW | C52: 7792005.668 | D52: 21835.28338 | E52: -11322.8493 | F52: =+E52/D52 -> -0.5185574695 | G52: 4639.944416 | H52: 21692.08044 | I52: =+G52/H52 -> 0.2139003877
A53: microFIT
A54: EMBEDDED DISTRIBUTOR | B54: $/kW | C54: 28618000 | D54: 71600 | E54: -41585.86569 | F54: =+E54/D54 -> -0.5808081801 | G54: 19093.79351 | H54: 79697.52229 | I54: =+G54/H54 -> 0.2395782574
A55: Total | C55: =SUM(C43:C54) -> 1396965487 | D55: =SUM(D43:D54) -> 3409700.13 | E55: =SUM(E43:E54) -> -3027272.196 | G55: =SUM(G43:G54) -> 456146.0038 | H55: =SUM(H43:H54) -> 54720656.35 | J55: =SUM(J43:J54) -> 0
A58: Market Participant (MP) kW 2013 | D58: 13337.56
A59: Total kW >50 kW Class kW 2013 | D59: 1779532
A60: Thus, kW % Market Participant of >50 kW Class | D60: 0.007
A61: RSVA Balances applicable to Market Participant
A62: per Sheet 8 2015 IRM for GS >50 kW Rate Class
A63: 1584 - Network | D63: =+I23 -> -219147.2419
A64: 1586 - Connection | D64: =+J23 -> -138883.9824
A65: Total | D65: =SUM(D63:D64) -> -358031.2243
A66: Thus, MP $ applicable for Rate Rider | D66: =+D60*D65 -> -2506.21857
A67: (MP kW % times GS >50 kW $)

Sheet 30. WNH Bill Impacts Typical
A1: Rate Class | C1: RESIDENTIAL
A3: Loss Factor | E3: 1.0404
A5: Consumption | C5: kWh | E5: 800
A7: If Billed on a kW basis:
A8: Demand | C8: kW
E9: Current Board-Approved | I9: Proposed | M9: Impact
E10: Rate | F10: Volume | G10: Charge | I10: Rate | J10: Volume | K10: Charge | M10: $ Change | N10: % Change
E11: ($) | G11: ($) | I11: ($) | K11: ($)
A12: Monthly Service Charge | E12: 15 | F12: 1 | G12: =+E12*F12 -> 15 | I12: 15.21 | J12: 1 | K12: =J12*I12 -> 15.21 | M12: =K12-G12 -> 0.21 | N12: =IF((G12)=0,"",(M12/G12)) -> 0.014
A13: Distribution Volumetric Rate | E13: 0.019 | F13: 800 | G13: =+E13*F13 -> 15.2 | I13: 0.0193 | J13: =F13 -> 800 | K13: =J13*I13 -> 15.44 | M13: 0.24 | N13: 0.01578947368
A14: Fixed Rate Riders | E14: 2.11 | F14: 1 | G14: 2.11 | I14: 2.11 | J14: 1 | K14: =J14*I14 -> 2.11 | M14: 0 | N14: 0
A15: Volumetric Rate Riders | E15: 0.0001 | F15: 800 | G15: 0.08 | I15: =+'31. WNH Proposed Rates'!E31 -> -0.0001 | J15: =F15 -> 800 | K15: =J15*I15 -> -0.08 | M15: -0.16 | N15: -2
A16: Sub-Total A (excluding pass through) | G16: =SUM(G12:G15) -> 32.39 | K16: =SUM(K12:K15) -> 32.68 | M16: 0.29 | N16: 0.008953380673
A17: Line Losses on Cost of Power | E17: =E29*0.64+E30*0.18+E31*0.18 -> 0.08392 | F17: =E5*(E3-1) -> 32.32 | G17: =E17*F17 -> 2.7122944 | I17: =I29*0.64+I30*0.18+I31*0.18 -> 0.08392 | J17: =F17 -> 32.32 | K17: =I17*J17 -> 2.7122944 | M17: 0 | N17: 0
A18: Total Deferral/Variance Account Rate Riders | E18: -0.0016 | F18: 800 | G18: =F18*E18 -> -1.28 | I18: =+'31. WNH Proposed Rates'!E29 -> -0.0014 | J18: =F18 -> 800 | K18: =J18*I18 -> -1.12 | M18: 0.16 | N18: =-IF((G18)=0,"",(M18/G18)) -> 0.125
A19: Low Voltage Service Charge | E19: 0.0001 | F19: 800 | G19: =F19*E19 -> 0.08 | I19: 0.0001 | J19: =F19 -> 800 | K19: =J19*I19 -> 0.08 | M19: 0 | N19: 0
A20: Smart Meter Entity Charge | E20: 0.79 | F20: 1 | G20: =F20*E20 -> 0.79 | I20: 0.79 | J20: =F20 -> 1 | K20: =J20*I20 -> 0.79 | M20: 0 | N20: 0
A21: Sub-Total B - Distribution (includes Sub-Total A) | G21: =SUM(G16:G20) -> 34.6922944 | K21: =SUM(K16:K20) -> 35.1422944 | M21: 0.45 | N21: 0.01297118014
A22: RTSR - Network | E22: 0.0076 | F22: =+E5*E3 -> 832.32 | G22: =F22*E22 -> 6.325632 | I22: 0.0074 | J22: =F22 -> 832.32 | K22: =J22*I22 -> 6.159168 | M22: -0.166464 | N22: -0.02631578947
A23: RTSR - Connection and/or Line and Transformation Connection | E23: 0.0022 | F23: =+E5*E3 -> 832.32 | G23: =F23*E23 -> 1.831104 | I23: 0.0021 | J23: =F23 -> 832.32 | K23: =J23*I23 -> 1.747872 | M23: -0.083232 | N23: -0.04545454545
A24: Sub-Total C - Delivery (including Sub-Total B) | G24: =SUM(G21:G23) -> 42.8490304 | K24: =SUM(K21:K23) -> 43.0493344 | M24: 0.200304 | N24: 0.004674644867
A25: Wholesale Market Service Charge (WMSC) | E25: 0.0044 | F25: =E5*E3 -> 832.32 | G25: =F25*E25 -> 3.662208 | I25: 0.0044 | J25: =E5*E3 -> 832.32 | K25: =J25*I25 -> 3.662208 | M25: 0 | N25: 0
A26: Rural and Remote Rate Protection (RRRP) | E26: 0.0013 | F26: =E5*E3 -> 832.32 | G26: 1.082016 | I26: 0.0013 | J26: =E5*E3 -> 832.32 | K26: 1.082016 | M26: 0 | N26: 0
A27: Standard Supply Service Charge | E27: 0.25 | F27: 1 | G27: 0.25 | I27: 0.25 | J27: 1 | K27: 0.25 | M27: 0 | N27: 0
A28: Debt Retirement Charge (DRC) | E28: 0.007 | F28: =E5 -> 800 | G28: 5.6 | I28: 0.007 | J28: =E5 -> 800 | K28: 5.6 | M28: 0 | N28: 0
A29: TOU - Off Peak | E29: 0.067 | F29: 512 | G29: 34.304 | I29: 0.067 | J29: =F29 -> 512 | K29: 34.304 | M29: 0 | N29: 0
A30: TOU - Mid Peak | E30: 0.104 | F30: 144 | G30: 14.976 | I30: 0.104 | J30: =F30 -> 144 | K30: 14.976 | M30: 0 | N30: 0
A31: TOU - On Peak | E31: 0.124 | F31: 144 | G31: 17.856 | I31: 0.124 | J31: =F31 -> 144 | K31: 17.856 | M31: 0 | N31: 0
A33: Total Bill on TOU (before Taxes) | G33: =SUM(G24:G28,G29:G31) -> 120.5792544 | K33: =SUM(K24:K28,K29:K31) -> 120.7795584 | M33: =K33-G33 -> 0.200304 | N33: =IF((G33)=0,"",(M33/G33)) -> 0.001661181279
A34: HST | E34: 0.13 | G34: =G33*E34 -> 15.67530307 | I34: 0.13 | K34: =K33*I34 -> 15.70134259 | M34: 0.02603952 | N34: 0.001661181279
A35: Total Bill (including HST) | G35: =G33+G34 -> 136.2545575 | K35: =K33+K34 -> 136.480901 | M35: 0.22634352 | N35: 0.001661181279
A36: Ontario Clean Energy Benefit 1 | G36: =ROUND(-G35*10%,2) -> -13.63 | K36: =ROUND(-K35*10%,2) -> -13.65 | M36: -0.02 | N36: 0.001467351431
A37: Total Bill on TOU (including OCEB) | G37: =G35+G36 -> 122.6245575 | K37: =K35+K36 -> 122.830901 | M37: 0.20634352 | N37: 0.00168272591
A40: Changed the sign of % impact to reflect increase in bill, not decrease
A41: Note: For distributors who have a majority of customers on Tiered pricing, please provide a separate bill impact for such customers.
A42: Rate Class | C42: GENERAL SERVICE LESS THAN 50 KW
A44: Loss Factor | E44: 1.0404
A46: Consumption | C46: kWh | E46: 2000
A48: If Billed on a kW basis:
A49: Demand | C49: kW
E50: Current Board-Approved | I50: Proposed | M50: Impact
E51: Rate | F51: Volume | G51: Charge | I51: Rate | J51: Volume | K51: Charge | M51: $ Change | N51: % Change
E52: ($) | G52: ($) | I52: ($) | K52: ($)
A53: Monthly Service Charge | E53: 31.55 | F53: 1 | G53: =F53*E53 -> 31.55 | I53: 31.99 | J53: 1 | K53: =J53*I53 -> 31.99 | M53: =K53-G53 -> 0.44 | N53: =IF((G53)=0,"",(M53/G53)) -> 0.01394611727
A54: Distribution Volumetric Rate | E54: 0.0141 | F54: 2000 | G54: =F54*E54 -> 28.2 | I54: 0.0143 | J54: =F54 -> 2000 | K54: =J54*I54 -> 28.6 | M54: 0.4 | N54: 0.01418439716
A55: Fixed Rate Riders | E55: 5.51 | F55: 1 | G55: =F55*E55 -> 5.51 | I55: 5.51 | J55: 1 | K55: =J55*I55 -> 5.51 | M55: 0 | N55: 0
A56: Volumetric Rate Riders | E56: 0.0001 | F56: 2000 | G56: =F56*E56 -> 0.2 | I56: =+'31. WNH Proposed Rates'!E68 -> -4.801682838e-05 | J56: =F56 -> 2000 | K56: =J56*I56 -> -0.09603365675 | M56: -0.2960336568 | N56: -1.480168284
A57: Sub-Total A (excluding pass through) | G57: =SUM(G53:G56) -> 65.46 | K57: =SUM(K53:K56) -> 66.00396634 | M57: 0.5439663432 | N57: 0.008309904419
A58: Line Losses on Cost of Power | E58: =E70*0.64+E71*0.18+E72*0.18 -> 0.08392 | F58: =E46*(E44-1) -> 80.8 | G58: =E58*F58 -> 6.780736 | I58: =I70*0.64+I71*0.18+I72*0.18 -> 0.08392 | J58: =F58 -> 80.8 | K58: =I58*J58 -> 6.780736 | M58: 0 | N58: 0
A59: Total Deferral/Variance Account Rate Riders | E59: -0.0016 | F59: 2000 | G59: =F59*E59 -> -3.2 | I59: =+'31. WNH Proposed Rates'!E69 -> -0.0014 | J59: =F59 -> 2000 | K59: =J59*I59 -> -2.8 | M59: 0.4 | N59: =-IF((G59)=0,"",(M59/G59)) -> 0.125
A60: Low Voltage Service Charge | E60: 0.0001 | F60: 2000 | G60: =F60*E60 -> 0.2 | I60: 0.0001 | J60: =F60 -> 2000 | K60: =J60*I60 -> 0.2 | M60: 0 | N60: 0
A61: Smart Meter Entity Charge | E61: 0.79 | F61: 1 | G61: =F61*E61 -> 0.79 | I61: 0.79 | J61: =F61 -> 1 | K61: =J61*I61 -> 0.79 | M61: 0 | N61: 0
A62: Sub-Total B - Distribution (includes Sub-Total A) | G62: =SUM(G57:G61) -> 70.030736 | K62: =SUM(K57:K61) -> 70.97470234 | M62: 0.9439663432 | N62: 0.0134793149
A63: RTSR - Network | E63: 0.0069 | F63: =+E46*E44 -> 2080.8 | G63: =F63*E63 -> 14.35752 | I63: 0.0068 | J63: =F63 -> 2080.8 | K63: =J63*I63 -> 14.14944 | M63: -0.20808 | N63: -0.01449275362
A64: RTSR - Connection and/or Line and Transformation Connection | E64: 0.002 | F64: =+E46*E44 -> 2080.8 | G64: =F64*E64 -> 4.1616 | I64: 0.0019 | J64: =F64 -> 2080.8 | K64: =J64*I64 -> 3.95352 | M64: -0.20808 | N64: -0.05
A65: Sub-Total C - Delivery (including Sub-Total B) | G65: =SUM(G62:G64) -> 88.549856 | K65: =SUM(K62:K64) -> 89.07766234 | M65: 0.5278063432 | N65: 0.005960555636
A66: Wholesale Market Service Charge (WMSC) | E66: 0.0044 | F66: =E46*E44 -> 2080.8 | G66: =F66*E66 -> 9.15552 | I66: 0.0044 | J66: =E46*E44 -> 2080.8 | K66: =J66*I66 -> 9.15552 | M66: 0 | N66: 0
A67: Rural and Remote Rate Protection (RRRP) | E67: 0.0013 | F67: =E46*E44 -> 2080.8 | G67: 2.70504 | I67: 0.0013 | J67: =E46*E44 -> 2080.8 | K67: 2.70504 | M67: 0 | N67: 0
A68: Standard Supply Service Charge | E68: 0.25 | F68: 1 | G68: 0.25 | I68: 0.25 | J68: 1 | K68: 0.25 | M68: 0 | N68: 0
A69: Debt Retirement Charge (DRC) | E69: 0.007 | F69: =E46 -> 2000 | G69: 14 | I69: 0.007 | J69: =E46 -> 2000 | K69: 14 | M69: 0 | N69: 0
A70: TOU - Off Peak | E70: 0.067 | F70: =+E46*0.64 -> 1280 | G70: 85.76 | I70: 0.067 | J70: =F70 -> 1280 | K70: 85.76 | M70: 0 | N70: 0
A71: TOU - Mid Peak | E71: 0.104 | F71: 360 | G71: 37.44 | I71: 0.104 | J71: =F71 -> 360 | K71: 37.44 | M71: 0 | N71: 0
A72: TOU - On Peak | E72: 0.124 | F72: 360 | G72: 44.64 | I72: 0.124 | J72: =F72 -> 360 | K72: 44.64 | M72: 0 | N72: 0
A74: Total Bill on TOU (before Taxes) | G74: =SUM(G65:G69,G70:G72) -> 282.500416 | K74: =SUM(K65:K69,K70:K72) -> 283.0282223 | M74: =K74-G74 -> 0.5278063432 | N74: =IF((G74)=0,"",(M74/G74)) -> 0.001868338287
A75: HST | E75: 0.13 | G75: =G74*E75 -> 36.72505408 | I75: 0.13 | K75: =K74*I75 -> 36.7936689 | M75: 0.06861482462 | N75: 0.001868338287
A76: Total Bill (including HST) | G76: =G74+G75 -> 319.2254701 | K76: =K74+K75 -> 319.8218912 | M76: 0.5964211679 | N76: 0.001868338287
A77: Ontario Clean Energy Benefit 1 | G77: =ROUND(-G76*10%,2) -> -31.92 | K77: =ROUND(-K76*10%,2) -> -31.98 | M77: -0.06 | N77: 0.001879699248
A78: Total Bill on TOU (including OCEB) | G78: =G76+G77 -> 287.3054701 | K78: =K76+K77 -> 287.8418912 | M78: 0.5364211679 | N78: 0.00186707607
A81: Changed the sign of % impact to reflect increase in bill, not decrease
A82: Note: For distributors who have a majority of customers on Tiered pricing, please provide a separate bill impact for such customers.
A83: Rate Class | C83: GENERAL SERVICE 50 TO 4,999 KW
A85: Loss Factor | E85: 1.0404
A87: Consumption | C87: kWh | E87: 100000
A89: If Billed on a kW basis:
A90: Demand | C90: kW | E90: 250
E91: Current Board-Approved | I91: Proposed | M91: Impact
E92: Rate | F92: Volume | G92: Charge | I92: Rate | J92: Volume | K92: Charge | M92: $ Change | N92: % Change
E93: ($) | G93: ($) | I93: ($) | K93: ($)
A94: Monthly Service Charge | E94: 117.85 | F94: 1 | G94: =F94*E94 -> 117.85 | I94: 119.5 | J94: 1 | K94: =J94*I94 -> 119.5 | M94: =K94-G94 -> 1.65 | N94: =IF((G94)=0,"",(M94/G94)) -> 0.01400084854
A95: Distribution Volumetric Rate | E95: 4.6787 | F95: 250 | G95: =F95*E95 -> 1169.675 | I95: 4.7442 | J95: =F95 -> 250 | K95: =J95*I95 -> 1186.05 | M95: 16.375 | N95: 0.01399961528
A96: Fixed Rate Riders | E96: 0 | F96: 1 | G96: =F96*E96 -> 0 | I96: 0 | J96: 1 | K96: =J96*I96 -> 0 | M96: 0
A97: Volumetric Rate Riders | E97: 0.1396 | F97: 250 | G97: =F97*E97 -> 34.9 | I97: -0.0099 | J97: =F97 -> 250 | K97: =J97*I97 -> -2.475 | M97: -37.375 | N97: -1.070916905
A98: Sub-Total A (excluding pass through) | G98: =SUM(G94:G97) -> 1322.425 | K98: =SUM(K94:K97) -> 1303.075 | M98: -19.35 | N98: -0.01463220977
A99: Line Losses on Cost of Power | E99: =E111*0.64+E112*0.18+E113*0.18 -> 0.08392 | F99: =E87*(E85-1) -> 4040 | G99: =E99*F99 -> 339.0368 | I99: =I111*0.64+I112*0.18+I113*0.18 -> 0.08392 | J99: =F99 -> 4040 | K99: =I99*J99 -> 339.0368 | M99: 0 | N99: 0
A100: Total Deferral/Variance Account Rate Riders | E100: -1.0293 | F100: 250 | G100: =F100*E100 -> -257.325 | I100: =+'31. WNH Proposed Rates'!E106+'31. WNH Proposed Rates'!E108 -> -0.3881874892 | J100: =F100 -> 250 | K100: =J100*I100 -> -97.04687229 | M100: 160.2781277 | N100: =-IF((G100)=0,"",(M100/G100)) -> 0.6228626356
A101: Low Voltage Service Charge | E101: 0.0551 | F101: 250 | G101: =F101*E101 -> 13.775 | I101: 0.0551 | J101: =F101 -> 250 | K101: =J101*I101 -> 13.775 | M101: 0 | N101: 0
A102: Smart Meter Entity Charge | F102: 1 | G102: =F102*E102 -> 0 | J102: =F102 -> 1 | K102: =J102*I102 -> 0 | M102: 0
A103: Sub-Total B - Distribution (includes Sub-Total A) | G103: =SUM(G98:G102) -> 1417.9118 | K103: =SUM(K98:K102) -> 1558.839928 | M103: 140.9281277 | N103: 0.09939132159
A104: RTSR - Network | E104: =+'13. RTSR Rate Sheet'!D21 -> 2.8378 | F104: 250 | G104: =F104*E104 -> 709.45 | I104: =+'31. WNH Proposed Rates'!E109 -> 2.776291961 | J104: =F104 -> 250 | K104: =J104*I104 -> 694.0729901 | M104: -15.37700987 | N104: -0.02167455052
A105: RTSR - Connection and/or Line and Transformation Connection | E105: =+'13. RTSR Rate Sheet'!E24 -> 0.7815 | F105: 250 | G105: =F105*E105 -> 195.375 | I105: =+'31. WNH Proposed Rates'!E112 -> 0.7390815527 | J105: =F105 -> 250 | K105: =J105*I105 -> 184.7703882 | M105: -10.60461182 | N105: -0.0542782435
A106: Sub-Total C - Delivery (including Sub-Total B) | G106: =SUM(G103:G105) -> 2322.7368 | K106: =SUM(K103:K105) -> 2437.683306 | M106: 114.946506 | N106: 0.04948752955
A107: Wholesale Market Service Charge (WMSC) | E107: 0.0044 | F107: =E87*E85 -> 104040 | G107: =F107*E107 -> 457.776 | I107: 0.0044 | J107: =E87*E85 -> 104040 | K107: =J107*I107 -> 457.776 | M107: 0 | N107: 0
A108: Rural and Remote Rate Protection (RRRP) | E108: 0.0013 | F108: =E87*E85 -> 104040 | G108: 135.252 | I108: 0.0013 | J108: =E87*E85 -> 104040 | K108: 135.252 | M108: 0 | N108: 0
A109: Standard Supply Service Charge | E109: 0.25 | F109: 1 | G109: 0.25 | I109: 0.25 | J109: 1 | K109: 0.25 | M109: 0 | N109: 0
A110: Debt Retirement Charge (DRC) | E110: 0.007 | F110: =E87 -> 100000 | G110: 700 | I110: 0.007 | J110: =E87 -> 100000 | K110: 700 | M110: 0 | N110: 0
A111: TOU - Off Peak | E111: 0.067 | F111: 64000 | G111: 4288 | I111: 0.067 | J111: =F111 -> 64000 | K111: 4288 | M111: 0 | N111: 0
A112: TOU - Mid Peak | E112: 0.104 | F112: 18000 | G112: 1872 | I112: 0.104 | J112: =F112 -> 18000 | K112: 1872 | M112: 0 | N112: 0
A113: TOU - On Peak | E113: 0.124 | F113: 18000 | G113: 2232 | I113: 0.124 | J113: =F113 -> 18000 | K113: 2232 | M113: 0 | N113: 0
A115: Total Bill on TOU (before Taxes) | G115: =SUM(G106:G110,G111:G113) -> 12008.0148 | K115: =SUM(K106:K110,K111:K113) -> 12122.96131 | M115: =K115-G115 -> 114.946506 | N115: =IF((G115)=0,"",(M115/G115)) -> 0.009572482041
A116: HST | E116: 0.13 | G116: =G115*E116 -> 1561.041924 | I116: 0.13 | K116: =K115*I116 -> 1575.98497 | M116: 14.94304578 | N116: 0.009572482041
A117: Total Bill (including HST) | G117: =G115+G116 -> 13569.05672 | K117: =K115+K116 -> 13698.94628 | M117: 129.8895518 | N117: 0.009572482041
A118: Ontario Clean Energy Benefit 1 | E118: n/a | M118: 0
A119: Total Bill on TOU (including OCEB) | G119: =G117+G118 -> 13569.05672 | K119: =K117+K118 -> 13698.94628 | M119: 129.8895518 | N119: 0.009572482041
A122: Changed the sign of % impact to reflect increase in bill, not decrease
A123: Note: For distributors who have a majority of customers on Tiered pricing, please provide a separate bill impact for such customers.
A124: Rate Class | C124: LARGE USE
A126: Loss Factor | E126: 1.005
A128: Consumption | C128: kWh | E128: 7000000
A130: If Billed on a kW basis:
A131: Demand | C131: kW | E131: 12300
E132: Current Board-Approved | I132: Proposed | M132: Impact
E133: Rate | F133: Volume | G133: Charge | I133: Rate | J133: Volume | K133: Charge | M133: $ Change | N133: % Change
E134: ($) | G134: ($) | I134: ($) | K134: ($)
A135: Monthly Service Charge | E135: 6886.2 | F135: 1 | G135: =F135*E135 -> 6886.2 | I135: 6982.61 | J135: 1 | K135: =J135*I135 -> 6982.61 | M135: =K135-G135 -> 96.41 | N135: =IF((G135)=0,"",(M135/G135)) -> 0.0140004647
A136: Distribution Volumetric Rate | E136: 3.2947 | F136: 12300 | G136: =F136*E136 -> 40524.81 | I136: 3.3408 | J136: =F136 -> 12300 | K136: =J136*I136 -> 41091.84 | M136: 567.03 | N136: 0.01399216924
A137: Fixed Rate Riders | E137: 0 | F137: 1 | G137: =F137*E137 -> 0 | I137: 0 | J137: 1 | K137: =J137*I137 -> 0 | M137: 0
A138: Volumetric Rate Riders | E138: -0.0072 | F138: 12300 | G138: =F138*E138 -> -88.56 | I138: -0.0072 | J138: =F138 -> 12300 | K138: =J138*I138 -> -88.56 | M138: 0 | N138: 0
A139: Sub-Total A (excluding pass through) | G139: =SUM(G135:G138) -> 47322.45 | K139: =SUM(K135:K138) -> 47985.89 | M139: 663.44 | N139: 0.01401956154
A140: Line Losses on Cost of Power | E140: =E152*0.64+E153*0.18+E154*0.18 -> 0.08392 | F140: =E128*(E126-1) -> 35000 | G140: =E140*F140 -> 2937.2 | I140: =I152*0.64+I153*0.18+I154*0.18 -> 0.08392 | J140: =F140 -> 35000 | K140: =I140*J140 -> 2937.2 | M140: 0 | N140: 0
A141: Total Deferral/Variance Account Rate Riders | E141: -0.8427 | F141: 12300 | G141: =F141*E141 -> -10365.21 | I141: =+'31. WNH Proposed Rates'!E193 -> -0.7522 | J141: =F141 -> 12300 | K141: =J141*I141 -> -9252.06 | M141: 1113.15 | N141: =-IF((G141)=0,"",(M141/G141)) -> 0.1073929038
A142: Low Voltage Service Charge | E142: 0.0553 | F142: 12300 | G142: =F142*E142 -> 680.19 | I142: 0.0553 | J142: =F142 -> 12300 | K142: =J142*I142 -> 680.19 | M142: 0 | N142: 0
A143: Smart Meter Entity Charge | F143: 1 | G143: =F143*E143 -> 0 | J143: =F143 -> 1 | K143: =J143*I143 -> 0 | M143: 0
A144: Sub-Total B - Distribution (includes Sub-Total A) | G144: =SUM(G139:G143) -> 40574.63 | K144: =SUM(K139:K143) -> 42351.22 | M144: 1776.59 | N144: 0.04378573508
A145: RTSR - Network | E145: 3.3372 | F145: 12300 | G145: =F145*E145 -> 41047.56 | I145: 3.2649 | J145: =F145 -> 12300 | K145: =J145*I145 -> 40158.27 | M145: -889.29 | N145: -0.02166486875
A146: RTSR - Connection and/or Line and Transformation Connection | E146: 0.9795 | F146: 12300 | G146: =F146*E146 -> 12047.85 | I146: 0.9263 | J146: =F146 -> 12300 | K146: =J146*I146 -> 11393.49 | M146: -654.36 | N146: -0.05431342522
A147: Sub-Total C - Delivery (including Sub-Total B) | G147: =SUM(G144:G146) -> 93670.04 | K147: =SUM(K144:K146) -> 93902.98 | M147: 232.94 | N147: 0.002486814354
A148: Wholesale Market Service Charge (WMSC) | E148: 0.0044 | F148: =E128*E126 -> 7035000 | G148: =F148*E148 -> 30954 | I148: 0.0044 | J148: =E128*E126 -> 7035000 | K148: =J148*I148 -> 30954 | M148: 0 | N148: 0
A149: Rural and Remote Rate Protection (RRRP) | E149: 0.0013 | F149: =E128*E126 -> 7035000 | G149: 9145.5 | I149: 0.0013 | J149: =E128*E126 -> 7035000 | K149: 9145.5 | M149: 0 | N149: 0
A150: Standard Supply Service Charge | E150: 0.25 | F150: 1 | G150: 0.25 | I150: 0.25 | J150: 1 | K150: 0.25 | M150: 0 | N150: 0
A151: Debt Retirement Charge (DRC) | E151: 0.007 | F151: =E128 -> 7000000 | G151: 49000 | I151: 0.007 | J151: =E128 -> 7000000 | K151: 49000 | M151: 0 | N151: 0
A152: TOU - Off Peak | E152: 0.067 | F152: 4480000 | G152: 300160 | I152: 0.067 | J152: =F152 -> 4480000 | K152: 300160 | M152: 0 | N152: 0
A153: TOU - Mid Peak | E153: 0.104 | F153: 1260000 | G153: 131040 | I153: 0.104 | J153: =F153 -> 1260000 | K153: 131040 | M153: 0 | N153: 0
A154: TOU - On Peak | E154: 0.124 | F154: 1260000 | G154: 156240 | I154: 0.124 | J154: =F154 -> 1260000 | K154: 156240 | M154: 0 | N154: 0
A156: Total Bill on TOU (before Taxes) | G156: =SUM(G147:G151,G152:G154) -> 770209.79 | K156: =SUM(K147:K151,K152:K154) -> 770442.73 | M156: =K156-G156 -> 232.94 | N156: =IF((G156)=0,"",(M156/G156)) -> 0.0003024370802
A157: HST | E157: 0.13 | G157: =G156*E157 -> 100127.2727 | I157: 0.13 | K157: =K156*I157 -> 100157.5549 | M157: 30.2822 | N157: 0.0003024370802
A158: Total Bill (including HST) | G158: =G156+G157 -> 870337.0627 | K158: =K156+K157 -> 870600.2849 | M158: 263.2222 | N158: 0.0003024370802
A159: Ontario Clean Energy Benefit 1 | E159: n/a | M159: 0
A160: Total Bill on TOU (including OCEB) | G160: =G158+G159 -> 870337.0627 | K160: =K158+K159 -> 870600.2849 | M160: 263.2222 | N160: 0.0003024370802
A163: Changed the sign of % impact to reflect increase in bill, not decrease
A164: Note: For distributors who have a majority of customers on Tiered pricing, please provide a separate bill impact for such customers.
A165: Rate Class | C165: UNMETERED SCATTERED LOAD
A167: Loss Factor | E167: 1.0404
A169: Consumption | C169: kWh | E169: 250
A171: If Billed on a kW basis:
A172: Demand | C172: kW
E173: Current Board-Approved | I173: Proposed | M173: Impact
E174: Rate | F174: Volume | G174: Charge | I174: Rate | J174: Volume | K174: Charge | M174: $ Change | N174: % Change
E175: ($) | G175: ($) | I175: ($) | K175: ($)
A176: Monthly Service Charge | E176: 15.77 | F176: 1 | G176: =F176*E176 -> 15.77 | I176: 15.99 | J176: 1 | K176: =J176*I176 -> 15.99 | M176: =K176-G176 -> 0.22 | N176: =IF((G176)=0,"",(M176/G176)) -> 0.013950539
A177: Distribution Volumetric Rate | E177: 0.0196 | F177: 250 | G177: =F177*E177 -> 4.9 | I177: 0.0199 | J177: =F177 -> 250 | K177: =J177*I177 -> 4.975 | M177: 0.075 | N177: 0.01530612245
A178: Fixed Rate Riders | E178: 0 | F178: 1 | G178: =F178*E178 -> 0 | I178: 0 | J178: 1 | K178: =J178*I178 -> 0 | M178: 0
A179: Volumetric Rate Riders | E179: 0.0046 | F179: 250 | G179: =F179*E179 -> 1.15 | I179: =+'31. WNH Proposed Rates'!E232 -> -0.0002 | J179: =F179 -> 250 | K179: =J179*I179 -> -0.05 | M179: -1.2 | N179: -1.043478261
A180: Sub-Total A (excluding pass through) | G180: =SUM(G176:G179) -> 21.82 | K180: =SUM(K176:K179) -> 20.915 | M180: -0.905 | N180: -0.04147571036
A181: Line Losses on Cost of Power | E181: =E193*0.64+E194*0.18+E195*0.18 -> 0.08392 | F181: =E169*(E167-1) -> 10.1 | G181: =E181*F181 -> 0.847592 | I181: =I193*0.64+I194*0.18+I195*0.18 -> 0.08392 | J181: =F181 -> 10.1 | K181: =I181*J181 -> 0.847592 | M181: 0 | N181: 0
A182: Total Deferral/Variance Account Rate Riders | E182: -0.0016 | F182: 250 | G182: =F182*E182 -> -0.4 | I182: =+'31. WNH Proposed Rates'!E233 -> -0.0015 | J182: =F182 -> 250 | K182: =J182*I182 -> -0.375 | M182: 0.025 | N182: =-IF((G182)=0,"",(M182/G182)) -> 0.0625
A183: Low Voltage Service Charge | E183: 0.0001 | F183: 250 | G183: =F183*E183 -> 0.025 | I183: 0.0001 | J183: =F183 -> 250 | K183: =J183*I183 -> 0.025 | M183: 0 | N183: 0
A184: Smart Meter Entity Charge | F184: 1 | G184: =F184*E184 -> 0 | J184: =F184 -> 1 | K184: =J184*I184 -> 0 | M184: 0
A185: Sub-Total B - Distribution (includes Sub-Total A) | G185: =SUM(G180:G184) -> 22.292592 | K185: =SUM(K180:K184) -> 21.412592 | M185: -0.88 | N185: -0.0394749969
A186: RTSR - Network | E186: 0.0069 | F186: =+E169*E167 -> 260.1 | G186: =F186*E186 -> 1.79469 | I186: 0.0068 | J186: =F186 -> 260.1 | K186: =J186*I186 -> 1.76868 | M186: -0.02601 | N186: -0.01449275362
A187: RTSR - Connection and/or Line and Transformation Connection | E187: 0.002 | F187: =+E169*E167 -> 260.1 | G187: =F187*E187 -> 0.5202 | I187: 0.0019 | J187: =F187 -> 260.1 | K187: =J187*I187 -> 0.49419 | M187: -0.02601 | N187: -0.05
A188: Sub-Total C - Delivery (including Sub-Total B) | G188: =SUM(G185:G187) -> 24.607482 | K188: =SUM(K185:K187) -> 23.675462 | M188: -0.93202 | N188: -0.03787547218
A189: Wholesale Market Service Charge (WMSC) | E189: 0.0044 | F189: =E169*E167 -> 260.1 | G189: =F189*E189 -> 1.14444 | I189: 0.0044 | J189: =E169*E167 -> 260.1 | K189: =J189*I189 -> 1.14444 | M189: 0 | N189: 0
A190: Rural and Remote Rate Protection (RRRP) | E190: 0.0013 | F190: =E169*E167 -> 260.1 | G190: 0.33813 | I190: 0.0013 | J190: =E169*E167 -> 260.1 | K190: 0.33813 | M190: 0 | N190: 0
A191: Standard Supply Service Charge | E191: 0.25 | F191: 1 | G191: 0.25 | I191: 0.25 | J191: 1 | K191: 0.25 | M191: 0 | N191: 0
A192: Debt Retirement Charge (DRC) | E192: 0.007 | F192: =E169 -> 250 | G192: 1.75 | I192: 0.007 | J192: =E169 -> 250 | K192: 1.75 | M192: 0 | N192: 0
A193: TOU - Off Peak | E193: 0.067 | F193: 160 | G193: 10.72 | I193: 0.067 | J193: =F193 -> 160 | K193: 10.72 | M193: 0 | N193: 0
A194: TOU - Mid Peak | E194: 0.104 | F194: 45 | G194: 4.68 | I194: 0.104 | J194: =F194 -> 45 | K194: 4.68 | M194: 0 | N194: 0
A195: TOU - On Peak | E195: 0.124 | F195: 45 | G195: 5.58 | I195: 0.124 | J195: =F195 -> 45 | K195: 5.58 | M195: 0 | N195: 0
A197: Total Bill on TOU (before Taxes) | G197: =SUM(G188:G192,G193:G195) -> 49.070052 | K197: =SUM(K188:K192,K193:K195) -> 48.138032 | M197: =K197-G197 -> -0.93202 | N197: =IF((G197)=0,"",(M197/G197)) -> -0.01899366237
A198: HST | E198: 0.13 | G198: =G197*E198 -> 6.37910676 | I198: 0.13 | K198: =K197*I198 -> 6.25794416 | M198: -0.1211626 | N198: -0.01899366237
A199: Total Bill (including HST) | G199: =G197+G198 -> 55.44915876 | K199: =K197+K198 -> 54.39597616 | M199: -1.0531826 | N199: -0.01899366237
A200: Ontario Clean Energy Benefit 1 | G200: =ROUND(-G199*10%,2) -> -5.54 | K200: =ROUND(-K199*10%,2) -> -5.44 | M200: 0.1 | N200: -0.01805054152
A201: Total Bill on TOU (including OCEB) | G201: =G199+G200 -> 49.90915876 | K201: =K199+K200 -> 48.95597616 | M201: -0.9531826 | N201: -0.01909835036
A204: Changed the sign of % impact to reflect increase in bill, not decrease
A205: Note: For distributors who have a majority of customers on Tiered pricing, please provide a separate bill impact for such customers.
A206: Rate Class | C206: STREET LIGHTING
A208: Loss Factor | E208: 1.0404
A210: Consumption | C210: kWh | E210: 50
A212: If Billed on a kW basis:
A213: Demand | C213: kW | E213: 0.14
E214: Current Board-Approved | I214: Proposed | M214: Impact
E215: Rate | F215: Volume | G215: Charge | I215: Rate | J215: Volume | K215: Charge | M215: $ Change | N215: % Change
E216: ($) | G216: ($) | I216: ($) | K216: ($)
A217: Monthly Service Charge | E217: 0.33 | F217: 1 | G217: =F217*E217 -> 0.33 | I217: 0.33 | J217: 1 | K217: =J217*I217 -> 0.33 | M217: =K217-G217 -> 0 | N217: =IF((G217)=0,"",(M217/G217)) -> 0
A218: Distribution Volumetric Rate | E218: 8.5718 | F218: 0.14 | G218: =F218*E218 -> 1.200052 | I218: 8.6918 | J218: =F218 -> 0.14 | K218: =J218*I218 -> 1.216852 | M218: 0.0168 | N218: 0.01399939336
A219: Fixed Rate Riders | E219: 0 | F219: 1 | G219: =F219*E219 -> 0 | I219: 0 | J219: 1 | K219: =J219*I219 -> 0 | M219: 0
A220: Volumetric Rate Riders | E220: 0.2268 | F220: 0.14 | G220: =F220*E220 -> 0.031752 | I220: -0.0208 | J220: =F220 -> 0.14 | K220: =J220*I220 -> -0.002912 | M220: -0.034664 | N220: -1.091710758
A221: Sub-Total A (excluding pass through) | G221: =SUM(G217:G220) -> 1.561804 | K221: =SUM(K217:K220) -> 1.54394 | M221: -0.017864 | N221: -0.01143805497
A222: Line Losses on Cost of Power | E222: =E234*0.64+E235*0.18+E236*0.18 -> 0.08392 | F222: =E210*(E208-1) -> 2.02 | G222: =E222*F222 -> 0.1695184 | I222: =I234*0.64+I235*0.18+I236*0.18 -> 0.08392 | J222: =F222 -> 2.02 | K222: =I222*J222 -> 0.1695184 | M222: 0 | N222: 0
A223: Total Deferral/Variance Account Rate Riders | E223: -0.823 | F223: 0.14 | G223: =F223*E223 -> -0.11522 | I223: =+'31. WNH Proposed Rates'!E270+'31. WNH Proposed Rates'!E271 -> -0.3047 | J223: =F223 -> 0.14 | K223: =J223*I223 -> -0.042658 | M223: 0.072562 | N223: =-IF((G223)=0,"",(M223/G223)) -> 0.6297691373
A224: Low Voltage Service Charge | E224: 0.0341 | F224: 0.14 | G224: =F224*E224 -> 0.004774 | I224: 0.0341 | J224: =F224 -> 0.14 | K224: =J224*I224 -> 0.004774 | M224: 0 | N224: 0
A225: Smart Meter Entity Charge | F225: 1 | G225: =F225*E225 -> 0 | J225: =F225 -> 1 | K225: =J225*I225 -> 0 | M225: 0
A226: Sub-Total B - Distribution (includes Sub-Total A) | G226: =SUM(G221:G225) -> 1.6208764 | K226: =SUM(K221:K225) -> 1.6755744 | M226: 0.054698 | N226: 0.03374594139
A227: RTSR - Network | E227: 2.1404 | F227: 0.14 | G227: =F227*E227 -> 0.299656 | I227: 2.094 | J227: =F227 -> 0.14 | K227: =J227*I227 -> 0.29316 | M227: -0.006496 | N227: -0.02167819099
A228: RTSR - Connection and/or Line and Transformation Connection | E228: 0.6039 | F228: 0.14 | G228: =F228*E228 -> 0.084546 | I228: 0.5711 | J228: =F228 -> 0.14 | K228: =J228*I228 -> 0.079954 | M228: -0.004592 | N228: -0.05431362808
A229: Sub-Total C - Delivery (including Sub-Total B) | G229: =SUM(G226:G228) -> 2.0050784 | K229: =SUM(K226:K228) -> 2.0486884 | M229: 0.04361 | N229: 0.02174977298
A230: Wholesale Market Service Charge (WMSC) | E230: 0.0044 | F230: =E210*E208 -> 52.02 | G230: =F230*E230 -> 0.228888 | I230: 0.0044 | J230: =E210*E208 -> 52.02 | K230: =J230*I230 -> 0.228888 | M230: 0 | N230: 0
A231: Rural and Remote Rate Protection (RRRP) | E231: 0.0013 | F231: =E210*E208 -> 52.02 | G231: 0.067626 | I231: 0.0013 | J231: =E210*E208 -> 52.02 | K231: 0.067626 | M231: 0 | N231: 0
A232: Standard Supply Service Charge | E232: 0.25 | F232: 1 | G232: 0.25 | I232: 0.25 | J232: 1 | K232: 0.25 | M232: 0 | N232: 0
A233: Debt Retirement Charge (DRC) | E233: 0.007 | F233: =E210 -> 50 | G233: 0.35 | I233: 0.007 | J233: =E210 -> 50 | K233: 0.35 | M233: 0 | N233: 0
... 45 more rows

Sheet 31. WNH Proposed Rates
A1: hidden column | B1: Waterloo North Hydro Inc. | F1: hidden column | Z1: 3
A2: for rate classes | B2: TARIFF OF RATES AND CHARGES | F2: for proposed
B3: Effective and Implementation Date May 01, 2015 | F3: labeliing
B5: This schedule supersedes and replaces all previously
B6: approved schedules of Rates, Charges and Loss Factors | L6: 1
B7: EB-2014-0119
B8: RESIDENTIAL SERVICE CLASSIFICATION
B10: This classification applies to an account taking electricity at 750 volts or less where the electricity is used exclusively in a separate metered living accommodation. Customers shall be residing in single-dwelling units that consist of a detached house or one unit of a semi-detached, duplex, triplex or quadruplex house, with a residential zoning. Separately metered dwellings within a town house complex or apartment building also qualify as residential customers. All customers are single-phase. Further servicing details are available in the distributor’s Conditions of Service. | L10: 6
B12: APPLICATION
B14: The application of these rates and charges shall be in accordance with the Licence of the Distributor and any Code or Order of the Board, and amendments thereto as approved by the Board, which may be applicable to the administration of this schedule. | L14: 3
B16: No rates and charges for the distribution of electricity and charges to meet the costs of any work or service done or furnished for the purpose of the distribution of electricity shall be made except as permitted by this schedule, unless required by the Distributor’s Licence or a Code or Order of the Board, and amendments thereto as approved by the Board, or as specified herein. | L16: 4
B18: Unless specifically noted, this schedule does not contain any charges for the electricity commodity, be it under the Regulated Price Plan, a contract with a retailer or the wholesale market price, as applicable. In addition, the charges in the MONTHLY RATES AND CHARGES - Regulatory Component of this schedule do not apply to a customer that is an embedded wholesale market participant. | L18: 4
B20: It should be noted that this schedule does not list any charges, assessments or credits that are required by law to be invoiced by a distributor and that are not subject to Board approval, such as the Debt Retirement Charge, the Global Adjustment, the Ontario Clean Energy Benefit and the HST. | L20: 3
B22: MONTHLY RATES AND CHARGES - Delivery Component
A24: RESIDENTIAL | B24: Service Charge | D24: $ | E24: 15.21 | K24: 1_P_MSC
A25: RESIDENTIAL | B25: Rate Rider for Recovery of Smart Meter Incremental Revenue Requirement - in effect until the effective date of the next cost of service-based rate order | D25: $ | E25: 2.11 | K25: 1_P_MSC_Rate_Rider_1
A26: RESIDENTIAL | B26: Rate Rider for Smart Metering Entity Charge - effective until October 31, 2018 | D26: $ | E26: 0.79 | K26: 1_P_SMEC
A27: RESIDENTIAL | B27: Distribution Volumetric Rate | D27: $/kWh | E27: 0.0193 | K27: 1_P_VC_1
A28: RESIDENTIAL | B28: Low Voltage Service Rate | D28: $/kWh | E28: 0.0001 | K28: 1_P_LVrate
A29: RESIDENTIAL | B29: Rate Rider for Disposition of Deferral/Variance Accounts (2015) - effective until April 30, 2016 | D29: $/kWh | E29: -0.0014 | K29: 1_P_VC_DEFVAR_kWh_1
A30: RESIDENTIAL | B30: Rate Rider for Disposition of Global Adjustment Account (2015) - effective until April 30, 2016 Applicable only for Non RPP Customers | D30: $/kWh | E30: 0.0006 | K30: 1_P_VC_GA_Rate_Rider_kWh_1
B31: Rate Rider for Tax Change (2015) - effective until April 29, 2016 | D31: $/kWh | E31: -0.0001
A32: RESIDENTIAL | B32: Retail Transmission Rate - Network Service Rate | D32: $/kWh | E32: 0.007435273416 | K32: 1_P_RTSR_Network
A33: RESIDENTIAL | B33: Retail Transmission Rate - Line and Transformation Connection Service Rate | D33: $/kWh | E33: 0.002080587864 | K33: 1_P_RTSR_Connection
A34: RESIDENTIAL
A35: RESIDENTIAL | B35: MONTHLY RATES AND CHARGES - Regulatory Component
A36: RESIDENTIAL
A37: RESIDENTIAL | B37: Wholesale Market Service Rate | D37: $/kWh | E37: 0.0044 | K37: 1_P_WMSR
A38: RESIDENTIAL | B38: Rural or Remote Electricity Rate Protection Charge (RRRP) | D38: $/kWh | E38: 0.0013 | K38: 1_P_RRPC
A39: RESIDENTIAL | B39: Standard Supply Service - Administrative Charge (if applicable) | D39: $ | E39: 0.25 | K39: 1_P_SSS
B40: Waterloo North Hydro Inc.
B41: TARIFF OF RATES AND CHARGES
B42: Effective and Implementation Date May 01, 2015
B44: This schedule supersedes and replaces all previously
B45: approved schedules of Rates, Charges and Loss Factors
B46: EB-2014-0119
B47: GENERAL SERVICE LESS THAN 50 KW SERVICE CLASSIFICATION
B49: This classification applies to a non residential account taking electricity at 750 volts or less whose average monthly maximum demand is less than, or is forecast to be less than, 50 kW. Further servicing details are available in the distributor’s Conditions of Service. | L49: 3
B51: APPLICATION
B53: The application of these rates and charges shall be in accordance with the Licence of the Distributor and any Code or Order of the Board, and amendments thereto as approved by the Board, which may be applicable to the administration of this schedule. | L53: 3
B55: No rates and charges for the distribution of electricity and charges to meet the costs of any work or service done or furnished for the purpose of the distribution of electricity shall be made except as permitted by this schedule, unless required by the Distributor’s Licence or a Code or Order of the Board, and amendments thereto as approved by the Board, or as specified herein. | L55: 4
B57: Unless specifically noted, this schedule does not contain any charges for the electricity commodity, be it under the Regulated Price Plan, a contract with a retailer or the wholesale market price, as applicable. In addition, the charges in the MONTHLY RATES AND CHARGES - Regulatory Component of this schedule do not apply to a customer that is an embedded wholesale market participant. | L57: 4
B59: It should be noted that this schedule does not list any charges, assessments or credits that are required by law to be invoiced by a distributor and that are not subject to Board approval, such as the Debt Retirement Charge, the Global Adjustment, the Ontario Clean Energy Benefit and the HST. | L59: 3
B61: MONTHLY RATES AND CHARGES - Delivery Component
A63: GENERAL SERVICE LESS THAN 50 KW | B63: Service Charge | D63: $ | E63: 31.99 | K63: 2_P_MSC
A64: GENERAL SERVICE LESS THAN 50 KW | B64: Rate Rider for Recovery of Smart Meter Incremental Revenue Requirement - in effect until the effective date of the next cost of service-based rate order | D64: $ | E64: 5.51 | K64: 2_P_MSC_Rate_Rider_1
A65: GENERAL SERVICE LESS THAN 50 KW | B65: Rate Rider for Smart Metering Entity Charge - effective until October 31, 2018 | D65: $ | E65: 0.79 | K65: 2_P_SMEC
A66: GENERAL SERVICE LESS THAN 50 KW | B66: Distribution Volumetric Rate | D66: $/kWh | E66: 0.0143 | K66: 2_P_VC_1
A67: GENERAL SERVICE LESS THAN 50 KW | B67: Low Voltage Service Rate | D67: $/kWh | E67: 0.0001 | K67: 2_P_LVrate
B68: Rate Rider for Tax Change (2015) - effective until April 29, 2016 | D68: $/kWh | E68: =+'12. STS - Tax Change RR'!M18 -> -4.801682838e-05
A69: GENERAL SERVICE LESS THAN 50 KW | B69: Rate Rider for Disposition of Deferral/Variance Accounts (2015) - effective until April 30, 2016 | D69: $/kWh | E69: -0.0014 | K69: 2_P_VC_DEFVAR_kWh_1
A70: GENERAL SERVICE LESS THAN 50 KW | B70: Rate Rider for Disposition of Global Adjustment Account (2015) - effective until April 30, 2016 Applicable only for Non RPP Customers | D70: $/kWh | E70: 0.0006 | K70: 2_P_VC_GA_Rate_Rider_kWh_1
A71: GENERAL SERVICE LESS THAN 50 KW | B71: Retail Transmission Rate - Network Service Rate | D71: $/kWh | E71: 0.006750445601 | K71: 2_P_RTSR_Network
A72: GENERAL SERVICE LESS THAN 50 KW | B72: Retail Transmission Rate - Line and Transformation Connection Service Rate | D72: $/kWh | E72: 0.001891443513 | K72: 2_P_RTSR_Connection
A73: GENERAL SERVICE LESS THAN 50 KW
A74: GENERAL SERVICE LESS THAN 50 KW | B74: MONTHLY RATES AND CHARGES - Regulatory Component
A75: GENERAL SERVICE LESS THAN 50 KW
A76: GENERAL SERVICE LESS THAN 50 KW | B76: Wholesale Market Service Rate | D76: $/kWh | E76: 0.0044 | K76: 2_P_WMSR
A77: GENERAL SERVICE LESS THAN 50 KW | B77: Rural or Remote Electricity Rate Protection Charge (RRRP) | D77: $/kWh | E77: 0.0013 | K77: 2_P_RRPC
A78: GENERAL SERVICE LESS THAN 50 KW | B78: Standard Supply Service - Administrative Charge (if applicable) | D78: $ | E78: 0.25 | K78: 2_P_SSS
B79: Waterloo North Hydro Inc.
B80: TARIFF OF RATES AND CHARGES
B81: Effective and Implementation Date May 01, 2015
B83: This schedule supersedes and replaces all previously
B84: approved schedules of Rates, Charges and Loss Factors
B85: EB-2014-0119
B86: GENERAL SERVICE 50 TO 4,999 KW SERVICE CLASSIFICATION
B88: This classification applies to a non residential account whose average monthly maximum demand used for billing purposes is equal to or greater than, or is forecast to be equal to or greater than, 50 kW but less than 5,000 kW. Further servicing details are available in the distributor’s Conditions of Service. Note that for the application of the Retail Transmission Rate – Network Service Rate and the Retail Transmission Rate – Line and Transformation Connection Service Rate the following sub-classifications apply: General Service 50 to 999 kW non-interval metered General Service 50 to 999 kW interval metered General Service 1,000 to 4,999 kW interval metered. | L88: 7
B90: APPLICATION
B92: The application of these rates and charges shall be in accordance with the Licence of the Distributor and any Code or Order of the Board, and amendments thereto as approved by the Board, which may be applicable to the administration of this schedule. | L92: 3
B94: No rates and charges for the distribution of electricity and charges to meet the costs of any work or service done or furnished for the purpose of the distribution of electricity shall be made except as permitted by this schedule, unless required by the Distributor’s Licence or a Code or Order of the Board, and amendments thereto as approved by the Board, or as specified herein. | L94: 4
B96: Unless specifically noted, this schedule does not contain any charges for the electricity commodity, be it under the Regulated Price Plan, a contract with a retailer or the wholesale market price, as applicable. In addition, the charges in the MONTHLY RATES AND CHARGES - Regulatory Component of this schedule do not apply to a customer that is an embedded wholesale market participant. | L96: 4
B98: It should be noted that this schedule does not list any charges, assessments or credits that are required by law to be invoiced by a distributor and that are not subject to Board approval, such as the Debt Retirement Charge, the Global Adjustment, the Ontario Clean Energy Benefit and the HST. | L98: 3
B100: MONTHLY RATES AND CHARGES - Delivery Component
A102: GENERAL SERVICE 50 TO 4,999 KW | B102: Service Charge | D102: $ | E102: 119.5 | K102: 3_P_MSC
A103: GENERAL SERVICE 50 TO 4,999 KW | B103: Distribution Volumetric Rate | D103: $/kW | E103: 4.7442 | K103: 3_P_VC_1
A104: GENERAL SERVICE 50 TO 4,999 KW | B104: Low Voltage Service Rate | D104: $/kW | E104: 0.0551 | K104: 3_P_LVrate
A105: GENERAL SERVICE 50 TO 4,999 KW | B105: Rate Rider for Tax Change (2015) - effective until April 29, 2016 | D105: $/kW | E105: -0.0099 | K105: 3_P_VC_Rate_Rider_kW_1
A106: GENERAL SERVICE 50 TO 4,999 KW | B106: Rate Rider for Disposition of Deferral/Variance Accounts (2015) - effective until April 30, 2016 | D106: $/kW | E106: =+'29. WNH RSVA Model'!F48 -> -0.6556874892 | K106: 3_P_VC_DEFVAR_kW_1
B107: Market Participant Rate Rider for Disposition of Deferral/Variance Accounts (2015) - effective until April 30, 2016 | D107: $/kW | E107: =+'29. WNH RSVA Model'!F47 -> -0.1878904387
A108: GENERAL SERVICE 50 TO 4,999 KW | B108: Rate Rider for Disposition of Global Adjustment Account (2015) - effective until April 30, 2016 Applicable only for Non RPP Customers | D108: $/kW | E108: 0.2675 | K108: 3_P_VC_GA_Rate_Rider_kW_1
A109: GENERAL SERVICE 50 TO 4,999 KW | B109: Retail Transmission Rate - Network Service Rate - (less than 1,000 kW) | D109: $/kW | E109: 2.776291961 | K109: 3_P_RTSR_Network
A110: GENERAL SERVICE 50 TO 4,999 KW | B110: Retail Transmission Rate - Network Service Rate - Interval Metered (less than 1,000 kW) | D110: $/kW | E110: 2.948770737 | K110: 3_P_RTSR_Network_Interval
A111: GENERAL SERVICE 50 TO 4,999 KW | B111: Retail Transmission Rate - Network Service Rate - Interval Metered (1,000 to 4,999 kW) | D111: $/kW | E111: 2.944955268 | K111: 3_P_RTSR_Network_Interval_GR1000kW
A112: GENERAL SERVICE 50 TO 4,999 KW | B112: Retail Transmission Rate - Line and Transformation Connection Service Rate - (less than 1,000 kW) | D112: $/kW | E112: 0.7390815527 | K112: 3_P_RTSR_Connection
A113: GENERAL SERVICE 50 TO 4,999 KW | B113: Retail Transmission Rate - Line and Transformation Connection Service Rate - Interval Metered (less than 1,000 kW) | D113: $/kW | E113: 0.9231190065 | K113: 3_P_RTSR_Connection_Interval
A114: GENERAL SERVICE 50 TO 4,999 KW | B114: Retail Transmission Rate - Line and Transformation Connection Service Rate - Interval Metered (1,000 to 4,999 kW) | D114: $/kW | E114: 0.9220787126 | K114: 3_P_RTSR_Connection_Interval_GR1000kW
A115: GENERAL SERVICE 50 TO 4,999 KW
A116: GENERAL SERVICE 50 TO 4,999 KW | B116: Waterloo North Hydro Inc.
A117: GENERAL SERVICE 50 TO 4,999 KW | B117: TARIFF OF RATES AND CHARGES
A118: GENERAL SERVICE 50 TO 4,999 KW | B118: Effective and Implementation Date May 01, 2015 | K118: 3_P_WMSR
A119: GENERAL SERVICE 50 TO 4,999 KW | K119: 3_P_RRPC
A120: GENERAL SERVICE 50 TO 4,999 KW | B120: This schedule supersedes and replaces all previously | K120: 3_P_SSS
B121: approved schedules of Rates, Charges and Loss Factors
B122: EB-2014-0119
B123: GENERAL SERVICE 50 TO 4,999 KW SERVICE CLASSIFICATION
B125: MONTHLY RATES AND CHARGES - Regulatory Component
B127: Wholesale Market Service Rate | D127: $/kWh | E127: 0.0044
B128: Rural or Remote Electricity Rate Protection Charge (RRRP) | D128: $/kWh | E128: 0.0013
B129: Standard Supply Service - Administrative Charge (if applicable) | D129: $ | E129: 0.25
B166: Waterloo North Hydro Inc.
B167: TARIFF OF RATES AND CHARGES
B168: Effective and Implementation Date May 01, 2015
B170: This schedule supersedes and replaces all previously
B171: approved schedules of Rates, Charges and Loss Factors
B172: EB-2014-0119
B173: LARGE USE SERVICE CLASSIFICATION
B175: This classification applies to an account whose average monthly maximum demand used for billing purposes is equal to or greater than, or is forecast to be equal to or greater than, 5,000 kW. Further servicing details are available in the distributor’s Conditions of Service. | L175: 3
B177: APPLICATION
B179: The application of these rates and charges shall be in accordance with the Licence of the Distributor and any Code or Order of the Board, and amendments thereto as approved by the Board, which may be applicable to the administration of this schedule. | L179: 3
B181: No rates and charges for the distribution of electricity and charges to meet the costs of any work or service done or furnished for the purpose of the distribution of electricity shall be made except as permitted by this schedule, unless required by the Distributor’s Licence or a Code or Order of the Board, and amendments thereto as approved by the Board, or as specified herein. | L181: 4
B183: Unless specifically noted, this schedule does not contain any charges for the electricity commodity, be it under the Regulated Price Plan, a contract with a retailer or the wholesale market price, as applicable. In addition, the charges in the MONTHLY RATES AND CHARGES - Regulatory Component of this schedule do not apply to a customer that is an embedded wholesale market participant. | L183: 4
B185: It should be noted that this schedule does not list any charges, assessments or credits that are required by law to be invoiced by a distributor and that are not subject to Board approval, such as the Debt Retirement Charge, the Global Adjustment, the Ontario Clean Energy Benefit and the HST. | L185: 3
B187: MONTHLY RATES AND CHARGES - Delivery Component
A189: LARGE USE | B189: Service Charge | D189: $ | E189: 6982.61 | K189: 4_P_MSC
A190: LARGE USE | B190: Distribution Volumetric Rate | D190: $/kW | E190: 3.3408 | K190: 4_P_VC_1
A191: LARGE USE | B191: Low Voltage Service Rate | D191: $/kW | E191: 0.0553 | K191: 4_P_LVrate
A192: LARGE USE | B192: Rate Rider for Tax Change (2015) - effective until April 29, 2016 | D192: $/kW | E192: -0.0072 | K192: 4_P_VC_Rate_Rider_kW_1
A193: LARGE USE | B193: Rate Rider for Disposition of Deferral/Variance Accounts (2015) - effective until April 30, 2016 | D193: $/kW | E193: -0.7522 | K193: 4_P_VC_DEFVAR_kW_1
A194: LARGE USE | B194: Retail Transmission Rate - Network Service Rate - Interval Metered | D194: $/kW | E194: 3.26486769 | K194: 4_P_RTSR_Network_Interval
A195: LARGE USE | B195: Retail Transmission Rate - Line and Transformation Connection Service Rate - Interval Metered | D195: $/kW | E195: 0.9263344605 | K195: 4_P_RTSR_Connection_Interval
A196: LARGE USE
A197: LARGE USE | B197: MONTHLY RATES AND CHARGES - Regulatory Component
A198: LARGE USE
A199: LARGE USE | B199: Wholesale Market Service Rate | D199: $/kWh | E199: 0.0044 | K199: 4_P_WMSR
A200: LARGE USE | B200: Rural or Remote Electricity Rate Protection Charge (RRRP) | D200: $/kWh | E200: 0.0013 | K200: 4_P_RRPC
A201: LARGE USE | B201: Standard Supply Service - Administrative Charge (if applicable) | D201: $ | E201: 0.25 | K201: 4_P_SSS
B206: Waterloo North Hydro Inc.
B207: TARIFF OF RATES AND CHARGES
B208: Effective and Implementation Date May 01, 2015
B210: This schedule supersedes and replaces all previously
B211: approved schedules of Rates, Charges and Loss Factors
B212: EB-2014-0119
B213: UNMETERED SCATTERED LOAD SERVICE CLASSIFICATION
B215: This classification applies to an account taking electricity at 750 volts or less whose average monthly maximum demand is less than, or is forecast to be less than, 50 kW and the consumption is unmetered. Such connections include cable TV power packs, bus shelters, telephone booths, traffic lights, railway crossings, etc. The level of the consumption will be agreed to by the distributor and the customer, based on detailed manufacturer information/ documentation with regard to electrical consumption of the unmetered load or periodic monitoring of actual consumption. Further servicing details are available in the distributor’s Conditions of Service. | L215: 7
B217: APPLICATION
B219: The application of these rates and charges shall be in accordance with the Licence of the Distributor and any Code or Order of the Board, and amendments thereto as approved by the Board, which may be applicable to the administration of this schedule. | L219: 3
B221: No rates and charges for the distribution of electricity and charges to meet the costs of any work or service done or furnished for the purpose of the distribution of electricity shall be made except as permitted by this schedule, unless required by the Distributor’s Licence or a Code or Order of the Board, and amendments thereto as approved by the Board, or as specified herein. | L221: 4
B223: Unless specifically noted, this schedule does not contain any charges for the electricity commodity, be it under the Regulated Price Plan, a contract with a retailer or the wholesale market price, as applicable. In addition, the charges in the MONTHLY RATES AND CHARGES - Regulatory Component of this schedule do not apply to a customer that is an embedded wholesale market participant. | L223: 4
B225: It should be noted that this schedule does not list any charges, assessments or credits that are required by law to be invoiced by a distributor and that are not subject to Board approval, such as the Debt Retirement Charge, the Global Adjustment, the Ontario Clean Energy Benefit and the HST. | L225: 3
B227: MONTHLY RATES AND CHARGES - Delivery Component
A229: UNMETERED SCATTERED LOAD | B229: Service Charge (per connection) | D229: $ | E229: 15.99 | K229: 5_P_MSC
A230: UNMETERED SCATTERED LOAD | B230: Distribution Volumetric Rate | D230: $/kWh | E230: 0.0199 | K230: 5_P_VC_1
A231: UNMETERED SCATTERED LOAD | B231: Low Voltage Service Rate | D231: $/kWh | E231: 0.0001 | K231: 5_P_LVrate
B232: Rate Rider for Tax Change (2015) - effective until April 29, 2016 | D232: $/kWh | E232: -0.0002
A233: UNMETERED SCATTERED LOAD | B233: Rate Rider for Disposition of Deferral/Variance Accounts (2015) - effective until April 30, 2016 | D233: $/kWh | E233: -0.0015 | K233: 5_P_VC_DEFVAR_kWh_1
A234: UNMETERED SCATTERED LOAD | B234: Rate Rider for Disposition of Global Adjustment Account (2015) - effective until April 30, 2016 Applicable only for Non RPP Customers | D234: $/kWh | E234: 0.0006 | K234: 5_P_VC_GA_Rate_Rider_kWh_1
A235: UNMETERED SCATTERED LOAD | B235: Retail Transmission Rate - Network Service Rate | D235: $/kWh | E235: 0.006750445601 | K235: 5_P_RTSR_Network
A236: UNMETERED SCATTERED LOAD | B236: Retail Transmission Rate - Line and Transformation Connection Service Rate | D236: $/kWh | E236: 0.001891443513 | K236: 5_P_RTSR_Connection
A237: UNMETERED SCATTERED LOAD
A238: UNMETERED SCATTERED LOAD | B238: MONTHLY RATES AND CHARGES - Regulatory Component
A239: UNMETERED SCATTERED LOAD
A240: UNMETERED SCATTERED LOAD | B240: Wholesale Market Service Rate | D240: $/kWh | E240: 0.0044 | K240: 5_P_WMSR
A241: UNMETERED SCATTERED LOAD | B241: Rural or Remote Electricity Rate Protection Charge (RRRP) | D241: $/kWh | E241: 0.0013 | K241: 5_P_RRPC
A242: UNMETERED SCATTERED LOAD | B242: Standard Supply Service - Administrative Charge (if applicable) | D242: $ | E242: 0.25 | K242: 5_P_SSS
B243: Waterloo North Hydro Inc.
B244: TARIFF OF RATES AND CHARGES
B245: Effective and Implementation Date May 01, 2015
B247: This schedule supersedes and replaces all previously
B248: approved schedules of Rates, Charges and Loss Factors
B249: EB-2014-0119
B250: STREET LIGHTING SERVICE CLASSIFICATION
B252: This classification applies to an account for roadway lighting with a Municipality, Regional Municipality, Ministry of Transportation and private roadway lighting, controlled by photo cells. The consumption for these customers will be based on the calculated connected load times the required lighting times established in the approved OEB street lighting load shape template. Further servicing details are available in the distributor’s Conditions of Service. | L252: 5
B254: APPLICATION
B256: The application of these rates and charges shall be in accordance with the Licence of the Distributor and any Code or Order of the Board, and amendments thereto as approved by the Board, which may be applicable to the administration of this schedule. | L256: 3
B258: No rates and charges for the distribution of electricity and charges to meet the costs of any work or service done or furnished for the purpose of the distribution of electricity shall be made except as permitted by this schedule, unless required by the Distributor’s Licence or a Code or Order of the Board, and amendments thereto as approved by the Board, or as specified herein. | L258: 4
B260: Unless specifically noted, this schedule does not contain any charges for the electricity commodity, be it under the Regulated Price Plan, a contract with a retailer or the wholesale market price, as applicable. In addition, the charges in the MONTHLY RATES AND CHARGES - Regulatory Component of this schedule do not apply to a customer that is an embedded wholesale market participant. | L260: 4
B262: It should be noted that this schedule does not list any charges, assessments or credits that are required by law to be invoiced by a distributor and that are not subject to Board approval, such as the Debt Retirement Charge, the Global Adjustment, the Ontario Clean Energy Benefit and the HST. | L262: 3
B264: MONTHLY RATES AND CHARGES - Delivery Component
A266: STREET LIGHTING | B266: Service Charge (per connection) | D266: $ | E266: 0.33 | K266: 6_P_MSC
A267: STREET LIGHTING | B267: Distribution Volumetric Rate | D267: $/kW | E267: 8.6918 | K267: 6_P_VC_1
A268: STREET LIGHTING | B268: Low Voltage Service Rate | D268: $/kW | E268: 0.0341 | K268: 6_P_LVrate
A269: STREET LIGHTING | B269: Rate Rider for Tax Change (2015) - effective until April 29, 2016 | D269: $/kW | E269: -0.0208 | K269: 6_P_VC_Rate_Rider_kW_1
A270: STREET LIGHTING | B270: Rate Rider for Disposition of Deferral/Variance Accounts (2015) - effective until April 30, 2016 | D270: $/kW | E270: -0.5186 | K270: 6_P_VC_DEFVAR_kW_1
A271: STREET LIGHTING | B271: Rate Rider for Disposition of Global Adjustment Account (2015) - effective until April 30, 2016 Applicable only for Non RPP Customers | D271: $/kW | E271: 0.2139 | K271: 6_P_VC_GA_Rate_Rider_kW_1
A272: STREET LIGHTING | B272: Retail Transmission Rate - Network Service Rate | D272: $/kW | E272: 2.094007792 | K272: 6_P_RTSR_Network
A273: STREET LIGHTING | B273: Retail Transmission Rate - Line and Transformation Connection Service Rate | D273: $/kW | E273: 0.5711213688 | K273: 6_P_RTSR_Connection
A274: STREET LIGHTING
A275: STREET LIGHTING | B275: MONTHLY RATES AND CHARGES - Regulatory Component
A276: STREET LIGHTING
A277: STREET LIGHTING | B277: Wholesale Market Service Rate | D277: $/kWh | E277: 0.0044 | K277: 6_P_WMSR
A278: STREET LIGHTING | B278: Rural or Remote Electricity Rate Protection Charge (RRRP) | D278: $/kWh | E278: 0.0013 | K278: 6_P_RRPC
A279: STREET LIGHTING | B279: Standard Supply Service - Administrative Charge (if applicable) | D279: $ | E279: 0.25 | K279: 6_P_SSS
B282: Waterloo North Hydro Inc.
B283: TARIFF OF RATES AND CHARGES
B284: Effective and Implementation Date May 01, 2015
B286: This schedule supersedes and replaces all previously
B287: approved schedules of Rates, Charges and Loss Factors
B288: EB-2014-0119
B289: MICROFIT SERVICE CLASSIFICATION
B291: This classification applies to an electricity generation facility contracted under the Ontario Power Authority’s microFIT program and connected to the distributor’s distribution system. Further servicing details are available in the distributor’s Conditions of Service. | L291: 3
B293: APPLICATION
B295: The application of these rates and charges shall be in accordance with the Licence of the Distributor and any Code or Order of the Board, and amendments thereto as approved by the Board, which may be applicable to the administration of this schedule. | L295: 3
B297: No rates and charges for the distribution of electricity and charges to meet the costs of any work or service done or furnished for the purpose of the distribution of electricity shall be made except as permitted by this schedule, unless required by the Distributor’s Licence or a Code or Order of the Board, and amendments thereto as approved by the Board, or as specified herein. | L297: 4
B299: Unless specifically noted, this schedule does not contain any charges for the electricity commodity, be it under the Regulated Price Plan, a contract with a retailer or the wholesale market price, as applicable. | L299: 2
B301: It should be noted that this schedule does not list any charges, assessments or credits that are required by law to be invoiced by a distributor and that are not subject to Board approval, such as the Debt Retirement Charge, the Global Adjustment, the Ontario Clean Energy Benefit and the HST. | L301: 3
B303: MONTHLY RATES AND CHARGES - Delivery Component
A305: MICROFIT | B305: Service Charge | D305: $ | E305: 5.4 | K305: 7_P_MSC
A323: MICROFIT | B323: Waterloo North Hydro Inc.
B324: TARIFF OF RATES AND CHARGES
... 81 more rows

Sheet 32. WNH Bill Impacts Multiple
A1: Rate Class | C1: RESIDENTIAL
A3: Loss Factor | E3: 1.0404
A5: Consumption | C5: kWh | E5: 100
A7: If Billed on a kW basis:
A8: Demand | C8: kW
E9: Current Board-Approved | I9: Proposed | M9: Impact
E10: Rate | F10: Volume | G10: Charge | I10: Rate | J10: Volume | K10: Charge | M10: $ Change | N10: % Change
E11: ($) | G11: ($) | I11: ($) | K11: ($)
A12: Monthly Service Charge | E12: =+'30. WNH Bill Impacts Typical'!$E$12 -> 15 | F12: 1 | G12: =+E12*F12 -> 15 | I12: =+'30. WNH Bill Impacts Typical'!$I$12 -> 15.21 | J12: 1 | K12: =J12*I12 -> 15.21 | M12: =K12-G12 -> 0.21 | N12: =IF((G12)=0,"",(M12/G12)) -> 0.014
A13: Distribution Volumetric Rate | E13: =+'30. WNH Bill Impacts Typical'!$E$13 -> 0.019 | F13: =+$E$5 -> 100 | G13: =+E13*F13 -> 1.9 | I13: =+'30. WNH Bill Impacts Typical'!$I$13 -> 0.0193 | J13: =F13 -> 100 | K13: =J13*I13 -> 1.93 | M13: 0.03 | N13: 0.01578947368
A14: Fixed Rate Riders | E14: =+'30. WNH Bill Impacts Typical'!$E$14 -> 2.11 | F14: 1 | G14: 2.11 | I14: =+'30. WNH Bill Impacts Typical'!$I$14 -> 2.11 | J14: 1 | K14: =J14*I14 -> 2.11 | M14: 0 | N14: 0
A15: Volumetric Rate Riders | E15: =+'30. WNH Bill Impacts Typical'!$E$15 -> 0.0001 | F15: =+$E$5 -> 100 | G15: 0.01 | I15: =+'30. WNH Bill Impacts Typical'!$I$15 -> -0.0001 | J15: =F15 -> 100 | K15: =J15*I15 -> -0.01 | M15: -0.02 | N15: -2
A16: Sub-Total A (excluding pass through) | G16: =SUM(G12:G15) -> 19.02 | K16: =SUM(K12:K15) -> 19.24 | M16: 0.22 | N16: 0.01156677182
A17: Line Losses on Cost of Power | E17: =+'30. WNH Bill Impacts Typical'!$E$17 -> 0.08392 | F17: =+$E$5*($E$3-1) -> 4.04 | G17: =E17*F17 -> 0.3390368 | I17: =+'30. WNH Bill Impacts Typical'!$I$17 -> 0.08392 | J17: =F17 -> 4.04 | K17: =I17*J17 -> 0.3390368 | M17: 0 | N17: 0
A18: Total Deferral/Variance Account Rate Riders | E18: =+'30. WNH Bill Impacts Typical'!$E$18 -> -0.0016 | F18: =+$E$5 -> 100 | G18: =F18*E18 -> -0.16 | I18: =+'30. WNH Bill Impacts Typical'!$I$18 -> -0.0014 | J18: =F18 -> 100 | K18: =J18*I18 -> -0.14 | M18: 0.02 | N18: =-IF((G18)=0,"",(M18/G18)) -> 0.125
A19: Low Voltage Service Charge | E19: =+'30. WNH Bill Impacts Typical'!$E$19 -> 0.0001 | F19: =+$E$5 -> 100 | G19: =F19*E19 -> 0.01 | I19: =+'30. WNH Bill Impacts Typical'!$I$19 -> 0.0001 | J19: =F19 -> 100 | K19: =J19*I19 -> 0.01 | M19: 0 | N19: 0
A20: Smart Meter Entity Charge | E20: =+'30. WNH Bill Impacts Typical'!$E$20 -> 0.79 | F20: 1 | G20: =F20*E20 -> 0.79 | I20: =+'30. WNH Bill Impacts Typical'!$I$20 -> 0.79 | J20: =F20 -> 1 | K20: =J20*I20 -> 0.79 | M20: 0 | N20: 0
A21: Sub-Total B - Distribution (includes Sub-Total A) | G21: =SUM(G16:G20) -> 19.9990368 | K21: =SUM(K16:K20) -> 20.2390368 | M21: 0.24 | N21: 0.01200057795
A22: RTSR - Network | E22: =+'30. WNH Bill Impacts Typical'!$E$22 -> 0.0076 | F22: =+$E$5*$E$3 -> 104.04 | G22: =F22*E22 -> 0.790704 | I22: =+'30. WNH Bill Impacts Typical'!$I$22 -> 0.0074 | J22: =F22 -> 104.04 | K22: =J22*I22 -> 0.769896 | M22: -0.020808 | N22: -0.02631578947
A23: RTSR - Connection and/or Line and Transformation Connection | E23: =+'30. WNH Bill Impacts Typical'!$E$23 -> 0.0022 | F23: =+$E$5*$E$3 -> 104.04 | G23: =F23*E23 -> 0.228888 | I23: =+'30. WNH Bill Impacts Typical'!$I$23 -> 0.0021 | J23: =F23 -> 104.04 | K23: =J23*I23 -> 0.218484 | M23: -0.010404 | N23: -0.04545454545
A24: Sub-Total C - Delivery (including Sub-Total B) | G24: =SUM(G21:G23) -> 21.0186288 | K24: =SUM(K21:K23) -> 21.2274168 | M24: 0.208788 | N24: 0.009933473872
A25: Wholesale Market Service Charge (WMSC) | E25: =+'30. WNH Bill Impacts Typical'!$E$25 -> 0.0044 | F25: =$E$5*$E$3 -> 104.04 | G25: =F25*E25 -> 0.457776 | I25: =+'30. WNH Bill Impacts Typical'!$I$25 -> 0.0044 | J25: =+F25 -> 104.04 | K25: =J25*I25 -> 0.457776 | M25: 0 | N25: 0
A26: Rural and Remote Rate Protection (RRRP) | E26: =+'30. WNH Bill Impacts Typical'!$E$26 -> 0.0013 | F26: =$E$5*$E$3 -> 104.04 | G26: 0.135252 | I26: =+'30. WNH Bill Impacts Typical'!$I$26 -> 0.0013 | J26: =+F26 -> 104.04 | K26: 0.135252 | M26: 0 | N26: 0
A27: Standard Supply Service Charge | E27: =+'30. WNH Bill Impacts Typical'!$E$27 -> 0.25 | F27: 1 | G27: 0.25 | I27: =+'30. WNH Bill Impacts Typical'!$I$27 -> 0.25 | J27: 1 | K27: 0.25 | M27: 0 | N27: 0
A28: Debt Retirement Charge (DRC) | E28: =+'30. WNH Bill Impacts Typical'!$E$28 -> 0.007 | F28: =$E$5 -> 100 | G28: 0.7 | I28: =+'30. WNH Bill Impacts Typical'!$I$28 -> 0.007 | J28: =+F28 -> 100 | K28: 0.7 | M28: 0 | N28: 0
A29: TOU - Off Peak | E29: =+'30. WNH Bill Impacts Typical'!$E$29 -> 0.067 | F29: =+$E$5*0.64 -> 64 | G29: 4.288 | I29: =+'30. WNH Bill Impacts Typical'!$I$29 -> 0.067 | J29: =F29 -> 64 | K29: 4.288 | M29: 0 | N29: 0
A30: TOU - Mid Peak | E30: =+'30. WNH Bill Impacts Typical'!$E$30 -> 0.104 | F30: =+$E$5*0.18 -> 18 | G30: 1.872 | I30: =+'30. WNH Bill Impacts Typical'!$I$30 -> 0.104 | J30: =F30 -> 18 | K30: 1.872 | M30: 0 | N30: 0
A31: TOU - On Peak | E31: =+'30. WNH Bill Impacts Typical'!$E$31 -> 0.124 | F31: =+$E$5*0.18 -> 18 | G31: 2.232 | I31: =+'30. WNH Bill Impacts Typical'!$I$31 -> 0.124 | J31: =F31 -> 18 | K31: 2.232 | M31: 0 | N31: 0
A33: Total Bill on TOU (before Taxes) | G33: =SUM(G24:G28,G29:G31) -> 30.9536568 | K33: =SUM(K24:K28,K29:K31) -> 31.1624448 | M33: =K33-G33 -> 0.208788 | N33: =IF((G33)=0,"",(M33/G33)) -> 0.006745180427
A34: HST | E34: =+'30. WNH Bill Impacts Typical'!$E$34 -> 0.13 | G34: =G33*E34 -> 4.023975384 | I34: =+'30. WNH Bill Impacts Typical'!$I$34 -> 0.13 | K34: =K33*I34 -> 4.051117824 | M34: 0.02714244 | N34: 0.006745180427
A35: Total Bill (including HST) | G35: =G33+G34 -> 34.97763218 | K35: =K33+K34 -> 35.21356262 | M35: 0.23593044 | N35: 0.006745180427
A36: Ontario Clean Energy Benefit 1 | G36: =ROUND(-G35*10%,2) -> -3.5 | K36: =ROUND(-K35*10%,2) -> -3.52 | M36: -0.02 | N36: 0.005714285714
A37: Total Bill on TOU (including OCEB) | G37: =G35+G36 -> 31.47763218 | K37: =K35+K36 -> 31.69356262 | M37: 0.21593044 | N37: 0.006859805678
A40: Changed the sign of % impact to reflect increase in bill, not decrease
A41: Note: For distributors who have a majority of customers on Tiered pricing, please provide a separate bill impact for such customers.
A42: Rate Class | C42: RESIDENTIAL
A44: Loss Factor | E44: 1.0404
A46: Consumption | C46: kWh | E46: 250
A48: If Billed on a kW basis:
A49: Demand | C49: kW
E50: Current Board-Approved | I50: Proposed | M50: Impact
E51: Rate | F51: Volume | G51: Charge | I51: Rate | J51: Volume | K51: Charge | M51: $ Change | N51: % Change
E52: ($) | G52: ($) | I52: ($) | K52: ($)
A53: Monthly Service Charge | E53: =+'30. WNH Bill Impacts Typical'!$E$12 -> 15 | F53: 1 | G53: =+E53*F53 -> 15 | I53: =+'30. WNH Bill Impacts Typical'!$I$12 -> 15.21 | J53: 1 | K53: =J53*I53 -> 15.21 | M53: =K53-G53 -> 0.21 | N53: =IF((G53)=0,"",(M53/G53)) -> 0.014
A54: Distribution Volumetric Rate | E54: =+'30. WNH Bill Impacts Typical'!$E$13 -> 0.019 | F54: =+$E$46 -> 250 | G54: =+E54*F54 -> 4.75 | I54: =+'30. WNH Bill Impacts Typical'!$I$13 -> 0.0193 | J54: =F54 -> 250 | K54: =J54*I54 -> 4.825 | M54: 0.075 | N54: 0.01578947368
A55: Fixed Rate Riders | E55: =+'30. WNH Bill Impacts Typical'!$E$14 -> 2.11 | F55: 1 | G55: 2.11 | I55: =+'30. WNH Bill Impacts Typical'!$I$14 -> 2.11 | J55: 1 | K55: =J55*I55 -> 2.11 | M55: 0 | N55: 0
A56: Volumetric Rate Riders | E56: =+'30. WNH Bill Impacts Typical'!$E$15 -> 0.0001 | F56: =+$E$46 -> 250 | G56: 0.025 | I56: =+'30. WNH Bill Impacts Typical'!$I$15 -> -0.0001 | J56: =F56 -> 250 | K56: =J56*I56 -> -0.025 | M56: -0.05 | N56: -2
A57: Sub-Total A (excluding pass through) | G57: =SUM(G53:G56) -> 21.885 | K57: =SUM(K53:K56) -> 22.12 | M57: 0.235 | N57: 0.01073794837
A58: Line Losses on Cost of Power | E58: =+'30. WNH Bill Impacts Typical'!$E$17 -> 0.08392 | F58: =+$E$46*($E$44-1) -> 10.1 | G58: =E58*F58 -> 0.847592 | I58: =+'30. WNH Bill Impacts Typical'!$I$17 -> 0.08392 | J58: =F58 -> 10.1 | K58: =I58*J58 -> 0.847592 | M58: 0 | N58: 0
A59: Total Deferral/Variance Account Rate Riders | E59: =+'30. WNH Bill Impacts Typical'!$E$18 -> -0.0016 | F59: =+$E$46 -> 250 | G59: =F59*E59 -> -0.4 | I59: =+'30. WNH Bill Impacts Typical'!$I$18 -> -0.0014 | J59: =F59 -> 250 | K59: =J59*I59 -> -0.35 | M59: 0.05 | N59: =-IF((G59)=0,"",(M59/G59)) -> 0.125
A60: Low Voltage Service Charge | E60: =+'30. WNH Bill Impacts Typical'!$E$19 -> 0.0001 | F60: =+$E$46 -> 250 | G60: =F60*E60 -> 0.025 | I60: =+'30. WNH Bill Impacts Typical'!$I$19 -> 0.0001 | J60: =F60 -> 250 | K60: =J60*I60 -> 0.025 | M60: 0 | N60: =IF((G60)=0,"",(M60/G60)) -> 0
A61: Smart Meter Entity Charge | E61: =+'30. WNH Bill Impacts Typical'!$E$20 -> 0.79 | F61: 1 | G61: =F61*E61 -> 0.79 | I61: =+'30. WNH Bill Impacts Typical'!$I$20 -> 0.79 | J61: =F61 -> 1 | K61: =J61*I61 -> 0.79 | M61: 0 | N61: 0
A62: Sub-Total B - Distribution (includes Sub-Total A) | G62: =SUM(G57:G61) -> 23.147592 | K62: =SUM(K57:K61) -> 23.432592 | M62: 0.285 | N62: 0.01231229581
A63: RTSR - Network | E63: =+'30. WNH Bill Impacts Typical'!$E$22 -> 0.0076 | F63: =+$E$46*$E$44 -> 260.1 | G63: =F63*E63 -> 1.97676 | I63: =+'30. WNH Bill Impacts Typical'!$I$22 -> 0.0074 | J63: =F63 -> 260.1 | K63: =J63*I63 -> 1.92474 | M63: -0.05202 | N63: -0.02631578947
A64: RTSR - Connection and/or Line and Transformation Connection | E64: =+'30. WNH Bill Impacts Typical'!$E$23 -> 0.0022 | F64: =+$E$46*$E$44 -> 260.1 | G64: =F64*E64 -> 0.57222 | I64: =+'30. WNH Bill Impacts Typical'!$I$23 -> 0.0021 | J64: =F64 -> 260.1 | K64: =J64*I64 -> 0.54621 | M64: -0.02601 | N64: -0.04545454545
A65: Sub-Total C - Delivery (including Sub-Total B) | G65: =SUM(G62:G64) -> 25.696572 | K65: =SUM(K62:K64) -> 25.903542 | M65: 0.20697 | N65: 0.008054381728
A66: Wholesale Market Service Charge (WMSC) | E66: =+'30. WNH Bill Impacts Typical'!$E$25 -> 0.0044 | F66: =$E$46*$E$44 -> 260.1 | G66: =F66*E66 -> 1.14444 | I66: =+'30. WNH Bill Impacts Typical'!$I$25 -> 0.0044 | J66: =+F66 -> 260.1 | K66: =J66*I66 -> 1.14444 | M66: 0 | N66: 0
A67: Rural and Remote Rate Protection (RRRP) | E67: =+'30. WNH Bill Impacts Typical'!$E$26 -> 0.0013 | F67: =$E$46*$E$44 -> 260.1 | G67: 0.33813 | I67: =+'30. WNH Bill Impacts Typical'!$I$26 -> 0.0013 | J67: =+F67 -> 260.1 | K67: 0.33813 | M67: 0 | N67: 0
A68: Standard Supply Service Charge | E68: =+'30. WNH Bill Impacts Typical'!$E$27 -> 0.25 | F68: 1 | G68: 0.25 | I68: =+'30. WNH Bill Impacts Typical'!$I$27 -> 0.25 | J68: 1 | K68: 0.25 | M68: 0 | N68: 0
A69: Debt Retirement Charge (DRC) | E69: =+'30. WNH Bill Impacts Typical'!$E$28 -> 0.007 | F69: =$E$46 -> 250 | G69: 1.75 | I69: =+'30. WNH Bill Impacts Typical'!$I$28 -> 0.007 | J69: =+F69 -> 250 | K69: 1.75 | M69: 0 | N69: 0
A70: TOU - Off Peak | E70: =+'30. WNH Bill Impacts Typical'!$E$29 -> 0.067 | F70: =+$E$46*0.64 -> 160 | G70: 10.72 | I70: =+'30. WNH Bill Impacts Typical'!$I$29 -> 0.067 | J70: =F70 -> 160 | K70: 10.72 | M70: 0 | N70: 0
A71: TOU - Mid Peak | E71: =+'30. WNH Bill Impacts Typical'!$E$30 -> 0.104 | F71: =+$E$46*0.18 -> 45 | G71: 4.68 | I71: =+'30. WNH Bill Impacts Typical'!$I$30 -> 0.104 | J71: =F71 -> 45 | K71: 4.68 | M71: 0 | N71: 0
A72: TOU - On Peak | E72: =+'30. WNH Bill Impacts Typical'!$E$31 -> 0.124 | F72: =+$E$46*0.18 -> 45 | G72: 5.58 | I72: =+'30. WNH Bill Impacts Typical'!$I$31 -> 0.124 | J72: =F72 -> 45 | K72: 5.58 | M72: 0 | N72: 0
A74: Total Bill on TOU (before Taxes) | G74: =SUM(G65:G69,G70:G72) -> 50.159142 | K74: =SUM(K65:K69,K70:K72) -> 50.366112 | M74: =K74-G74 -> 0.20697 | N74: =IF((G74)=0,"",(M74/G74)) -> 0.004126266753
A75: HST | E75: =+'30. WNH Bill Impacts Typical'!$E$34 -> 0.13 | G75: =G74*E75 -> 6.52068846 | I75: =+'30. WNH Bill Impacts Typical'!$I$34 -> 0.13 | K75: =K74*I75 -> 6.54759456 | M75: =K75-G75 -> 0.0269061 | N75: =IF((G75)=0,"",(M75/G75)) -> 0.004126266753
A76: Total Bill (including HST) | G76: =G74+G75 -> 56.67983046 | K76: =K74+K75 -> 56.91370656 | M76: 0.2338761 | N76: 0.004126266753
A77: Ontario Clean Energy Benefit 1 | G77: =ROUND(-G76*10%,2) -> -5.67 | K77: =ROUND(-K76*10%,2) -> -5.69 | M77: -0.02 | N77: 0.003527336861
A78: Total Bill on TOU (including OCEB) | G78: =G76+G77 -> 51.00983046 | K78: =K76+K77 -> 51.22370656 | M78: 0.2138761 | N78: 0.004192840832
A81: Changed the sign of % impact to reflect increase in bill, not decrease
A82: Note: For distributors who have a majority of customers on Tiered pricing, please provide a separate bill impact for such customers.
A83: Rate Class | C83: RESIDENTIAL
A85: Loss Factor | E85: 1.0404
A87: Consumption | C87: kWh | E87: 500
A89: If Billed on a kW basis:
A90: Demand | C90: kW
E91: Current Board-Approved | I91: Proposed | M91: Impact
E92: Rate | F92: Volume | G92: Charge | I92: Rate | J92: Volume | K92: Charge | M92: $ Change | N92: % Change
E93: ($) | G93: ($) | I93: ($) | K93: ($)
A94: Monthly Service Charge | E94: =+'30. WNH Bill Impacts Typical'!$E$12 -> 15 | F94: 1 | G94: =+E94*F94 -> 15 | I94: =+'30. WNH Bill Impacts Typical'!$I$12 -> 15.21 | J94: 1 | K94: =J94*I94 -> 15.21 | M94: =K94-G94 -> 0.21 | N94: =IF((G94)=0,"",(M94/G94)) -> 0.014
A95: Distribution Volumetric Rate | E95: =+'30. WNH Bill Impacts Typical'!$E$13 -> 0.019 | F95: =+$E$87 -> 500 | G95: =+E95*F95 -> 9.5 | I95: =+'30. WNH Bill Impacts Typical'!$I$13 -> 0.0193 | J95: =F95 -> 500 | K95: =J95*I95 -> 9.65 | M95: 0.15 | N95: 0.01578947368
A96: Fixed Rate Riders | E96: =+'30. WNH Bill Impacts Typical'!$E$14 -> 2.11 | F96: 1 | G96: 2.11 | I96: =+'30. WNH Bill Impacts Typical'!$I$14 -> 2.11 | J96: 1 | K96: =J96*I96 -> 2.11 | M96: 0 | N96: 0
A97: Volumetric Rate Riders | E97: =+'30. WNH Bill Impacts Typical'!$E$15 -> 0.0001 | F97: =+$E$87 -> 500 | G97: 0.05 | I97: =+'30. WNH Bill Impacts Typical'!$I$15 -> -0.0001 | J97: =F97 -> 500 | K97: =J97*I97 -> -0.05 | M97: -0.1 | N97: -2
A98: Sub-Total A (excluding pass through) | G98: =SUM(G94:G97) -> 26.66 | K98: =SUM(K94:K97) -> 26.92 | M98: 0.26 | N98: 0.00975243811
A99: Line Losses on Cost of Power | E99: =+'30. WNH Bill Impacts Typical'!$E$17 -> 0.08392 | F99: =+$E$87*($E$85-1) -> 20.2 | G99: =E99*F99 -> 1.695184 | I99: =+'30. WNH Bill Impacts Typical'!$I$17 -> 0.08392 | J99: =F99 -> 20.2 | K99: =I99*J99 -> 1.695184 | M99: 0 | N99: 0
A100: Total Deferral/Variance Account Rate Riders | E100: =+'30. WNH Bill Impacts Typical'!$E$18 -> -0.0016 | F100: =+$E$87 -> 500 | G100: =F100*E100 -> -0.8 | I100: =+'30. WNH Bill Impacts Typical'!$I$18 -> -0.0014 | J100: =F100 -> 500 | K100: =J100*I100 -> -0.7 | M100: 0.1 | N100: =-IF((G100)=0,"",(M100/G100)) -> 0.125
A101: Low Voltage Service Charge | E101: =+'30. WNH Bill Impacts Typical'!$E$19 -> 0.0001 | F101: =+$E$87 -> 500 | G101: =F101*E101 -> 0.05 | I101: =+'30. WNH Bill Impacts Typical'!$I$19 -> 0.0001 | J101: =F101 -> 500 | K101: =J101*I101 -> 0.05 | M101: 0 | N101: =IF((G101)=0,"",(M101/G101)) -> 0
A102: Smart Meter Entity Charge | E102: =+'30. WNH Bill Impacts Typical'!$E$20 -> 0.79 | F102: 1 | G102: =F102*E102 -> 0.79 | I102: =+'30. WNH Bill Impacts Typical'!$I$20 -> 0.79 | J102: =F102 -> 1 | K102: =J102*I102 -> 0.79 | M102: 0 | N102: 0
A103: Sub-Total B - Distribution (includes Sub-Total A) | G103: =SUM(G98:G102) -> 28.395184 | K103: =SUM(K98:K102) -> 28.755184 | M103: 0.36 | N103: 0.01267820628
A104: RTSR - Network | E104: =+'30. WNH Bill Impacts Typical'!$E$22 -> 0.0076 | F104: =+$E$87*$E$85 -> 520.2 | G104: =F104*E104 -> 3.95352 | I104: =+'30. WNH Bill Impacts Typical'!$I$22 -> 0.0074 | J104: =F104 -> 520.2 | K104: =J104*I104 -> 3.84948 | M104: -0.10404 | N104: -0.02631578947
A105: RTSR - Connection and/or Line and Transformation Connection | E105: =+'30. WNH Bill Impacts Typical'!$E$23 -> 0.0022 | F105: =+$E$87*$E$85 -> 520.2 | G105: =F105*E105 -> 1.14444 | I105: =+'30. WNH Bill Impacts Typical'!$I$23 -> 0.0021 | J105: =F105 -> 520.2 | K105: =J105*I105 -> 1.09242 | M105: -0.05202 | N105: -0.04545454545
A106: Sub-Total C - Delivery (including Sub-Total B) | G106: =SUM(G103:G105) -> 33.493144 | K106: =SUM(K103:K105) -> 33.697084 | M106: 0.20394 | N106: 0.00608900735
A107: Wholesale Market Service Charge (WMSC) | E107: =+'30. WNH Bill Impacts Typical'!$E$25 -> 0.0044 | F107: =$E$87*$E$85 -> 520.2 | G107: =F107*E107 -> 2.28888 | I107: =+'30. WNH Bill Impacts Typical'!$I$25 -> 0.0044 | J107: =+F107 -> 520.2 | K107: =J107*I107 -> 2.28888 | M107: 0 | N107: 0
A108: Rural and Remote Rate Protection (RRRP) | E108: =+'30. WNH Bill Impacts Typical'!$E$26 -> 0.0013 | F108: =$E$87*$E$85 -> 520.2 | G108: 0.67626 | I108: =+'30. WNH Bill Impacts Typical'!$I$26 -> 0.0013 | J108: =+F108 -> 520.2 | K108: 0.67626 | M108: 0 | N108: 0
A109: Standard Supply Service Charge | E109: =+'30. WNH Bill Impacts Typical'!$E$27 -> 0.25 | F109: 1 | G109: 0.25 | I109: =+'30. WNH Bill Impacts Typical'!$I$27 -> 0.25 | J109: 1 | K109: 0.25 | M109: 0 | N109: 0
A110: Debt Retirement Charge (DRC) | E110: =+'30. WNH Bill Impacts Typical'!$E$28 -> 0.007 | F110: =$E$87 -> 500 | G110: 3.5 | I110: =+'30. WNH Bill Impacts Typical'!$I$28 -> 0.007 | J110: =+F110 -> 500 | K110: 3.5 | M110: 0 | N110: 0
A111: TOU - Off Peak | E111: =+'30. WNH Bill Impacts Typical'!$E$29 -> 0.067 | F111: =+$E$87*0.64 -> 320 | G111: 21.44 | I111: =+'30. WNH Bill Impacts Typical'!$I$29 -> 0.067 | J111: =F111 -> 320 | K111: 21.44 | M111: 0 | N111: 0
A112: TOU - Mid Peak | E112: =+'30. WNH Bill Impacts Typical'!$E$30 -> 0.104 | F112: =+$E$87*0.18 -> 90 | G112: 9.36 | I112: =+'30. WNH Bill Impacts Typical'!$I$30 -> 0.104 | J112: =F112 -> 90 | K112: 9.36 | M112: 0 | N112: 0
A113: TOU - On Peak | E113: =+'30. WNH Bill Impacts Typical'!$E$31 -> 0.124 | F113: =+$E$87*0.18 -> 90 | G113: 11.16 | I113: =+'30. WNH Bill Impacts Typical'!$I$31 -> 0.124 | J113: =F113 -> 90 | K113: 11.16 | M113: 0 | N113: 0
A115: Total Bill on TOU (before Taxes) | G115: =SUM(G106:G110,G111:G113) -> 82.168284 | K115: =SUM(K106:K110,K111:K113) -> 82.372224 | M115: =K115-G115 -> 0.20394 | N115: =IF((G115)=0,"",(M115/G115)) -> 0.002481979543
A116: HST | E116: =+'30. WNH Bill Impacts Typical'!$E$34 -> 0.13 | G116: =G115*E116 -> 10.68187692 | I116: =+'30. WNH Bill Impacts Typical'!$I$34 -> 0.13 | K116: =K115*I116 -> 10.70838912 | M116: =K116-G116 -> 0.0265122 | N116: =IF((G116)=0,"",(M116/G116)) -> 0.002481979543
A117: Total Bill (including HST) | G117: =G115+G116 -> 92.85016092 | K117: =K115+K116 -> 93.08061312 | M117: 0.2304522 | N117: 0.002481979543
A118: Ontario Clean Energy Benefit 1 | G118: =ROUND(-G117*10%,2) -> -9.29 | K118: =ROUND(-K117*10%,2) -> -9.31 | M118: -0.02 | N118: 0.00215285253
A119: Total Bill on TOU (including OCEB) | G119: =G117+G118 -> 83.56016092 | K119: =K117+K118 -> 83.77061312 | M119: 0.2104522 | N119: 0.002518571023
A122: Changed the sign of % impact to reflect increase in bill, not decrease
A123: Note: For distributors who have a majority of customers on Tiered pricing, please provide a separate bill impact for such customers.
A124: Rate Class | C124: RESIDENTIAL
A126: Loss Factor | E126: 1.0404
A128: Consumption | C128: kWh | E128: 800
A130: If Billed on a kW basis:
A131: Demand | C131: kW
E132: Current Board-Approved | I132: Proposed | M132: Impact
E133: Rate | F133: Volume | G133: Charge | I133: Rate | J133: Volume | K133: Charge | M133: $ Change | N133: % Change
E134: ($) | G134: ($) | I134: ($) | K134: ($)
A135: Monthly Service Charge | E135: =+'30. WNH Bill Impacts Typical'!$E$12 -> 15 | F135: 1 | G135: =+E135*F135 -> 15 | I135: =+'30. WNH Bill Impacts Typical'!$I$12 -> 15.21 | J135: 1 | K135: =J135*I135 -> 15.21 | M135: =K135-G135 -> 0.21 | N135: =IF((G135)=0,"",(M135/G135)) -> 0.014
A136: Distribution Volumetric Rate | E136: =+'30. WNH Bill Impacts Typical'!$E$13 -> 0.019 | F136: =+$E$128 -> 800 | G136: =+E136*F136 -> 15.2 | I136: =+'30. WNH Bill Impacts Typical'!$I$13 -> 0.0193 | J136: =F136 -> 800 | K136: =J136*I136 -> 15.44 | M136: 0.24 | N136: 0.01578947368
A137: Fixed Rate Riders | E137: =+'30. WNH Bill Impacts Typical'!$E$14 -> 2.11 | F137: 1 | G137: 2.11 | I137: =+'30. WNH Bill Impacts Typical'!$I$14 -> 2.11 | J137: 1 | K137: =J137*I137 -> 2.11 | M137: 0 | N137: 0
A138: Volumetric Rate Riders | E138: =+'30. WNH Bill Impacts Typical'!$E$15 -> 0.0001 | F138: =+$E$128 -> 800 | G138: 0.08 | I138: =+'30. WNH Bill Impacts Typical'!$I$15 -> -0.0001 | J138: =F138 -> 800 | K138: =J138*I138 -> -0.08 | M138: -0.16 | N138: -2
A139: Sub-Total A (excluding pass through) | G139: =SUM(G135:G138) -> 32.39 | K139: =SUM(K135:K138) -> 32.68 | M139: 0.29 | N139: 0.008953380673
A140: Line Losses on Cost of Power | E140: =+'30. WNH Bill Impacts Typical'!$E$17 -> 0.08392 | F140: =+$E$128*($E$126-1) -> 32.32 | G140: =E140*F140 -> 2.7122944 | I140: =+'30. WNH Bill Impacts Typical'!$I$17 -> 0.08392 | J140: =F140 -> 32.32 | K140: =I140*J140 -> 2.7122944 | M140: 0 | N140: 0
A141: Total Deferral/Variance Account Rate Riders | E141: =+'30. WNH Bill Impacts Typical'!$E$18 -> -0.0016 | F141: =+$E$128 -> 800 | G141: =F141*E141 -> -1.28 | I141: =+'30. WNH Bill Impacts Typical'!$I$18 -> -0.0014 | J141: =F141 -> 800 | K141: =J141*I141 -> -1.12 | M141: 0.16 | N141: =-IF((G141)=0,"",(M141/G141)) -> 0.125
A142: Low Voltage Service Charge | E142: =+'30. WNH Bill Impacts Typical'!$E$19 -> 0.0001 | F142: =+$E$128 -> 800 | G142: =F142*E142 -> 0.08 | I142: =+'30. WNH Bill Impacts Typical'!$I$19 -> 0.0001 | J142: =F142 -> 800 | K142: =J142*I142 -> 0.08 | M142: 0 | N142: =IF((G142)=0,"",(M142/G142)) -> 0
A143: Smart Meter Entity Charge | E143: =+'30. WNH Bill Impacts Typical'!$E$20 -> 0.79 | F143: 1 | G143: =F143*E143 -> 0.79 | I143: =+'30. WNH Bill Impacts Typical'!$I$20 -> 0.79 | J143: =F143 -> 1 | K143: =J143*I143 -> 0.79 | M143: 0 | N143: 0
A144: Sub-Total B - Distribution (includes Sub-Total A) | G144: =SUM(G139:G143) -> 34.6922944 | K144: =SUM(K139:K143) -> 35.1422944 | M144: 0.45 | N144: 0.01297118014
A145: RTSR - Network | E145: =+'30. WNH Bill Impacts Typical'!$E$22 -> 0.0076 | F145: =+$E$128*$E$126 -> 832.32 | G145: =F145*E145 -> 6.325632 | I145: =+'30. WNH Bill Impacts Typical'!$I$22 -> 0.0074 | J145: =F145 -> 832.32 | K145: =J145*I145 -> 6.159168 | M145: -0.166464 | N145: -0.02631578947
A146: RTSR - Connection and/or Line and Transformation Connection | E146: =+'30. WNH Bill Impacts Typical'!$E$23 -> 0.0022 | F146: =+$E$128*$E$126 -> 832.32 | G146: =F146*E146 -> 1.831104 | I146: =+'30. WNH Bill Impacts Typical'!$I$23 -> 0.0021 | J146: =F146 -> 832.32 | K146: =J146*I146 -> 1.747872 | M146: -0.083232 | N146: -0.04545454545
A147: Sub-Total C - Delivery (including Sub-Total B) | G147: =SUM(G144:G146) -> 42.8490304 | K147: =SUM(K144:K146) -> 43.0493344 | M147: 0.200304 | N147: 0.004674644867
A148: Wholesale Market Service Charge (WMSC) | E148: =+'30. WNH Bill Impacts Typical'!$E$25 -> 0.0044 | F148: =$E$128*$E$126 -> 832.32 | G148: =F148*E148 -> 3.662208 | I148: =+'30. WNH Bill Impacts Typical'!$I$25 -> 0.0044 | J148: =+F148 -> 832.32 | K148: =J148*I148 -> 3.662208 | M148: 0 | N148: 0
A149: Rural and Remote Rate Protection (RRRP) | E149: =+'30. WNH Bill Impacts Typical'!$E$26 -> 0.0013 | F149: =$E$128*$E$126 -> 832.32 | G149: 1.082016 | I149: =+'30. WNH Bill Impacts Typical'!$I$26 -> 0.0013 | J149: =+F149 -> 832.32 | K149: 1.082016 | M149: 0 | N149: 0
A150: Standard Supply Service Charge | E150: =+'30. WNH Bill Impacts Typical'!$E$27 -> 0.25 | F150: 1 | G150: 0.25 | I150: =+'30. WNH Bill Impacts Typical'!$I$27 -> 0.25 | J150: 1 | K150: 0.25 | M150: 0 | N150: 0
A151: Debt Retirement Charge (DRC) | E151: =+'30. WNH Bill Impacts Typical'!$E$28 -> 0.007 | F151: =$E$128 -> 800 | G151: 5.6 | I151: =+'30. WNH Bill Impacts Typical'!$I$28 -> 0.007 | J151: =+F151 -> 800 | K151: 5.6 | M151: 0 | N151: 0
A152: TOU - Off Peak | E152: =+'30. WNH Bill Impacts Typical'!$E$29 -> 0.067 | F152: =+$E$128*0.64 -> 512 | G152: 34.304 | I152: =+'30. WNH Bill Impacts Typical'!$I$29 -> 0.067 | J152: =F152 -> 512 | K152: 34.304 | M152: 0 | N152: 0
A153: TOU - Mid Peak | E153: =+'30. WNH Bill Impacts Typical'!$E$30 -> 0.104 | F153: =+$E$128*0.18 -> 144 | G153: 14.976 | I153: =+'30. WNH Bill Impacts Typical'!$I$30 -> 0.104 | J153: =F153 -> 144 | K153: 14.976 | M153: 0 | N153: 0
A154: TOU - On Peak | E154: =+'30. WNH Bill Impacts Typical'!$E$31 -> 0.124 | F154: =+$E$128*0.18 -> 144 | G154: 17.856 | I154: =+'30. WNH Bill Impacts Typical'!$I$31 -> 0.124 | J154: =F154 -> 144 | K154: 17.856 | M154: 0 | N154: 0
A156: Total Bill on TOU (before Taxes) | G156: =SUM(G147:G151,G152:G154) -> 120.5792544 | K156: =SUM(K147:K151,K152:K154) -> 120.7795584 | M156: =K156-G156 -> 0.200304 | N156: =IF((G156)=0,"",(M156/G156)) -> 0.001661181279
A157: HST | E157: =+'30. WNH Bill Impacts Typical'!$E$34 -> 0.13 | G157: =G156*E157 -> 15.67530307 | I157: =+'30. WNH Bill Impacts Typical'!$I$34 -> 0.13 | K157: =K156*I157 -> 15.70134259 | M157: =K157-G157 -> 0.02603952 | N157: =IF((G157)=0,"",(M157/G157)) -> 0.001661181279
A158: Total Bill (including HST) | G158: =G156+G157 -> 136.2545575 | K158: =K156+K157 -> 136.480901 | M158: 0.22634352 | N158: 0.001661181279
A159: Ontario Clean Energy Benefit 1 | G159: =ROUND(-G158*10%,2) -> -13.63 | K159: =ROUND(-K158*10%,2) -> -13.65 | M159: -0.02 | N159: 0.001467351431
A160: Total Bill on TOU (including OCEB) | G160: =G158+G159 -> 122.6245575 | K160: =K158+K159 -> 122.830901 | M160: 0.20634352 | N160: 0.00168272591
A163: Changed the sign of % impact to reflect increase in bill, not decrease
A164: Note: For distributors who have a majority of customers on Tiered pricing, please provide a separate bill impact for such customers.
A165: Rate Class | C165: RESIDENTIAL
A167: Loss Factor | E167: 1.0404
A169: Consumption | C169: kWh | E169: 1000
A171: If Billed on a kW basis:
A172: Demand | C172: kW
E173: Current Board-Approved | I173: Proposed | M173: Impact
E174: Rate | F174: Volume | G174: Charge | I174: Rate | J174: Volume | K174: Charge | M174: $ Change | N174: % Change
E175: ($) | G175: ($) | I175: ($) | K175: ($)
A176: Monthly Service Charge | E176: =+'30. WNH Bill Impacts Typical'!$E$12 -> 15 | F176: 1 | G176: =+E176*F176 -> 15 | I176: =+'30. WNH Bill Impacts Typical'!$I$12 -> 15.21 | J176: 1 | K176: =J176*I176 -> 15.21 | M176: =K176-G176 -> 0.21 | N176: =IF((G176)=0,"",(M176/G176)) -> 0.014
A177: Distribution Volumetric Rate | E177: =+'30. WNH Bill Impacts Typical'!$E$13 -> 0.019 | F177: =+$E$169 -> 1000 | G177: =+E177*F177 -> 19 | I177: =+'30. WNH Bill Impacts Typical'!$I$13 -> 0.0193 | J177: =F177 -> 1000 | K177: =J177*I177 -> 19.3 | M177: 0.3 | N177: 0.01578947368
A178: Fixed Rate Riders | E178: =+'30. WNH Bill Impacts Typical'!$E$14 -> 2.11 | F178: 1 | G178: 2.11 | I178: =+'30. WNH Bill Impacts Typical'!$I$14 -> 2.11 | J178: 1 | K178: =J178*I178 -> 2.11 | M178: 0 | N178: 0
A179: Volumetric Rate Riders | E179: =+'30. WNH Bill Impacts Typical'!$E$15 -> 0.0001 | F179: =+$E$169 -> 1000 | G179: 0.1 | I179: =+'30. WNH Bill Impacts Typical'!$I$15 -> -0.0001 | J179: =F179 -> 1000 | K179: =J179*I179 -> -0.1 | M179: -0.2 | N179: -2
A180: Sub-Total A (excluding pass through) | G180: =SUM(G176:G179) -> 36.21 | K180: =SUM(K176:K179) -> 36.52 | M180: 0.31 | N180: 0.008561170947
A181: Line Losses on Cost of Power | E181: =+'30. WNH Bill Impacts Typical'!$E$17 -> 0.08392 | F181: =+$E$169*($E$167-1) -> 40.4 | G181: =E181*F181 -> 3.390368 | I181: =+'30. WNH Bill Impacts Typical'!$I$17 -> 0.08392 | J181: =F181 -> 40.4 | K181: =I181*J181 -> 3.390368 | M181: 0 | N181: 0
A182: Total Deferral/Variance Account Rate Riders | E182: =+'30. WNH Bill Impacts Typical'!$E$18 -> -0.0016 | F182: =+$E$169 -> 1000 | G182: =F182*E182 -> -1.6 | I182: =+'30. WNH Bill Impacts Typical'!$I$18 -> -0.0014 | J182: =F182 -> 1000 | K182: =J182*I182 -> -1.4 | M182: 0.2 | N182: =-IF((G182)=0,"",(M182/G182)) -> 0.125
A183: Low Voltage Service Charge | E183: =+'30. WNH Bill Impacts Typical'!$E$19 -> 0.0001 | F183: =+$E$169 -> 1000 | G183: =F183*E183 -> 0.1 | I183: =+'30. WNH Bill Impacts Typical'!$I$19 -> 0.0001 | J183: =F183 -> 1000 | K183: =J183*I183 -> 0.1 | M183: 0 | N183: =IF((G183)=0,"",(M183/G183)) -> 0
A184: Smart Meter Entity Charge | E184: =+'30. WNH Bill Impacts Typical'!$E$20 -> 0.79 | F184: 1 | G184: =F184*E184 -> 0.79 | I184: =+'30. WNH Bill Impacts Typical'!$I$20 -> 0.79 | J184: =F184 -> 1 | K184: =J184*I184 -> 0.79 | M184: 0 | N184: 0
A185: Sub-Total B - Distribution (includes Sub-Total A) | G185: =SUM(G180:G184) -> 38.890368 | K185: =SUM(K180:K184) -> 39.400368 | M185: 0.51 | N185: 0.01311378694
A186: RTSR - Network | E186: =+'30. WNH Bill Impacts Typical'!$E$22 -> 0.0076 | F186: =+$E$169*$E$167 -> 1040.4 | G186: =F186*E186 -> 7.90704 | I186: =+'30. WNH Bill Impacts Typical'!$I$22 -> 0.0074 | J186: =F186 -> 1040.4 | K186: =J186*I186 -> 7.69896 | M186: -0.20808 | N186: -0.02631578947
A187: RTSR - Connection and/or Line and Transformation Connection | E187: =+'30. WNH Bill Impacts Typical'!$E$23 -> 0.0022 | F187: =+$E$169*$E$167 -> 1040.4 | G187: =F187*E187 -> 2.28888 | I187: =+'30. WNH Bill Impacts Typical'!$I$23 -> 0.0021 | J187: =F187 -> 1040.4 | K187: =J187*I187 -> 2.18484 | M187: -0.10404 | N187: -0.04545454545
A188: Sub-Total C - Delivery (including Sub-Total B) | G188: =SUM(G185:G187) -> 49.086288 | K188: =SUM(K185:K187) -> 49.284168 | M188: 0.19788 | N188: 0.004031268366
A189: Wholesale Market Service Charge (WMSC) | E189: =+'30. WNH Bill Impacts Typical'!$E$25 -> 0.0044 | F189: =$E$169*$E$167 -> 1040.4 | G189: =F189*E189 -> 4.57776 | I189: =+'30. WNH Bill Impacts Typical'!$I$25 -> 0.0044 | J189: =+F189 -> 1040.4 | K189: =J189*I189 -> 4.57776 | M189: 0 | N189: 0
A190: Rural and Remote Rate Protection (RRRP) | E190: =+'30. WNH Bill Impacts Typical'!$E$26 -> 0.0013 | F190: =$E$169*$E$167 -> 1040.4 | G190: 1.35252 | I190: =+'30. WNH Bill Impacts Typical'!$I$26 -> 0.0013 | J190: =+F190 -> 1040.4 | K190: 1.35252 | M190: 0 | N190: 0
A191: Standard Supply Service Charge | E191: =+'30. WNH Bill Impacts Typical'!$E$27 -> 0.25 | F191: 1 | G191: 0.25 | I191: =+'30. WNH Bill Impacts Typical'!$I$27 -> 0.25 | J191: 1 | K191: 0.25 | M191: 0 | N191: 0
A192: Debt Retirement Charge (DRC) | E192: =+'30. WNH Bill Impacts Typical'!$E$28 -> 0.007 | F192: =$E$169 -> 1000 | G192: 7 | I192: =+'30. WNH Bill Impacts Typical'!$I$28 -> 0.007 | J192: =+F192 -> 1000 | K192: 7 | M192: 0 | N192: 0
A193: TOU - Off Peak | E193: =+'30. WNH Bill Impacts Typical'!$E$29 -> 0.067 | F193: =+$E$169*0.64 -> 640 | G193: 42.88 | I193: =+'30. WNH Bill Impacts Typical'!$I$29 -> 0.067 | J193: =F193 -> 640 | K193: 42.88 | M193: 0 | N193: 0
A194: TOU - Mid Peak | E194: =+'30. WNH Bill Impacts Typical'!$E$30 -> 0.104 | F194: =+$E$169*0.18 -> 180 | G194: 18.72 | I194: =+'30. WNH Bill Impacts Typical'!$I$30 -> 0.104 | J194: =F194 -> 180 | K194: 18.72 | M194: 0 | N194: 0
A195: TOU - On Peak | E195: =+'30. WNH Bill Impacts Typical'!$E$31 -> 0.124 | F195: =+$E$169*0.18 -> 180 | G195: 22.32 | I195: =+'30. WNH Bill Impacts Typical'!$I$31 -> 0.124 | J195: =F195 -> 180 | K195: 22.32 | M195: 0 | N195: 0
A197: Total Bill on TOU (before Taxes) | G197: =SUM(G188:G192,G193:G195) -> 146.186568 | K197: =SUM(K188:K192,K193:K195) -> 146.384448 | M197: =K197-G197 -> 0.19788 | N197: =IF((G197)=0,"",(M197/G197)) -> 0.001353612734
A198: HST | E198: =+'30. WNH Bill Impacts Typical'!$E$34 -> 0.13 | G198: =G197*E198 -> 19.00425384 | I198: =+'30. WNH Bill Impacts Typical'!$I$34 -> 0.13 | K198: =K197*I198 -> 19.02997824 | M198: =K198-G198 -> 0.0257244 | N198: =IF((G198)=0,"",(M198/G198)) -> 0.001353612734
A199: Total Bill (including HST) | G199: =G197+G198 -> 165.1908218 | K199: =K197+K198 -> 165.4144262 | M199: 0.2236044 | N199: 0.001353612734
A200: Ontario Clean Energy Benefit 1 | G200: =ROUND(-G199*10%,2) -> -16.52 | K200: =ROUND(-K199*10%,2) -> -16.54 | M200: -0.02 | N200: 0.001210653753
A201: Total Bill on TOU (including OCEB) | G201: =G199+G200 -> 148.6708218 | K201: =K199+K200 -> 148.8744262 | M201: 0.2036044 | N201: 0.001369498046
A204: Changed the sign of % impact to reflect increase in bill, not decrease
A205: Note: For distributors who have a majority of customers on Tiered pricing, please provide a separate bill impact for such customers.
A206: Rate Class | C206: RESIDENTIAL
A208: Loss Factor | E208: 1.0404
A210: Consumption | C210: kWh | E210: 1500
A212: If Billed on a kW basis:
A213: Demand | C213: kW
E214: Current Board-Approved | I214: Proposed | M214: Impact
E215: Rate | F215: Volume | G215: Charge | I215: Rate | J215: Volume | K215: Charge | M215: $ Change | N215: % Change
E216: ($) | G216: ($) | I216: ($) | K216: ($)
A217: Monthly Service Charge | E217: =+'30. WNH Bill Impacts Typical'!$E$12 -> 15 | F217: 1 | G217: =+E217*F217 -> 15 | I217: =+'30. WNH Bill Impacts Typical'!$I$12 -> 15.21 | J217: 1 | K217: =J217*I217 -> 15.21 | M217: =K217-G217 -> 0.21 | N217: =IF((G217)=0,"",(M217/G217)) -> 0.014
A218: Distribution Volumetric Rate | E218: =+'30. WNH Bill Impacts Typical'!$E$13 -> 0.019 | F218: =+$E$210 -> 1500 | G218: =+E218*F218 -> 28.5 | I218: =+'30. WNH Bill Impacts Typical'!$I$13 -> 0.0193 | J218: =F218 -> 1500 | K218: =J218*I218 -> 28.95 | M218: 0.45 | N218: 0.01578947368
A219: Fixed Rate Riders | E219: =+'30. WNH Bill Impacts Typical'!$E$14 -> 2.11 | F219: 1 | G219: 2.11 | I219: =+'30. WNH Bill Impacts Typical'!$I$14 -> 2.11 | J219: 1 | K219: =J219*I219 -> 2.11 | M219: 0 | N219: 0
A220: Volumetric Rate Riders | E220: =+'30. WNH Bill Impacts Typical'!$E$15 -> 0.0001 | F220: =+$E$210 -> 1500 | G220: 0.15 | I220: =+'30. WNH Bill Impacts Typical'!$I$15 -> -0.0001 | J220: =F220 -> 1500 | K220: =J220*I220 -> -0.15 | M220: -0.3 | N220: -2
A221: Sub-Total A (excluding pass through) | G221: =SUM(G217:G220) -> 45.76 | K221: =SUM(K217:K220) -> 46.12 | M221: 0.36 | N221: 0.007867132867
A222: Line Losses on Cost of Power | E222: =+'30. WNH Bill Impacts Typical'!$E$17 -> 0.08392 | F222: =+$E$210*($E$208-1) -> 60.6 | G222: =E222*F222 -> 5.085552 | I222: =+'30. WNH Bill Impacts Typical'!$I$17 -> 0.08392 | J222: =F222 -> 60.6 | K222: =I222*J222 -> 5.085552 | M222: 0 | N222: 0
A223: Total Deferral/Variance Account Rate Riders | E223: =+'30. WNH Bill Impacts Typical'!$E$18 -> -0.0016 | F223: =+$E$210 -> 1500 | G223: =F223*E223 -> -2.4 | I223: =+'30. WNH Bill Impacts Typical'!$I$18 -> -0.0014 | J223: =F223 -> 1500 | K223: =J223*I223 -> -2.1 | M223: 0.3 | N223: =-IF((G223)=0,"",(M223/G223)) -> 0.125
A224: Low Voltage Service Charge | E224: =+'30. WNH Bill Impacts Typical'!$E$19 -> 0.0001 | F224: =+$E$210 -> 1500 | G224: =F224*E224 -> 0.15 | I224: =+'30. WNH Bill Impacts Typical'!$I$19 -> 0.0001 | J224: =F224 -> 1500 | K224: =J224*I224 -> 0.15 | M224: 0 | N224: =IF((G224)=0,"",(M224/G224)) -> 0
A225: Smart Meter Entity Charge | E225: =+'30. WNH Bill Impacts Typical'!$E$20 -> 0.79 | F225: 1 | G225: =F225*E225 -> 0.79 | I225: =+'30. WNH Bill Impacts Typical'!$I$20 -> 0.79 | J225: =F225 -> 1 | K225: =J225*I225 -> 0.79 | M225: 0 | N225: 0
A226: Sub-Total B - Distribution (includes Sub-Total A) | G226: =SUM(G221:G225) -> 49.385552 | K226: =SUM(K221:K225) -> 50.045552 | M226: 0.66 | N226: 0.01336423252
A227: RTSR - Network | E227: =+'30. WNH Bill Impacts Typical'!$E$22 -> 0.0076 | F227: =+$E$210*$E$208 -> 1560.6 | G227: =F227*E227 -> 11.86056 | I227: =+'30. WNH Bill Impacts Typical'!$I$22 -> 0.0074 | J227: =F227 -> 1560.6 | K227: =J227*I227 -> 11.54844 | M227: -0.31212 | N227: -0.02631578947
A228: RTSR - Connection and/or Line and Transformation Connection | E228: =+'30. WNH Bill Impacts Typical'!$E$23 -> 0.0022 | F228: =+$E$210*$E$208 -> 1560.6 | G228: =F228*E228 -> 3.43332 | I228: =+'30. WNH Bill Impacts Typical'!$I$23 -> 0.0021 | J228: =F228 -> 1560.6 | K228: =J228*I228 -> 3.27726 | M228: -0.15606 | N228: -0.04545454545
A229: Sub-Total C - Delivery (including Sub-Total B) | G229: =SUM(G226:G228) -> 64.679432 | K229: =SUM(K226:K228) -> 64.871252 | M229: 0.19182 | N229: 0.002965703224
A230: Wholesale Market Service Charge (WMSC) | E230: =+'30. WNH Bill Impacts Typical'!$E$25 -> 0.0044 | F230: =+$E$210*$E$208 -> 1560.6 | G230: =F230*E230 -> 6.86664 | I230: =+'30. WNH Bill Impacts Typical'!$I$25 -> 0.0044 | J230: =+F230 -> 1560.6 | K230: =J230*I230 -> 6.86664 | M230: 0 | N230: 0
A231: Rural and Remote Rate Protection (RRRP) | E231: =+'30. WNH Bill Impacts Typical'!$E$26 -> 0.0013 | F231: =+$E$210*$E$208 -> 1560.6 | G231: 2.02878 | I231: =+'30. WNH Bill Impacts Typical'!$I$26 -> 0.0013 | J231: =+F231 -> 1560.6 | K231: 2.02878 | M231: 0 | N231: 0
A232: Standard Supply Service Charge | E232: =+'30. WNH Bill Impacts Typical'!$E$27 -> 0.25 | F232: 1 | G232: 0.25 | I232: =+'30. WNH Bill Impacts Typical'!$I$27 -> 0.25 | J232: 1 | K232: 0.25 | M232: 0 | N232: 0
A233: Debt Retirement Charge (DRC) | E233: =+'30. WNH Bill Impacts Typical'!$E$28 -> 0.007 | F233: =$E$210 -> 1500 | G233: 10.5 | I233: =+'30. WNH Bill Impacts Typical'!$I$28 -> 0.007 | J233: =+F233 -> 1500 | K233: 10.5 | M233: 0 | N233: 0
... 570 more rows
